Workbook

Sheet Display
F2: CQG iShares U.S. Aerospace & Defense ETF | AB2: =RTD("cqg.rtd", ,"SystemInfo", "Linetime") -> 46097.27273
B5: Exchange Traded Funds Performance | S5: Top 15 Positive Performing Companies
B6: Symbol | C6: Description | H6: Last | I6: NC | J6: %NC | K6: NC/ATR | L6: Open | M6: High | N6: Low | O6: Volume | Q6: Ratio
B7: ITA | C7: =RTD("cqg.rtd", ,"ContractData",B7, "LongDescription",, "T") -> iShares U.S. Aerospace & Defense ETF | H7: =RTD("cqg.rtd", ,"ContractData",B7, "LastTradeToday",, "T") ->  | I7: =RTD("cqg.rtd", ,"ContractData",B7, "NetLastTradeToday",, "T") ->  | J7: =IFERROR(RTD("cqg.rtd", ,"ContractData",B7, "PerCentNetLastTrade",, "T")/100,"") ->  | K7: =IFERROR(I7/RTD("cqg.rtd",,"StudyData",B7, "ATR", "MaType=Sim,Period=10", "ATR","D","-1","ALL",,,"FALSE","T")/100,"") ->  | L7: =RTD("cqg.rtd", ,"ContractData",B7, "OPen",, "T") ->  | M7: =RTD("cqg.rtd", ,"ContractData", B7, "HIgh",, "T") ->  | N7: =RTD("cqg.rtd", ,"ContractData",B7, "LOw",, "T") ->  | O7: =RTD("cqg.rtd", ,"ContractData",B7, "T_CVol",, "T") -> 1140 | Q7: =IFERROR(O7/RTD("cqg.rtd",,"StudyData",B7, "MA", "InputChoice=Vol,MAType=Sim,Period=21", "MA","D","-1","all",,,,"T"),"") -> 0.0007014377445
B8: DJI | C8: =RTD("cqg.rtd", ,"ContractData",B8, "LongDescription",, "T") -> DJ Industrial Average | H8: =RTD("cqg.rtd", ,"ContractData",B8, "LastTradeToday",, "T") -> 46558.4 | I8: =RTD("cqg.rtd", ,"ContractData",B8, "NetLastTradeToday",, "T") ->  | J8: =IFERROR(RTD("cqg.rtd", ,"ContractData",B8, "PerCentNetLastTrade",, "T")/100,"") ->  | K8: =IFERROR(I8/RTD("cqg.rtd",,"StudyData",B8, "ATR", "MaType=Sim,Period=10", "ATR","D","-1","ALL",,,"FALSE","T")/100,"") ->  | L8: =RTD("cqg.rtd", ,"ContractData",B8, "OPen",, "T") ->  | M8: =RTD("cqg.rtd", ,"ContractData", B8, "HIgh",, "T") ->  | N8: =RTD("cqg.rtd", ,"ContractData",B8, "LOw",, "T") ->  | O8: =RTD("cqg.rtd", ,"ContractData",B8, "T_CVol",, "T") -> 0 | Q8: =IFERROR(O8/RTD("cqg.rtd",,"StudyData",B8, "MA", "InputChoice=Vol,MAType=Sim,Period=21", "MA","D","-1","all",,,,"T"),"") -> 0
B9: EP | C9: =RTD("cqg.rtd", ,"ContractData",B9, "LongDescription",, "T") -> E-Mini S&P 500, Mar 26 | H9: =RTD("cqg.rtd", ,"ContractData",B9, "LastTradeToday",, "T") -> 6679.25 | I9: =RTD("cqg.rtd", ,"ContractData",B9, "NetLastTradeToday",, "T") -> 43.25 | J9: =IFERROR(RTD("cqg.rtd", ,"ContractData",B9, "PerCentNetLastTrade",, "T")/100,"") -> 0.00651748041 | K9: =IFERROR(I9/RTD("cqg.rtd",,"StudyData",B9, "ATR", "MaType=Sim,Period=10", "ATR","D","-1","ALL",,,"FALSE","T")/100,"") -> 0.003298379409 | L9: =RTD("cqg.rtd", ,"ContractData",B9, "OPen",, "T") -> 6608.5 | M9: =RTD("cqg.rtd", ,"ContractData", B9, "HIgh",, "T") -> 6688 | N9: =RTD("cqg.rtd", ,"ContractData",B9, "LOw",, "T") -> 6608.5 | O9: =RTD("cqg.rtd", ,"ContractData",B9, "T_CVol",, "T") -> 223981 | Q9: =IFERROR(O9/RTD("cqg.rtd",,"StudyData",B9, "MA", "InputChoice=Vol,MAType=Sim,Period=21", "MA","D","-1","all",,,,"T"),"") -> 0.1226041964
B10: S.IYY | C10: =RTD("cqg.rtd", ,"ContractData",B10, "LongDescription",, "T") -> iShares DJ US Total Market Idx Fd | H10: =RTD("cqg.rtd", ,"ContractData",B10, "LastTradeToday",, "T") ->  | I10: =RTD("cqg.rtd", ,"ContractData",B10, "NetLastTradeToday",, "T") ->  | J10: =IFERROR(RTD("cqg.rtd", ,"ContractData",B10, "PerCentNetLastTrade",, "T")/100,"") ->  | K10: =IFERROR(I10/RTD("cqg.rtd",,"StudyData",B10, "ATR", "MaType=Sim,Period=10", "ATR","D","-1","ALL",,,"FALSE","T")/100,"") ->  | L10: =RTD("cqg.rtd", ,"ContractData",B10, "OPen",, "T") ->  | M10: =RTD("cqg.rtd", ,"ContractData", B10, "HIgh",, "T") ->  | N10: =RTD("cqg.rtd", ,"ContractData",B10, "LOw",, "T") ->  | O10: =RTD("cqg.rtd", ,"ContractData",B10, "T_CVol",, "T") -> 0 | Q10: =IFERROR(O10/RTD("cqg.rtd",,"StudyData",B10, "MA", "InputChoice=Vol,MAType=Sim,Period=21", "MA","D","-1","all",,,,"T"),"") -> 0
B11: S.XLE | C11: =RTD("cqg.rtd", ,"ContractData",B11, "LongDescription",, "T") -> Energy Select Sector SPDR | H11: =RTD("cqg.rtd", ,"ContractData",B11, "LastTradeToday",, "T") ->  | I11: =RTD("cqg.rtd", ,"ContractData",B11, "NetLastTradeToday",, "T") ->  | J11: =IFERROR(RTD("cqg.rtd", ,"ContractData",B11, "PerCentNetLastTrade",, "T")/100,"") ->  | K11: =IFERROR(I11/RTD("cqg.rtd",,"StudyData",B11, "ATR", "MaType=Sim,Period=10", "ATR","D","-1","ALL",,,"FALSE","T")/100,"") ->  | L11: =RTD("cqg.rtd", ,"ContractData",B11, "OPen",, "T") ->  | M11: =RTD("cqg.rtd", ,"ContractData", B11, "HIgh",, "T") ->  | N11: =RTD("cqg.rtd", ,"ContractData",B11, "LOw",, "T") ->  | O11: =RTD("cqg.rtd", ,"ContractData",B11, "T_CVol",, "T") -> 242931 | Q11: =IFERROR(O11/RTD("cqg.rtd",,"StudyData",B11, "MA", "InputChoice=Vol,MAType=Sim,Period=21", "MA","D","-1","all",,,,"T"),"") -> 0.003588380035
B12: S.ARTY | C12: =RTD("cqg.rtd", ,"ContractData",B12, "LongDescription",, "T") -> iShares Robotics and Artificial Intelligence ETF | H12: =RTD("cqg.rtd", ,"ContractData",B12, "LastTradeToday",, "T") ->  | I12: =RTD("cqg.rtd", ,"ContractData",B12, "NetLastTradeToday",, "T") ->  | J12: =IFERROR(RTD("cqg.rtd", ,"ContractData",B12, "PerCentNetLastTrade",, "T")/100,"") ->  | K12: =IFERROR(I12/RTD("cqg.rtd",,"StudyData",B12, "ATR", "MaType=Sim,Period=10", "ATR","D","-1","ALL",,,"FALSE","T")/100,"") ->  | L12: =RTD("cqg.rtd", ,"ContractData",B12, "OPen",, "T") ->  | M12: =RTD("cqg.rtd", ,"ContractData", B12, "HIgh",, "T") ->  | N12: =RTD("cqg.rtd", ,"ContractData",B12, "LOw",, "T") ->  | O12: =RTD("cqg.rtd", ,"ContractData",B12, "T_CVol",, "T") -> 187 | Q12: =IFERROR(O12/RTD("cqg.rtd",,"StudyData",B12, "MA", "InputChoice=Vol,MAType=Sim,Period=21", "MA","D","-1","all",,,,"T"),"") -> 0.0003440088305
B13: S.ARKQ | C13: =RTD("cqg.rtd", ,"ContractData",B13, "LongDescription",, "T") -> ARK Autonomous Technology & Robotics ETF | H13: =RTD("cqg.rtd", ,"ContractData",B13, "LastTradeToday",, "T") ->  | I13: =RTD("cqg.rtd", ,"ContractData",B13, "NetLastTradeToday",, "T") ->  | J13: =IFERROR(RTD("cqg.rtd", ,"ContractData",B13, "PerCentNetLastTrade",, "T")/100,"") ->  | K13: =IFERROR(I13/RTD("cqg.rtd",,"StudyData",B13, "ATR", "MaType=Sim,Period=10", "ATR","D","-1","ALL",,,"FALSE","T")/100,"") ->  | L13: =RTD("cqg.rtd", ,"ContractData",B13, "OPen",, "T") ->  | M13: =RTD("cqg.rtd", ,"ContractData", B13, "HIgh",, "T") ->  | N13: =RTD("cqg.rtd", ,"ContractData",B13, "LOw",, "T") ->  | O13: =RTD("cqg.rtd", ,"ContractData",B13, "T_CVol",, "T") -> 275 | Q13: =IFERROR(O13/RTD("cqg.rtd",,"StudyData",B13, "MA", "InputChoice=Vol,MAType=Sim,Period=21", "MA","D","-1","all",,,,"T"),"") -> 0.001497873825
B14: S.ROBO | C14: =RTD("cqg.rtd", ,"ContractData",B14, "LongDescription",, "T") -> Robo-Stox Global Robotics&Automation ETF | H14: =RTD("cqg.rtd", ,"ContractData",B14, "LastTradeToday",, "T") ->  | I14: =RTD("cqg.rtd", ,"ContractData",B14, "NetLastTradeToday",, "T") ->  | J14: =IFERROR(RTD("cqg.rtd", ,"ContractData",B14, "PerCentNetLastTrade",, "T")/100,"") ->  | K14: =IFERROR(I14/RTD("cqg.rtd",,"StudyData",B14, "ATR", "MaType=Sim,Period=10", "ATR","D","-1","ALL",,,"FALSE","T")/100,"") ->  | L14: =RTD("cqg.rtd", ,"ContractData",B14, "OPen",, "T") ->  | M14: =RTD("cqg.rtd", ,"ContractData", B14, "HIgh",, "T") ->  | N14: =RTD("cqg.rtd", ,"ContractData",B14, "LOw",, "T") ->  | O14: =RTD("cqg.rtd", ,"ContractData",B14, "T_CVol",, "T") -> 114 | Q14: =IFERROR(O14/RTD("cqg.rtd",,"StudyData",B14, "MA", "InputChoice=Vol,MAType=Sim,Period=21", "MA","D","-1","all",,,,"T"),"") -> 0.0005338241465
B15: S.CHAT | C15: =RTD("cqg.rtd", ,"ContractData",B15, "LongDescription",, "T") -> Roundhill Generative AI & Technology ETF | H15: =RTD("cqg.rtd", ,"ContractData",B15, "LastTradeToday",, "T") ->  | I15: =RTD("cqg.rtd", ,"ContractData",B15, "NetLastTradeToday",, "T") ->  | J15: =IFERROR(RTD("cqg.rtd", ,"ContractData",B15, "PerCentNetLastTrade",, "T")/100,"") ->  | K15: =IFERROR(I15/RTD("cqg.rtd",,"StudyData",B15, "ATR", "MaType=Sim,Period=10", "ATR","D","-1","ALL",,,"FALSE","T")/100,"") ->  | L15: =RTD("cqg.rtd", ,"ContractData",B15, "OPen",, "T") ->  | M15: =RTD("cqg.rtd", ,"ContractData", B15, "HIgh",, "T") ->  | N15: =RTD("cqg.rtd", ,"ContractData",B15, "LOw",, "T") ->  | O15: =RTD("cqg.rtd", ,"ContractData",B15, "T_CVol",, "T") -> 285 | Q15: =IFERROR(O15/RTD("cqg.rtd",,"StudyData",B15, "MA", "InputChoice=Vol,MAType=Sim,Period=21", "MA","D","-1","all",,,,"T"),"") -> 0.00089049802
B16: S.IETC | C16: =RTD("cqg.rtd", ,"ContractData",B16, "LongDescription",, "T") -> iShares U.S. Tech Independence Focused ETF | H16: =RTD("cqg.rtd", ,"ContractData",B16, "LastTradeToday",, "T") ->  | I16: =RTD("cqg.rtd", ,"ContractData",B16, "NetLastTradeToday",, "T") ->  | J16: =IFERROR(RTD("cqg.rtd", ,"ContractData",B16, "PerCentNetLastTrade",, "T")/100,"") ->  | K16: =IFERROR(I16/RTD("cqg.rtd",,"StudyData",B16, "ATR", "MaType=Sim,Period=10", "ATR","D","-1","ALL",,,"FALSE","T")/100,"") ->  | L16: =RTD("cqg.rtd", ,"ContractData",B16, "OPen",, "T") ->  | M16: =RTD("cqg.rtd", ,"ContractData", B16, "HIgh",, "T") ->  | N16: =RTD("cqg.rtd", ,"ContractData",B16, "LOw",, "T") ->  | O16: =RTD("cqg.rtd", ,"ContractData",B16, "T_CVol",, "T") -> 38 | Q16: =IFERROR(O16/RTD("cqg.rtd",,"StudyData",B16, "MA", "InputChoice=Vol,MAType=Sim,Period=21", "MA","D","-1","all",,,,"T"),"") -> 0.000396732971
C17: Top 15 Description | H17: Last | I17: NC | J17: %NC | K17: NC/ATR | L17: Open | M17: High | N17: Low | O17: Volume | Q17: Ratio
A18: =TRIM(ITA!O1) ->  | B18: News | C18: =IFERROR(PROPER(RTD("cqg.rtd", ,"ContractData",A18, "LongDescription",, "T"))&" ("&RIGHT(A18,LEN(A18)-5)&")","") ->  | H18: =IF(C18="","",IFERROR(RTD("cqg.rtd", ,"ContractData",A18, "LastTradeToday",, "T"),"")) ->  | I18: =IF(C18="","",IFERROR(RTD("cqg.rtd", ,"ContractData",A18, "NetLastTradeToday",, "T"),"")) ->  | J18: =IFERROR(RTD("cqg.rtd", ,"ContractData",A18, "PerCentNetLastTrade",, "T")/100,"") ->  | K18: =IFERROR(I18/RTD("cqg.rtd",,"StudyData",A18, "ATR", "MaType=Sim,Period=10", "ATR","D","-1","ALL",,,"FALSE","T")/100,"") ->  | L18: =IF(C18="","",IFERROR(RTD("cqg.rtd", ,"ContractData",A18, "OPen",, "T"),"")) ->  | M18: =IF(C18="","",IFERROR(RTD("cqg.rtd", ,"ContractData", A18, "HIgh",, "T"),"")) ->  | N18: =IF(C18="","",IFERROR(RTD("cqg.rtd", ,"ContractData",A18, "LOw",, "T"),"")) ->  | O18: =IF(C18="","",IFERROR(RTD("cqg.rtd", ,"ContractData",A18, "T_CVol",, "T"),"")) ->  | Q18: =IFERROR(O18/RTD("cqg.rtd",,"StudyData",A18, "MA", "InputChoice=Vol,MAType=Sim,Period=21", "MA","D","-1","all",,,,"T"),"") ->  | R18: =ITA!R1 -> 
A19: =TRIM(ITA!O2) ->  | B19: News | C19: =IFERROR(PROPER(RTD("cqg.rtd", ,"ContractData",A19, "LongDescription",, "T"))&" ("&RIGHT(A19,LEN(A19)-5)&")","") ->  | H19: =IF(C19="","",IFERROR(RTD("cqg.rtd", ,"ContractData",A19, "LastTradeToday",, "T"),"")) ->  | I19: =IF(C19="","",IFERROR(RTD("cqg.rtd", ,"ContractData",A19, "NetLastTradeToday",, "T"),"")) ->  | J19: =IFERROR(RTD("cqg.rtd", ,"ContractData",A19, "PerCentNetLastTrade",, "T")/100,"") ->  | K19: =IFERROR(I19/RTD("cqg.rtd",,"StudyData",A19, "ATR", "MaType=Sim,Period=10", "ATR","D","-1","ALL",,,"FALSE","T")/100,"") ->  | L19: =IF(C19="","",IFERROR(RTD("cqg.rtd", ,"ContractData",A19, "OPen",, "T"),"")) ->  | M19: =IF(C19="","",IFERROR(RTD("cqg.rtd", ,"ContractData", A19, "HIgh",, "T"),"")) ->  | N19: =IF(C19="","",IFERROR(RTD("cqg.rtd", ,"ContractData",A19, "LOw",, "T"),"")) ->  | O19: =IF(C19="","",IFERROR(RTD("cqg.rtd", ,"ContractData",A19, "T_CVol",, "T"),"")) ->  | Q19: =IFERROR(O19/RTD("cqg.rtd",,"StudyData",A19, "MA", "InputChoice=Vol,MAType=Sim,Period=21", "MA","D","-1","all",,,,"T"),"") ->  | R19: =ITA!R2 -> 
A20: =TRIM(ITA!O3) ->  | B20: News | C20: =IFERROR(PROPER(RTD("cqg.rtd", ,"ContractData",A20, "LongDescription",, "T"))&" ("&RIGHT(A20,LEN(A20)-5)&")","") ->  | H20: =IF(C20="","",IFERROR(RTD("cqg.rtd", ,"ContractData",A20, "LastTradeToday",, "T"),"")) ->  | I20: =IF(C20="","",IFERROR(RTD("cqg.rtd", ,"ContractData",A20, "NetLastTradeToday",, "T"),"")) ->  | J20: =IFERROR(RTD("cqg.rtd", ,"ContractData",A20, "PerCentNetLastTrade",, "T")/100,"") ->  | K20: =IFERROR(I20/RTD("cqg.rtd",,"StudyData",A20, "ATR", "MaType=Sim,Period=10", "ATR","D","-1","ALL",,,"FALSE","T")/100,"") ->  | L20: =IF(C20="","",IFERROR(RTD("cqg.rtd", ,"ContractData",A20, "OPen",, "T"),"")) ->  | M20: =IF(C20="","",IFERROR(RTD("cqg.rtd", ,"ContractData", A20, "HIgh",, "T"),"")) ->  | N20: =IF(C20="","",IFERROR(RTD("cqg.rtd", ,"ContractData",A20, "LOw",, "T"),"")) ->  | O20: =IF(C20="","",IFERROR(RTD("cqg.rtd", ,"ContractData",A20, "T_CVol",, "T"),"")) ->  | Q20: =IFERROR(O20/RTD("cqg.rtd",,"StudyData",A20, "MA", "InputChoice=Vol,MAType=Sim,Period=21", "MA","D","-1","all",,,,"T"),"") ->  | R20: =ITA!R3 -> 
A21: =TRIM(ITA!O4) ->  | B21: News | C21: =IFERROR(PROPER(RTD("cqg.rtd", ,"ContractData",A21, "LongDescription",, "T"))&" ("&RIGHT(A21,LEN(A21)-5)&")","") ->  | H21: =IF(C21="","",IFERROR(RTD("cqg.rtd", ,"ContractData",A21, "LastTradeToday",, "T"),"")) ->  | I21: =IF(C21="","",IFERROR(RTD("cqg.rtd", ,"ContractData",A21, "NetLastTradeToday",, "T"),"")) ->  | J21: =IFERROR(RTD("cqg.rtd", ,"ContractData",A21, "PerCentNetLastTrade",, "T")/100,"") ->  | K21: =IFERROR(I21/RTD("cqg.rtd",,"StudyData",A21, "ATR", "MaType=Sim,Period=10", "ATR","D","-1","ALL",,,"FALSE","T")/100,"") ->  | L21: =IF(C21="","",IFERROR(RTD("cqg.rtd", ,"ContractData",A21, "OPen",, "T"),"")) ->  | M21: =IF(C21="","",IFERROR(RTD("cqg.rtd", ,"ContractData", A21, "HIgh",, "T"),"")) ->  | N21: =IF(C21="","",IFERROR(RTD("cqg.rtd", ,"ContractData",A21, "LOw",, "T"),"")) ->  | O21: =IF(C21="","",IFERROR(RTD("cqg.rtd", ,"ContractData",A21, "T_CVol",, "T"),"")) ->  | Q21: =IFERROR(O21/RTD("cqg.rtd",,"StudyData",A21, "MA", "InputChoice=Vol,MAType=Sim,Period=21", "MA","D","-1","all",,,,"T"),"") ->  | R21: =ITA!R4 -> 
A22: =TRIM(ITA!O5) ->  | B22: News | C22: =IFERROR(PROPER(RTD("cqg.rtd", ,"ContractData",A22, "LongDescription",, "T"))&" ("&RIGHT(A22,LEN(A22)-5)&")","") ->  | H22: =IF(C22="","",IFERROR(RTD("cqg.rtd", ,"ContractData",A22, "LastTradeToday",, "T"),"")) ->  | I22: =IF(C22="","",IFERROR(RTD("cqg.rtd", ,"ContractData",A22, "NetLastTradeToday",, "T"),"")) ->  | J22: =IFERROR(RTD("cqg.rtd", ,"ContractData",A22, "PerCentNetLastTrade",, "T")/100,"") ->  | K22: =IFERROR(I22/RTD("cqg.rtd",,"StudyData",A22, "ATR", "MaType=Sim,Period=10", "ATR","D","-1","ALL",,,"FALSE","T")/100,"") ->  | L22: =IF(C22="","",IFERROR(RTD("cqg.rtd", ,"ContractData",A22, "OPen",, "T"),"")) ->  | M22: =IF(C22="","",IFERROR(RTD("cqg.rtd", ,"ContractData", A22, "HIgh",, "T"),"")) ->  | N22: =IF(C22="","",IFERROR(RTD("cqg.rtd", ,"ContractData",A22, "LOw",, "T"),"")) ->  | O22: =IF(C22="","",IFERROR(RTD("cqg.rtd", ,"ContractData",A22, "T_CVol",, "T"),"")) ->  | Q22: =IFERROR(O22/RTD("cqg.rtd",,"StudyData",A22, "MA", "InputChoice=Vol,MAType=Sim,Period=21", "MA","D","-1","all",,,,"T"),"") ->  | R22: =ITA!R5 -> 
A23: =TRIM(ITA!O6) ->  | B23: News | C23: =IFERROR(PROPER(RTD("cqg.rtd", ,"ContractData",A23, "LongDescription",, "T"))&" ("&RIGHT(A23,LEN(A23)-5)&")","") ->  | H23: =IF(C23="","",IFERROR(RTD("cqg.rtd", ,"ContractData",A23, "LastTradeToday",, "T"),"")) ->  | I23: =IF(C23="","",IFERROR(RTD("cqg.rtd", ,"ContractData",A23, "NetLastTradeToday",, "T"),"")) ->  | J23: =IFERROR(RTD("cqg.rtd", ,"ContractData",A23, "PerCentNetLastTrade",, "T")/100,"") ->  | K23: =IFERROR(I23/RTD("cqg.rtd",,"StudyData",A23, "ATR", "MaType=Sim,Period=10", "ATR","D","-1","ALL",,,"FALSE","T")/100,"") ->  | L23: =IF(C23="","",IFERROR(RTD("cqg.rtd", ,"ContractData",A23, "OPen",, "T"),"")) ->  | M23: =IF(C23="","",IFERROR(RTD("cqg.rtd", ,"ContractData", A23, "HIgh",, "T"),"")) ->  | N23: =IF(C23="","",IFERROR(RTD("cqg.rtd", ,"ContractData",A23, "LOw",, "T"),"")) ->  | O23: =IF(C23="","",IFERROR(RTD("cqg.rtd", ,"ContractData",A23, "T_CVol",, "T"),"")) ->  | Q23: =IFERROR(O23/RTD("cqg.rtd",,"StudyData",A23, "MA", "InputChoice=Vol,MAType=Sim,Period=21", "MA","D","-1","all",,,,"T"),"") ->  | R23: =ITA!R6 -> 
A24: =TRIM(ITA!O7) ->  | B24: News | C24: =IFERROR(PROPER(RTD("cqg.rtd", ,"ContractData",A24, "LongDescription",, "T"))&" ("&RIGHT(A24,LEN(A24)-5)&")","") ->  | H24: =IF(C24="","",IFERROR(RTD("cqg.rtd", ,"ContractData",A24, "LastTradeToday",, "T"),"")) ->  | I24: =IF(C24="","",IFERROR(RTD("cqg.rtd", ,"ContractData",A24, "NetLastTradeToday",, "T"),"")) ->  | J24: =IFERROR(RTD("cqg.rtd", ,"ContractData",A24, "PerCentNetLastTrade",, "T")/100,"") ->  | K24: =IFERROR(I24/RTD("cqg.rtd",,"StudyData",A24, "ATR", "MaType=Sim,Period=10", "ATR","D","-1","ALL",,,"FALSE","T")/100,"") ->  | L24: =IF(C24="","",IFERROR(RTD("cqg.rtd", ,"ContractData",A24, "OPen",, "T"),"")) ->  | M24: =IF(C24="","",IFERROR(RTD("cqg.rtd", ,"ContractData", A24, "HIgh",, "T"),"")) ->  | N24: =IF(C24="","",IFERROR(RTD("cqg.rtd", ,"ContractData",A24, "LOw",, "T"),"")) ->  | O24: =IF(C24="","",IFERROR(RTD("cqg.rtd", ,"ContractData",A24, "T_CVol",, "T"),"")) ->  | Q24: =IFERROR(O24/RTD("cqg.rtd",,"StudyData",A24, "MA", "InputChoice=Vol,MAType=Sim,Period=21", "MA","D","-1","all",,,,"T"),"") ->  | R24: =ITA!R7 -> 
A25: =TRIM(ITA!O8) ->  | B25: News | C25: =IFERROR(PROPER(RTD("cqg.rtd", ,"ContractData",A25, "LongDescription",, "T"))&" ("&RIGHT(A25,LEN(A25)-5)&")","") ->  | H25: =IF(C25="","",IFERROR(RTD("cqg.rtd", ,"ContractData",A25, "LastTradeToday",, "T"),"")) ->  | I25: =IF(C25="","",IFERROR(RTD("cqg.rtd", ,"ContractData",A25, "NetLastTradeToday",, "T"),"")) ->  | J25: =IFERROR(RTD("cqg.rtd", ,"ContractData",A25, "PerCentNetLastTrade",, "T")/100,"") ->  | K25: =IFERROR(I25/RTD("cqg.rtd",,"StudyData",A25, "ATR", "MaType=Sim,Period=10", "ATR","D","-1","ALL",,,"FALSE","T")/100,"") ->  | L25: =IF(C25="","",IFERROR(RTD("cqg.rtd", ,"ContractData",A25, "OPen",, "T"),"")) ->  | M25: =IF(C25="","",IFERROR(RTD("cqg.rtd", ,"ContractData", A25, "HIgh",, "T"),"")) ->  | N25: =IF(C25="","",IFERROR(RTD("cqg.rtd", ,"ContractData",A25, "LOw",, "T"),"")) ->  | O25: =IF(C25="","",IFERROR(RTD("cqg.rtd", ,"ContractData",A25, "T_CVol",, "T"),"")) ->  | Q25: =IFERROR(O25/RTD("cqg.rtd",,"StudyData",A25, "MA", "InputChoice=Vol,MAType=Sim,Period=21", "MA","D","-1","all",,,,"T"),"") ->  | R25: =ITA!R8 -> 
A26: =TRIM(ITA!O9) ->  | B26: News | C26: =IFERROR(PROPER(RTD("cqg.rtd", ,"ContractData",A26, "LongDescription",, "T"))&" ("&RIGHT(A26,LEN(A26)-5)&")","") ->  | H26: =IF(C26="","",IFERROR(RTD("cqg.rtd", ,"ContractData",A26, "LastTradeToday",, "T"),"")) ->  | I26: =IF(C26="","",IFERROR(RTD("cqg.rtd", ,"ContractData",A26, "NetLastTradeToday",, "T"),"")) ->  | J26: =IFERROR(RTD("cqg.rtd", ,"ContractData",A26, "PerCentNetLastTrade",, "T")/100,"") ->  | K26: =IFERROR(I26/RTD("cqg.rtd",,"StudyData",A26, "ATR", "MaType=Sim,Period=10", "ATR","D","-1","ALL",,,"FALSE","T")/100,"") ->  | L26: =IF(C26="","",IFERROR(RTD("cqg.rtd", ,"ContractData",A26, "OPen",, "T"),"")) ->  | M26: =IF(C26="","",IFERROR(RTD("cqg.rtd", ,"ContractData", A26, "HIgh",, "T"),"")) ->  | N26: =IF(C26="","",IFERROR(RTD("cqg.rtd", ,"ContractData",A26, "LOw",, "T"),"")) ->  | O26: =IF(C26="","",IFERROR(RTD("cqg.rtd", ,"ContractData",A26, "T_CVol",, "T"),"")) ->  | Q26: =IFERROR(O26/RTD("cqg.rtd",,"StudyData",A26, "MA", "InputChoice=Vol,MAType=Sim,Period=21", "MA","D","-1","all",,,,"T"),"") ->  | R26: =ITA!R9 -> 
A27: =TRIM(ITA!O10) ->  | B27: News | C27: =IFERROR(PROPER(RTD("cqg.rtd", ,"ContractData",A27, "LongDescription",, "T"))&" ("&RIGHT(A27,LEN(A27)-5)&")","") ->  | H27: =IF(C27="","",IFERROR(RTD("cqg.rtd", ,"ContractData",A27, "LastTradeToday",, "T"),"")) ->  | I27: =IF(C27="","",IFERROR(RTD("cqg.rtd", ,"ContractData",A27, "NetLastTradeToday",, "T"),"")) ->  | J27: =IFERROR(RTD("cqg.rtd", ,"ContractData",A27, "PerCentNetLastTrade",, "T")/100,"") ->  | K27: =IFERROR(I27/RTD("cqg.rtd",,"StudyData",A27, "ATR", "MaType=Sim,Period=10", "ATR","D","-1","ALL",,,"FALSE","T")/100,"") ->  | L27: =IF(C27="","",IFERROR(RTD("cqg.rtd", ,"ContractData",A27, "OPen",, "T"),"")) ->  | M27: =IF(C27="","",IFERROR(RTD("cqg.rtd", ,"ContractData", A27, "HIgh",, "T"),"")) ->  | N27: =IF(C27="","",IFERROR(RTD("cqg.rtd", ,"ContractData",A27, "LOw",, "T"),"")) ->  | O27: =IF(C27="","",IFERROR(RTD("cqg.rtd", ,"ContractData",A27, "T_CVol",, "T"),"")) ->  | Q27: =IFERROR(O27/RTD("cqg.rtd",,"StudyData",A27, "MA", "InputChoice=Vol,MAType=Sim,Period=21", "MA","D","-1","all",,,,"T"),"") ->  | R27: =ITA!R10 ->  | S27: Bottom 15 Negative Performing Companies
A28: =TRIM(ITA!O11) ->  | B28: News | C28: =IFERROR(PROPER(RTD("cqg.rtd", ,"ContractData",A28, "LongDescription",, "T"))&" ("&RIGHT(A28,LEN(A28)-5)&")","") ->  | H28: =IF(C28="","",IFERROR(RTD("cqg.rtd", ,"ContractData",A28, "LastTradeToday",, "T"),"")) ->  | I28: =IF(C28="","",IFERROR(RTD("cqg.rtd", ,"ContractData",A28, "NetLastTradeToday",, "T"),"")) ->  | J28: =IFERROR(RTD("cqg.rtd", ,"ContractData",A28, "PerCentNetLastTrade",, "T")/100,"") ->  | K28: =IFERROR(I28/RTD("cqg.rtd",,"StudyData",A28, "ATR", "MaType=Sim,Period=10", "ATR","D","-1","ALL",,,"FALSE","T")/100,"") ->  | L28: =IF(C28="","",IFERROR(RTD("cqg.rtd", ,"ContractData",A28, "OPen",, "T"),"")) ->  | M28: =IF(C28="","",IFERROR(RTD("cqg.rtd", ,"ContractData", A28, "HIgh",, "T"),"")) ->  | N28: =IF(C28="","",IFERROR(RTD("cqg.rtd", ,"ContractData",A28, "LOw",, "T"),"")) ->  | O28: =IF(C28="","",IFERROR(RTD("cqg.rtd", ,"ContractData",A28, "T_CVol",, "T"),"")) ->  | Q28: =IFERROR(O28/RTD("cqg.rtd",,"StudyData",A28, "MA", "InputChoice=Vol,MAType=Sim,Period=21", "MA","D","-1","all",,,,"T"),"") ->  | R28: =ITA!R11 -> 
A29: =TRIM(ITA!O12) ->  | B29: News | C29: =IFERROR(PROPER(RTD("cqg.rtd", ,"ContractData",A29, "LongDescription",, "T"))&" ("&RIGHT(A29,LEN(A29)-5)&")","") ->  | H29: =IF(C29="","",IFERROR(RTD("cqg.rtd", ,"ContractData",A29, "LastTradeToday",, "T"),"")) ->  | I29: =IF(C29="","",IFERROR(RTD("cqg.rtd", ,"ContractData",A29, "NetLastTradeToday",, "T"),"")) ->  | J29: =IFERROR(RTD("cqg.rtd", ,"ContractData",A29, "PerCentNetLastTrade",, "T")/100,"") ->  | K29: =IFERROR(I29/RTD("cqg.rtd",,"StudyData",A29, "ATR", "MaType=Sim,Period=10", "ATR","D","-1","ALL",,,"FALSE","T")/100,"") ->  | L29: =IF(C29="","",IFERROR(RTD("cqg.rtd", ,"ContractData",A29, "OPen",, "T"),"")) ->  | M29: =IF(C29="","",IFERROR(RTD("cqg.rtd", ,"ContractData", A29, "HIgh",, "T"),"")) ->  | N29: =IF(C29="","",IFERROR(RTD("cqg.rtd", ,"ContractData",A29, "LOw",, "T"),"")) ->  | O29: =IF(C29="","",IFERROR(RTD("cqg.rtd", ,"ContractData",A29, "T_CVol",, "T"),"")) ->  | Q29: =IFERROR(O29/RTD("cqg.rtd",,"StudyData",A29, "MA", "InputChoice=Vol,MAType=Sim,Period=21", "MA","D","-1","all",,,,"T"),"") ->  | R29: =ITA!R12 -> 
A30: =TRIM(ITA!O13) ->  | B30: News | C30: =IFERROR(PROPER(RTD("cqg.rtd", ,"ContractData",A30, "LongDescription",, "T"))&" ("&RIGHT(A30,LEN(A30)-5)&")","") ->  | H30: =IF(C30="","",IFERROR(RTD("cqg.rtd", ,"ContractData",A30, "LastTradeToday",, "T"),"")) ->  | I30: =IF(C30="","",IFERROR(RTD("cqg.rtd", ,"ContractData",A30, "NetLastTradeToday",, "T"),"")) ->  | J30: =IFERROR(RTD("cqg.rtd", ,"ContractData",A30, "PerCentNetLastTrade",, "T")/100,"") ->  | K30: =IFERROR(I30/RTD("cqg.rtd",,"StudyData",A30, "ATR", "MaType=Sim,Period=10", "ATR","D","-1","ALL",,,"FALSE","T")/100,"") ->  | L30: =IF(C30="","",IFERROR(RTD("cqg.rtd", ,"ContractData",A30, "OPen",, "T"),"")) ->  | M30: =IF(C30="","",IFERROR(RTD("cqg.rtd", ,"ContractData", A30, "HIgh",, "T"),"")) ->  | N30: =IF(C30="","",IFERROR(RTD("cqg.rtd", ,"ContractData",A30, "LOw",, "T"),"")) ->  | O30: =IF(C30="","",IFERROR(RTD("cqg.rtd", ,"ContractData",A30, "T_CVol",, "T"),"")) ->  | Q30: =IFERROR(O30/RTD("cqg.rtd",,"StudyData",A30, "MA", "InputChoice=Vol,MAType=Sim,Period=21", "MA","D","-1","all",,,,"T"),"") ->  | R30: =ITA!R13 -> 
A31: =TRIM(ITA!O14) ->  | B31: News | C31: =IFERROR(PROPER(RTD("cqg.rtd", ,"ContractData",A31, "LongDescription",, "T"))&" ("&RIGHT(A31,LEN(A31)-5)&")","") ->  | H31: =IF(C31="","",IFERROR(RTD("cqg.rtd", ,"ContractData",A31, "LastTradeToday",, "T"),"")) ->  | I31: =IF(C31="","",IFERROR(RTD("cqg.rtd", ,"ContractData",A31, "NetLastTradeToday",, "T"),"")) ->  | J31: =IFERROR(RTD("cqg.rtd", ,"ContractData",A31, "PerCentNetLastTrade",, "T")/100,"") ->  | K31: =IFERROR(I31/RTD("cqg.rtd",,"StudyData",A31, "ATR", "MaType=Sim,Period=10", "ATR","D","-1","ALL",,,"FALSE","T")/100,"") ->  | L31: =IF(C31="","",IFERROR(RTD("cqg.rtd", ,"ContractData",A31, "OPen",, "T"),"")) ->  | M31: =IF(C31="","",IFERROR(RTD("cqg.rtd", ,"ContractData", A31, "HIgh",, "T"),"")) ->  | N31: =IF(C31="","",IFERROR(RTD("cqg.rtd", ,"ContractData",A31, "LOw",, "T"),"")) ->  | O31: =IF(C31="","",IFERROR(RTD("cqg.rtd", ,"ContractData",A31, "T_CVol",, "T"),"")) ->  | Q31: =IFERROR(O31/RTD("cqg.rtd",,"StudyData",A31, "MA", "InputChoice=Vol,MAType=Sim,Period=21", "MA","D","-1","all",,,,"T"),"") ->  | R31: =ITA!R14 -> 
A32: =TRIM(ITA!O15) ->  | B32: News | C32: =IFERROR(PROPER(RTD("cqg.rtd", ,"ContractData",A32, "LongDescription",, "T"))&" ("&RIGHT(A32,LEN(A32)-5)&")","") ->  | H32: =IF(C32="","",IFERROR(RTD("cqg.rtd", ,"ContractData",A32, "LastTradeToday",, "T"),"")) ->  | I32: =IF(C32="","",IFERROR(RTD("cqg.rtd", ,"ContractData",A32, "NetLastTradeToday",, "T"),"")) ->  | J32: =IFERROR(RTD("cqg.rtd", ,"ContractData",A32, "PerCentNetLastTrade",, "T")/100,"") ->  | K32: =IFERROR(I32/RTD("cqg.rtd",,"StudyData",A32, "ATR", "MaType=Sim,Period=10", "ATR","D","-1","ALL",,,"FALSE","T")/100,"") ->  | L32: =IF(C32="","",IFERROR(RTD("cqg.rtd", ,"ContractData",A32, "OPen",, "T"),"")) ->  | M32: =IF(C32="","",IFERROR(RTD("cqg.rtd", ,"ContractData", A32, "HIgh",, "T"),"")) ->  | N32: =IF(C32="","",IFERROR(RTD("cqg.rtd", ,"ContractData",A32, "LOw",, "T"),"")) ->  | O32: =IF(C32="","",IFERROR(RTD("cqg.rtd", ,"ContractData",A32, "T_CVol",, "T"),"")) ->  | Q32: =IFERROR(O32/RTD("cqg.rtd",,"StudyData",A32, "MA", "InputChoice=Vol,MAType=Sim,Period=21", "MA","D","-1","all",,,,"T"),"") ->  | R32: =ITA!R15 -> 
C33: Bottom 15 Description | H33: Last | I33: NC | J33: %NC | K33: NC/ATR | L33: Open | M33: High | N33: Low | O33: Volume | Q33: Ratio
A34: =TRIM(ITA!AC1) ->  | B34: News | C34: =IFERROR(PROPER(RTD("cqg.rtd", ,"ContractData",A34, "LongDescription",, "T"))&" ("&RIGHT(A34,LEN(A34)-5)&")","") ->  | H34: =IF(C34="","",IFERROR(RTD("cqg.rtd", ,"ContractData",A34, "LastTradeToday",, "T"),"")) ->  | I34: =IF(C34="","",IFERROR(RTD("cqg.rtd", ,"ContractData",A34, "NetLastTradeToday",, "T"),"")) ->  | J34: =IFERROR(RTD("cqg.rtd", ,"ContractData",A34, "PerCentNetLastTrade",, "T")/100,"") ->  | K34: =IFERROR(I34/RTD("cqg.rtd",,"StudyData",A34, "ATR", "MaType=Sim,Period=10", "ATR","D","-1","ALL",,,"FALSE","T")/100,"") ->  | L34: =IF(C34="","",IFERROR(RTD("cqg.rtd", ,"ContractData",A34, "OPen",, "T"),"")) ->  | M34: =IF(C34="","",IFERROR(RTD("cqg.rtd", ,"ContractData", A34, "HIgh",, "T"),"")) ->  | N34: =IF(C34="","",IFERROR(RTD("cqg.rtd", ,"ContractData",A34, "LOw",, "T"),"")) ->  | O34: =IF(C34="","",IFERROR(RTD("cqg.rtd", ,"ContractData",A34, "T_CVol",, "T"),"")) ->  | Q34: =IFERROR(O34/RTD("cqg.rtd",,"StudyData",A34, "MA", "InputChoice=Vol,MAType=Sim,Period=21", "MA","D","-1","all",,,,"T"),"") ->  | R34: =ITA!AH1 -> 
A35: =TRIM(ITA!AC2) ->  | B35: News | C35: =IFERROR(PROPER(RTD("cqg.rtd", ,"ContractData",A35, "LongDescription",, "T"))&" ("&RIGHT(A35,LEN(A35)-5)&")","") ->  | H35: =IF(C35="","",IFERROR(RTD("cqg.rtd", ,"ContractData",A35, "LastTradeToday",, "T"),"")) ->  | I35: =IF(C35="","",IFERROR(RTD("cqg.rtd", ,"ContractData",A35, "NetLastTradeToday",, "T"),"")) ->  | J35: =IFERROR(RTD("cqg.rtd", ,"ContractData",A35, "PerCentNetLastTrade",, "T")/100,"") ->  | K35: =IFERROR(I35/RTD("cqg.rtd",,"StudyData",A35, "ATR", "MaType=Sim,Period=10", "ATR","D","-1","ALL",,,"FALSE","T")/100,"") ->  | L35: =IF(C35="","",IFERROR(RTD("cqg.rtd", ,"ContractData",A35, "OPen",, "T"),"")) ->  | M35: =IF(C35="","",IFERROR(RTD("cqg.rtd", ,"ContractData", A35, "HIgh",, "T"),"")) ->  | N35: =IF(C35="","",IFERROR(RTD("cqg.rtd", ,"ContractData",A35, "LOw",, "T"),"")) ->  | O35: =IF(C35="","",IFERROR(RTD("cqg.rtd", ,"ContractData",A35, "T_CVol",, "T"),"")) ->  | Q35: =IFERROR(O35/RTD("cqg.rtd",,"StudyData",A35, "MA", "InputChoice=Vol,MAType=Sim,Period=21", "MA","D","-1","all",,,,"T"),"") ->  | R35: =ITA!AH2 -> 
A36: =TRIM(ITA!AC3) ->  | B36: News | C36: =IFERROR(PROPER(RTD("cqg.rtd", ,"ContractData",A36, "LongDescription",, "T"))&" ("&RIGHT(A36,LEN(A36)-5)&")","") ->  | H36: =IF(C36="","",IFERROR(RTD("cqg.rtd", ,"ContractData",A36, "LastTradeToday",, "T"),"")) ->  | I36: =IF(C36="","",IFERROR(RTD("cqg.rtd", ,"ContractData",A36, "NetLastTradeToday",, "T"),"")) ->  | J36: =IFERROR(RTD("cqg.rtd", ,"ContractData",A36, "PerCentNetLastTrade",, "T")/100,"") ->  | K36: =IFERROR(I36/RTD("cqg.rtd",,"StudyData",A36, "ATR", "MaType=Sim,Period=10", "ATR","D","-1","ALL",,,"FALSE","T")/100,"") ->  | L36: =IF(C36="","",IFERROR(RTD("cqg.rtd", ,"ContractData",A36, "OPen",, "T"),"")) ->  | M36: =IF(C36="","",IFERROR(RTD("cqg.rtd", ,"ContractData", A36, "HIgh",, "T"),"")) ->  | N36: =IF(C36="","",IFERROR(RTD("cqg.rtd", ,"ContractData",A36, "LOw",, "T"),"")) ->  | O36: =IF(C36="","",IFERROR(RTD("cqg.rtd", ,"ContractData",A36, "T_CVol",, "T"),"")) ->  | Q36: =IFERROR(O36/RTD("cqg.rtd",,"StudyData",A36, "MA", "InputChoice=Vol,MAType=Sim,Period=21", "MA","D","-1","all",,,,"T"),"") ->  | R36: =ITA!AH3 -> 
A37: =TRIM(ITA!AC4) ->  | B37: News | C37: =IFERROR(PROPER(RTD("cqg.rtd", ,"ContractData",A37, "LongDescription",, "T"))&" ("&RIGHT(A37,LEN(A37)-5)&")","") ->  | H37: =IF(C37="","",IFERROR(RTD("cqg.rtd", ,"ContractData",A37, "LastTradeToday",, "T"),"")) ->  | I37: =IF(C37="","",IFERROR(RTD("cqg.rtd", ,"ContractData",A37, "NetLastTradeToday",, "T"),"")) ->  | J37: =IFERROR(RTD("cqg.rtd", ,"ContractData",A37, "PerCentNetLastTrade",, "T")/100,"") ->  | K37: =IFERROR(I37/RTD("cqg.rtd",,"StudyData",A37, "ATR", "MaType=Sim,Period=10", "ATR","D","-1","ALL",,,"FALSE","T")/100,"") ->  | L37: =IF(C37="","",IFERROR(RTD("cqg.rtd", ,"ContractData",A37, "OPen",, "T"),"")) ->  | M37: =IF(C37="","",IFERROR(RTD("cqg.rtd", ,"ContractData", A37, "HIgh",, "T"),"")) ->  | N37: =IF(C37="","",IFERROR(RTD("cqg.rtd", ,"ContractData",A37, "LOw",, "T"),"")) ->  | O37: =IF(C37="","",IFERROR(RTD("cqg.rtd", ,"ContractData",A37, "T_CVol",, "T"),"")) ->  | Q37: =IFERROR(O37/RTD("cqg.rtd",,"StudyData",A37, "MA", "InputChoice=Vol,MAType=Sim,Period=21", "MA","D","-1","all",,,,"T"),"") ->  | R37: =ITA!AH4 -> 
A38: =TRIM(ITA!AC5) ->  | B38: News | C38: =IFERROR(PROPER(RTD("cqg.rtd", ,"ContractData",A38, "LongDescription",, "T"))&" ("&RIGHT(A38,LEN(A38)-5)&")","") ->  | H38: =IF(C38="","",IFERROR(RTD("cqg.rtd", ,"ContractData",A38, "LastTradeToday",, "T"),"")) ->  | I38: =IF(C38="","",IFERROR(RTD("cqg.rtd", ,"ContractData",A38, "NetLastTradeToday",, "T"),"")) ->  | J38: =IFERROR(RTD("cqg.rtd", ,"ContractData",A38, "PerCentNetLastTrade",, "T")/100,"") ->  | K38: =IFERROR(I38/RTD("cqg.rtd",,"StudyData",A38, "ATR", "MaType=Sim,Period=10", "ATR","D","-1","ALL",,,"FALSE","T")/100,"") ->  | L38: =IF(C38="","",IFERROR(RTD("cqg.rtd", ,"ContractData",A38, "OPen",, "T"),"")) ->  | M38: =IF(C38="","",IFERROR(RTD("cqg.rtd", ,"ContractData", A38, "HIgh",, "T"),"")) ->  | N38: =IF(C38="","",IFERROR(RTD("cqg.rtd", ,"ContractData",A38, "LOw",, "T"),"")) ->  | O38: =IF(C38="","",IFERROR(RTD("cqg.rtd", ,"ContractData",A38, "T_CVol",, "T"),"")) ->  | Q38: =IFERROR(O38/RTD("cqg.rtd",,"StudyData",A38, "MA", "InputChoice=Vol,MAType=Sim,Period=21", "MA","D","-1","all",,,,"T"),"") ->  | R38: =ITA!AH5 -> 
A39: =TRIM(ITA!AC6) ->  | B39: News | C39: =IFERROR(PROPER(RTD("cqg.rtd", ,"ContractData",A39, "LongDescription",, "T"))&" ("&RIGHT(A39,LEN(A39)-5)&")","") ->  | H39: =IF(C39="","",IFERROR(RTD("cqg.rtd", ,"ContractData",A39, "LastTradeToday",, "T"),"")) ->  | I39: =IF(C39="","",IFERROR(RTD("cqg.rtd", ,"ContractData",A39, "NetLastTradeToday",, "T"),"")) ->  | J39: =IFERROR(RTD("cqg.rtd", ,"ContractData",A39, "PerCentNetLastTrade",, "T")/100,"") ->  | K39: =IFERROR(I39/RTD("cqg.rtd",,"StudyData",A39, "ATR", "MaType=Sim,Period=10", "ATR","D","-1","ALL",,,"FALSE","T")/100,"") ->  | L39: =IF(C39="","",IFERROR(RTD("cqg.rtd", ,"ContractData",A39, "OPen",, "T"),"")) ->  | M39: =IF(C39="","",IFERROR(RTD("cqg.rtd", ,"ContractData", A39, "HIgh",, "T"),"")) ->  | N39: =IF(C39="","",IFERROR(RTD("cqg.rtd", ,"ContractData",A39, "LOw",, "T"),"")) ->  | O39: =IF(C39="","",IFERROR(RTD("cqg.rtd", ,"ContractData",A39, "T_CVol",, "T"),"")) ->  | Q39: =IFERROR(O39/RTD("cqg.rtd",,"StudyData",A39, "MA", "InputChoice=Vol,MAType=Sim,Period=21", "MA","D","-1","all",,,,"T"),"") ->  | R39: =ITA!AH6 -> 
A40: =TRIM(ITA!AC7) ->  | B40: News | C40: =IFERROR(PROPER(RTD("cqg.rtd", ,"ContractData",A40, "LongDescription",, "T"))&" ("&RIGHT(A40,LEN(A40)-5)&")","") ->  | H40: =IF(C40="","",IFERROR(RTD("cqg.rtd", ,"ContractData",A40, "LastTradeToday",, "T"),"")) ->  | I40: =IF(C40="","",IFERROR(RTD("cqg.rtd", ,"ContractData",A40, "NetLastTradeToday",, "T"),"")) ->  | J40: =IFERROR(RTD("cqg.rtd", ,"ContractData",A40, "PerCentNetLastTrade",, "T")/100,"") ->  | K40: =IFERROR(I40/RTD("cqg.rtd",,"StudyData",A40, "ATR", "MaType=Sim,Period=10", "ATR","D","-1","ALL",,,"FALSE","T")/100,"") ->  | L40: =IF(C40="","",IFERROR(RTD("cqg.rtd", ,"ContractData",A40, "OPen",, "T"),"")) ->  | M40: =IF(C40="","",IFERROR(RTD("cqg.rtd", ,"ContractData", A40, "HIgh",, "T"),"")) ->  | N40: =IF(C40="","",IFERROR(RTD("cqg.rtd", ,"ContractData",A40, "LOw",, "T"),"")) ->  | O40: =IF(C40="","",IFERROR(RTD("cqg.rtd", ,"ContractData",A40, "T_CVol",, "T"),"")) ->  | Q40: =IFERROR(O40/RTD("cqg.rtd",,"StudyData",A40, "MA", "InputChoice=Vol,MAType=Sim,Period=21", "MA","D","-1","all",,,,"T"),"") ->  | R40: =ITA!AH7 -> 
A41: =TRIM(ITA!AC8) ->  | B41: News | C41: =IFERROR(PROPER(RTD("cqg.rtd", ,"ContractData",A41, "LongDescription",, "T"))&" ("&RIGHT(A41,LEN(A41)-5)&")","") ->  | H41: =IF(C41="","",IFERROR(RTD("cqg.rtd", ,"ContractData",A41, "LastTradeToday",, "T"),"")) ->  | I41: =IF(C41="","",IFERROR(RTD("cqg.rtd", ,"ContractData",A41, "NetLastTradeToday",, "T"),"")) ->  | J41: =IFERROR(RTD("cqg.rtd", ,"ContractData",A41, "PerCentNetLastTrade",, "T")/100,"") ->  | K41: =IFERROR(I41/RTD("cqg.rtd",,"StudyData",A41, "ATR", "MaType=Sim,Period=10", "ATR","D","-1","ALL",,,"FALSE","T")/100,"") ->  | L41: =IF(C41="","",IFERROR(RTD("cqg.rtd", ,"ContractData",A41, "OPen",, "T"),"")) ->  | M41: =IF(C41="","",IFERROR(RTD("cqg.rtd", ,"ContractData", A41, "HIgh",, "T"),"")) ->  | N41: =IF(C41="","",IFERROR(RTD("cqg.rtd", ,"ContractData",A41, "LOw",, "T"),"")) ->  | O41: =IF(C41="","",IFERROR(RTD("cqg.rtd", ,"ContractData",A41, "T_CVol",, "T"),"")) ->  | Q41: =IFERROR(O41/RTD("cqg.rtd",,"StudyData",A41, "MA", "InputChoice=Vol,MAType=Sim,Period=21", "MA","D","-1","all",,,,"T"),"") ->  | R41: =ITA!AH8 -> 
A42: =TRIM(ITA!AC9) ->  | B42: News | C42: =IFERROR(PROPER(RTD("cqg.rtd", ,"ContractData",A42, "LongDescription",, "T"))&" ("&RIGHT(A42,LEN(A42)-5)&")","") ->  | H42: =IF(C42="","",IFERROR(RTD("cqg.rtd", ,"ContractData",A42, "LastTradeToday",, "T"),"")) ->  | I42: =IF(C42="","",IFERROR(RTD("cqg.rtd", ,"ContractData",A42, "NetLastTradeToday",, "T"),"")) ->  | J42: =IFERROR(RTD("cqg.rtd", ,"ContractData",A42, "PerCentNetLastTrade",, "T")/100,"") ->  | K42: =IFERROR(I42/RTD("cqg.rtd",,"StudyData",A42, "ATR", "MaType=Sim,Period=10", "ATR","D","-1","ALL",,,"FALSE","T")/100,"") ->  | L42: =IF(C42="","",IFERROR(RTD("cqg.rtd", ,"ContractData",A42, "OPen",, "T"),"")) ->  | M42: =IF(C42="","",IFERROR(RTD("cqg.rtd", ,"ContractData", A42, "HIgh",, "T"),"")) ->  | N42: =IF(C42="","",IFERROR(RTD("cqg.rtd", ,"ContractData",A42, "LOw",, "T"),"")) ->  | O42: =IF(C42="","",IFERROR(RTD("cqg.rtd", ,"ContractData",A42, "T_CVol",, "T"),"")) ->  | Q42: =IFERROR(O42/RTD("cqg.rtd",,"StudyData",A42, "MA", "InputChoice=Vol,MAType=Sim,Period=21", "MA","D","-1","all",,,,"T"),"") ->  | R42: =ITA!AH9 -> 
A43: =TRIM(ITA!AC10) ->  | B43: News | C43: =IFERROR(PROPER(RTD("cqg.rtd", ,"ContractData",A43, "LongDescription",, "T"))&" ("&RIGHT(A43,LEN(A43)-5)&")","") ->  | H43: =IF(C43="","",IFERROR(RTD("cqg.rtd", ,"ContractData",A43, "LastTradeToday",, "T"),"")) ->  | I43: =IF(C43="","",IFERROR(RTD("cqg.rtd", ,"ContractData",A43, "NetLastTradeToday",, "T"),"")) ->  | J43: =IFERROR(RTD("cqg.rtd", ,"ContractData",A43, "PerCentNetLastTrade",, "T")/100,"") ->  | K43: =IFERROR(I43/RTD("cqg.rtd",,"StudyData",A43, "ATR", "MaType=Sim,Period=10", "ATR","D","-1","ALL",,,"FALSE","T")/100,"") ->  | L43: =IF(C43="","",IFERROR(RTD("cqg.rtd", ,"ContractData",A43, "OPen",, "T"),"")) ->  | M43: =IF(C43="","",IFERROR(RTD("cqg.rtd", ,"ContractData", A43, "HIgh",, "T"),"")) ->  | N43: =IF(C43="","",IFERROR(RTD("cqg.rtd", ,"ContractData",A43, "LOw",, "T"),"")) ->  | O43: =IF(C43="","",IFERROR(RTD("cqg.rtd", ,"ContractData",A43, "T_CVol",, "T"),"")) ->  | Q43: =IFERROR(O43/RTD("cqg.rtd",,"StudyData",A43, "MA", "InputChoice=Vol,MAType=Sim,Period=21", "MA","D","-1","all",,,,"T"),"") ->  | R43: =ITA!AH10 -> 
A44: =TRIM(ITA!AC11) ->  | B44: News | C44: =IFERROR(PROPER(RTD("cqg.rtd", ,"ContractData",A44, "LongDescription",, "T"))&" ("&RIGHT(A44,LEN(A44)-5)&")","") ->  | H44: =IF(C44="","",IFERROR(RTD("cqg.rtd", ,"ContractData",A44, "LastTradeToday",, "T"),"")) ->  | I44: =IF(C44="","",IFERROR(RTD("cqg.rtd", ,"ContractData",A44, "NetLastTradeToday",, "T"),"")) ->  | J44: =IFERROR(RTD("cqg.rtd", ,"ContractData",A44, "PerCentNetLastTrade",, "T")/100,"") ->  | K44: =IFERROR(I44/RTD("cqg.rtd",,"StudyData",A44, "ATR", "MaType=Sim,Period=10", "ATR","D","-1","ALL",,,"FALSE","T")/100,"") ->  | L44: =IF(C44="","",IFERROR(RTD("cqg.rtd", ,"ContractData",A44, "OPen",, "T"),"")) ->  | M44: =IF(C44="","",IFERROR(RTD("cqg.rtd", ,"ContractData", A44, "HIgh",, "T"),"")) ->  | N44: =IF(C44="","",IFERROR(RTD("cqg.rtd", ,"ContractData",A44, "LOw",, "T"),"")) ->  | O44: =IF(C44="","",IFERROR(RTD("cqg.rtd", ,"ContractData",A44, "T_CVol",, "T"),"")) ->  | Q44: =IFERROR(O44/RTD("cqg.rtd",,"StudyData",A44, "MA", "InputChoice=Vol,MAType=Sim,Period=21", "MA","D","-1","all",,,,"T"),"") ->  | R44: =ITA!AH11 -> 
A45: =TRIM(ITA!AC12) ->  | B45: News | C45: =IFERROR(PROPER(RTD("cqg.rtd", ,"ContractData",A45, "LongDescription",, "T"))&" ("&RIGHT(A45,LEN(A45)-5)&")","") ->  | H45: =IF(C45="","",IFERROR(RTD("cqg.rtd", ,"ContractData",A45, "LastTradeToday",, "T"),"")) ->  | I45: =IF(C45="","",IFERROR(RTD("cqg.rtd", ,"ContractData",A45, "NetLastTradeToday",, "T"),"")) ->  | J45: =IFERROR(RTD("cqg.rtd", ,"ContractData",A45, "PerCentNetLastTrade",, "T")/100,"") ->  | K45: =IFERROR(I45/RTD("cqg.rtd",,"StudyData",A45, "ATR", "MaType=Sim,Period=10", "ATR","D","-1","ALL",,,"FALSE","T")/100,"") ->  | L45: =IF(C45="","",IFERROR(RTD("cqg.rtd", ,"ContractData",A45, "OPen",, "T"),"")) ->  | M45: =IF(C45="","",IFERROR(RTD("cqg.rtd", ,"ContractData", A45, "HIgh",, "T"),"")) ->  | N45: =IF(C45="","",IFERROR(RTD("cqg.rtd", ,"ContractData",A45, "LOw",, "T"),"")) ->  | O45: =IF(C45="","",IFERROR(RTD("cqg.rtd", ,"ContractData",A45, "T_CVol",, "T"),"")) ->  | Q45: =IFERROR(O45/RTD("cqg.rtd",,"StudyData",A45, "MA", "InputChoice=Vol,MAType=Sim,Period=21", "MA","D","-1","all",,,,"T"),"") ->  | R45: =ITA!AH12 -> 
A46: =TRIM(ITA!AC13) ->  | B46: News | C46: =IFERROR(PROPER(RTD("cqg.rtd", ,"ContractData",A46, "LongDescription",, "T"))&" ("&RIGHT(A46,LEN(A46)-5)&")","") ->  | H46: =IF(C46="","",IFERROR(RTD("cqg.rtd", ,"ContractData",A46, "LastTradeToday",, "T"),"")) ->  | I46: =IF(C46="","",IFERROR(RTD("cqg.rtd", ,"ContractData",A46, "NetLastTradeToday",, "T"),"")) ->  | J46: =IFERROR(RTD("cqg.rtd", ,"ContractData",A46, "PerCentNetLastTrade",, "T")/100,"") ->  | K46: =IFERROR(I46/RTD("cqg.rtd",,"StudyData",A46, "ATR", "MaType=Sim,Period=10", "ATR","D","-1","ALL",,,"FALSE","T")/100,"") ->  | L46: =IF(C46="","",IFERROR(RTD("cqg.rtd", ,"ContractData",A46, "OPen",, "T"),"")) ->  | M46: =IF(C46="","",IFERROR(RTD("cqg.rtd", ,"ContractData", A46, "HIgh",, "T"),"")) ->  | N46: =IF(C46="","",IFERROR(RTD("cqg.rtd", ,"ContractData",A46, "LOw",, "T"),"")) ->  | O46: =IF(C46="","",IFERROR(RTD("cqg.rtd", ,"ContractData",A46, "T_CVol",, "T"),"")) ->  | Q46: =IFERROR(O46/RTD("cqg.rtd",,"StudyData",A46, "MA", "InputChoice=Vol,MAType=Sim,Period=21", "MA","D","-1","all",,,,"T"),"") ->  | R46: =ITA!AH13 -> 
A47: =TRIM(ITA!AC14) ->  | B47: News | C47: =IFERROR(PROPER(RTD("cqg.rtd", ,"ContractData",A47, "LongDescription",, "T"))&" ("&RIGHT(A47,LEN(A47)-5)&")","") ->  | H47: =IF(C47="","",IFERROR(RTD("cqg.rtd", ,"ContractData",A47, "LastTradeToday",, "T"),"")) ->  | I47: =IF(C47="","",IFERROR(RTD("cqg.rtd", ,"ContractData",A47, "NetLastTradeToday",, "T"),"")) ->  | J47: =IFERROR(RTD("cqg.rtd", ,"ContractData",A47, "PerCentNetLastTrade",, "T")/100,"") ->  | K47: =IFERROR(I47/RTD("cqg.rtd",,"StudyData",A47, "ATR", "MaType=Sim,Period=10", "ATR","D","-1","ALL",,,"FALSE","T")/100,"") ->  | L47: =IF(C47="","",IFERROR(RTD("cqg.rtd", ,"ContractData",A47, "OPen",, "T"),"")) ->  | M47: =IF(C47="","",IFERROR(RTD("cqg.rtd", ,"ContractData", A47, "HIgh",, "T"),"")) ->  | N47: =IF(C47="","",IFERROR(RTD("cqg.rtd", ,"ContractData",A47, "LOw",, "T"),"")) ->  | O47: =IF(C47="","",IFERROR(RTD("cqg.rtd", ,"ContractData",A47, "T_CVol",, "T"),"")) ->  | Q47: =IFERROR(O47/RTD("cqg.rtd",,"StudyData",A47, "MA", "InputChoice=Vol,MAType=Sim,Period=21", "MA","D","-1","all",,,,"T"),"") ->  | R47: =ITA!AH14 -> 
A48: =TRIM(ITA!AC15) ->  | B48: News | C48: =IFERROR(PROPER(RTD("cqg.rtd", ,"ContractData",A48, "LongDescription",, "T"))&" ("&RIGHT(A48,LEN(A48)-5)&")","") ->  | H48: =IF(C48="","",IFERROR(RTD("cqg.rtd", ,"ContractData",A48, "LastTradeToday",, "T"),"")) ->  | I48: =IF(C48="","",IFERROR(RTD("cqg.rtd", ,"ContractData",A48, "NetLastTradeToday",, "T"),"")) ->  | J48: =IFERROR(RTD("cqg.rtd", ,"ContractData",A48, "PerCentNetLastTrade",, "T")/100,"") ->  | K48: =IFERROR(I48/RTD("cqg.rtd",,"StudyData",A48, "ATR", "MaType=Sim,Period=10", "ATR","D","-1","ALL",,,"FALSE","T")/100,"") ->  | L48: =IF(C48="","",IFERROR(RTD("cqg.rtd", ,"ContractData",A48, "OPen",, "T"),"")) ->  | M48: =IF(C48="","",IFERROR(RTD("cqg.rtd", ,"ContractData", A48, "HIgh",, "T"),"")) ->  | N48: =IF(C48="","",IFERROR(RTD("cqg.rtd", ,"ContractData",A48, "LOw",, "T"),"")) ->  | O48: =IF(C48="","",IFERROR(RTD("cqg.rtd", ,"ContractData",A48, "T_CVol",, "T"),"")) ->  | Q48: =IFERROR(O48/RTD("cqg.rtd",,"StudyData",A48, "MA", "InputChoice=Vol,MAType=Sim,Period=21", "MA","D","-1","all",,,,"T"),"") ->  | R48: =ITA!AH15 -> 
B49: CQG Inc., Copyright © 2026 Designed by Thom Hartle | H49: From their website: "Exposure to U.S. companies that manufacture commercial and military aircrafts and other defense equipment." | Z49: =Z52 -> 100% of the stocks in the ETF are higher today
Z51: =ITA!B351 -> 1 | AA51: of the stocks in the ETF are higher today
Z52: =TEXT(Display!Z51,"0%")&" "&Display!AA51 -> 100% of the stocks in the ETF are higher today

Sheet ITA (hidden)
A1: =IF(Symbols!A1="","",Symbols!A1) -> S.US.ACHR | B1: =IF(A1="","",IF(J1>0,1,0)) -> 1 | C1: =A1 -> S.US.ACHR | D1: =IF(A1="","",RTD("cqg.rtd", ,"ContractData",C1, "LongDescription",, "T")) -> Archer Aviation Inc | F1: =("$J$"&"1"&":$J$"&A351) -> $J$1:$J$41 | H1: =IF(A1="","",RTD("cqg.rtd", ,"ContractData",C1, "LastTradeToday",, "T")) ->  | I1: =IF(A1="","",RTD("cqg.rtd", ,"ContractData",C1, "NetLastTradeToday",, "T")) ->  | J1: =IF(A1="","",IFERROR(RTD("cqg.rtd", ,"ContractData",C1, "PerCentNetLastTrade",, "T")/100,"")) ->  | K1: =IF(A1="","",RTD("cqg.rtd", ,"ContractData", C1, "T_CVol",, "T")) -> 70459 | L1: 1 | M1: =IFERROR(RANK($J1,INDIRECT(("$J$"&"1"&":$J$"&$A$351)))+COUNTIF($J$1:J1,J1)-1,"") ->  | N1: =C1 -> S.US.ACHR | O1: =IFERROR(VLOOKUP($L1,$M$1:$N$350,2,FALSE),"") ->  | P1: =IF(O1="","",RTD("cqg.rtd", ,"ContractData",O1, "LongDescription",, "T")) ->  | Q1: =IFERROR(RTD("cqg.rtd", ,"ContractData",O1, "PerCentNetLastTrade",, "T")/100,"") ->  | R1: =IFERROR("https://finance.yahoo.com/quote/"&RIGHT(O1,(LEN(O1)-5)),"") ->  | T1: =IF(Q1>=0,Q1,NA()) ->  | U1: =IFERROR(IF(Q1>=0,NA(),-1*Q1),"") ->  | W1: =IF(Q1="","",IF(Q1<0,"",IFERROR(PROPER(RTD("cqg.rtd", ,"ContractData",O1, "LongDescription",, "T")),""))) ->  | Z1: =IF(W1="","",IFERROR(T1,Q1)) ->  | AA1: =MIN(J1:J350) -> 0 | AB1: =IFERROR(VLOOKUP(AA1,J1:O350,4,FALSE),"") ->  | AC1: =IF(AB1="","",VLOOKUP($AB1,$M$1:$N$350,2,FALSE)) ->  | AD1: =IF(RTD("cqg.rtd", ,"ContractData",AC1, "PerCentNetLastTrade",, "T")>0,"",IFERROR(RTD("cqg.rtd", ,"ContractData",AC1, "PerCentNetLastTrade",, "T")/100,"")) ->  | AE1: =IF(AD1>0,"",IFERROR(PROPER(RTD("cqg.rtd", ,"ContractData",AC1, "LongDescription",, "T")),"")) ->  | AF1: ="" ->  | AG1: =IF(AD1>0,"",IFERROR(AD1*-1,"")) ->  | AH1: =IFERROR("https://finance.yahoo.com/quote/"&RIGHT(AC1,(LEN(AC1)-5)),"") -> 
A2: =IF(Symbols!A2="","",Symbols!A2) -> S.US.AIR | B2: =IF(A2="","",IF(J2>0,1,0)) -> 1 | C2: =A2 -> S.US.AIR | D2: =IF(A2="","",RTD("cqg.rtd", ,"ContractData",C2, "LongDescription",, "T")) -> AAR Corporation | H2: =IF(A2="","",RTD("cqg.rtd", ,"ContractData",C2, "LastTradeToday",, "T")) ->  | I2: =IF(A2="","",RTD("cqg.rtd", ,"ContractData",C2, "NetLastTradeToday",, "T")) ->  | J2: =IF(A2="","",IFERROR(RTD("cqg.rtd", ,"ContractData",C2, "PerCentNetLastTrade",, "T")/100,"")) ->  | K2: =IF(A2="","",RTD("cqg.rtd", ,"ContractData", C2, "T_CVol",, "T")) -> 401 | L2: =L1+1 -> 2 | M2: =IFERROR(RANK($J2,INDIRECT(("$J$"&"1"&":$J$"&$A$351)))+COUNTIF($J$1:J2,J2)-1,"") ->  | N2: =C2 -> S.US.AIR | O2: =IFERROR(VLOOKUP($L2,$M$1:$N$350,2,FALSE),"") ->  | P2: =IF(O2="","",RTD("cqg.rtd", ,"ContractData",O2, "LongDescription",, "T")) ->  | Q2: =IFERROR(RTD("cqg.rtd", ,"ContractData",O2, "PerCentNetLastTrade",, "T")/100,"") ->  | R2: =IFERROR("https://finance.yahoo.com/quote/"&RIGHT(O2,(LEN(O2)-5)),"") ->  | T2: =IF(Q2>=0,Q2,NA()) ->  | U2: =IFERROR(IF(Q2>=0,NA(),-1*Q2),"") ->  | W2: =IF(Q2="","",IF(Q2<0,"",IFERROR(PROPER(RTD("cqg.rtd", ,"ContractData",O2, "LongDescription",, "T")),""))) ->  | Z2: =IF(W2="","",IFERROR(T2,Q2)) ->  | AB2: =IFERROR(AB1-1,"") ->  | AC2: =IF(AB2="","",VLOOKUP($AB2,$M$1:$N$350,2,FALSE)) ->  | AD2: =IF(RTD("cqg.rtd", ,"ContractData",AC2, "PerCentNetLastTrade",, "T")>0,"",IFERROR(RTD("cqg.rtd", ,"ContractData",AC2, "PerCentNetLastTrade",, "T")/100,"")) ->  | AE2: =IF(AD2>0,"",IFERROR(PROPER(RTD("cqg.rtd", ,"ContractData",AC2, "LongDescription",, "T")),"")) ->  | AF2: ="" ->  | AG2: =IF(AD2>0,"",IFERROR(AD2*-1,"")) ->  | AH2: =IFERROR("https://finance.yahoo.com/quote/"&RIGHT(AC2,(LEN(AC2)-5)),"") -> 
A3: =IF(Symbols!A3="","",Symbols!A3) -> S.US.ATI | B3: 1 | C3: S.US.ATI | D3: =IF(A3="","",RTD("cqg.rtd", ,"ContractData",C3, "LongDescription",, "T")) -> ATI Inc. | H3: =IF(A3="","",RTD("cqg.rtd", ,"ContractData",C3, "LastTradeToday",, "T")) ->  | I3: =IF(A3="","",RTD("cqg.rtd", ,"ContractData",C3, "NetLastTradeToday",, "T")) ->  | J3: =IF(A3="","",IFERROR(RTD("cqg.rtd", ,"ContractData",C3, "PerCentNetLastTrade",, "T")/100,"")) ->  | K3: =IF(A3="","",RTD("cqg.rtd", ,"ContractData", C3, "T_CVol",, "T")) -> 137 | L3: =L2+1 -> 3 | M3: =IFERROR(RANK($J3,INDIRECT(("$J$"&"1"&":$J$"&$A$351)))+COUNTIF($J$1:J3,J3)-1,"") ->  | N3: S.US.ATI | P3: =IF(O3="","",RTD("cqg.rtd", ,"ContractData",O3, "LongDescription",, "T")) ->  | Q3: =IFERROR(RTD("cqg.rtd", ,"ContractData",O3, "PerCentNetLastTrade",, "T")/100,"") ->  | W3: =IF(Q3="","",IF(Q3<0,"",IFERROR(PROPER(RTD("cqg.rtd", ,"ContractData",O3, "LongDescription",, "T")),""))) ->  | AB3: =IFERROR(AB2-1,"") ->  | AD3: =IF(RTD("cqg.rtd", ,"ContractData",AC3, "PerCentNetLastTrade",, "T")>0,"",IFERROR(RTD("cqg.rtd", ,"ContractData",AC3, "PerCentNetLastTrade",, "T")/100,"")) ->  | AE3: =IF(AD3>0,"",IFERROR(PROPER(RTD("cqg.rtd", ,"ContractData",AC3, "LongDescription",, "T")),"")) ->  | AF3: ="" -> 
A4: =IF(Symbols!A4="","",Symbols!A4) -> S.US.ATRO | B4: 1 | C4: S.US.ATRO | D4: =IF(A4="","",RTD("cqg.rtd", ,"ContractData",C4, "LongDescription",, "T")) -> ASTRONICS CP ## | H4: =IF(A4="","",RTD("cqg.rtd", ,"ContractData",C4, "LastTradeToday",, "T")) ->  | I4: =IF(A4="","",RTD("cqg.rtd", ,"ContractData",C4, "NetLastTradeToday",, "T")) ->  | J4: =IF(A4="","",IFERROR(RTD("cqg.rtd", ,"ContractData",C4, "PerCentNetLastTrade",, "T")/100,"")) ->  | K4: =IF(A4="","",RTD("cqg.rtd", ,"ContractData", C4, "T_CVol",, "T")) -> 1726 | L4: 4 | M4: =IFERROR(RANK($J4,INDIRECT(("$J$"&"1"&":$J$"&$A$351)))+COUNTIF($J$1:J4,J4)-1,"") ->  | N4: S.US.ATRO | P4: =IF(O4="","",RTD("cqg.rtd", ,"ContractData",O4, "LongDescription",, "T")) ->  | Q4: =IFERROR(RTD("cqg.rtd", ,"ContractData",O4, "PerCentNetLastTrade",, "T")/100,"") ->  | W4: =IF(Q4="","",IF(Q4<0,"",IFERROR(PROPER(RTD("cqg.rtd", ,"ContractData",O4, "LongDescription",, "T")),""))) ->  | AD4: =IF(RTD("cqg.rtd", ,"ContractData",AC4, "PerCentNetLastTrade",, "T")>0,"",IFERROR(RTD("cqg.rtd", ,"ContractData",AC4, "PerCentNetLastTrade",, "T")/100,"")) ->  | AE4: =IF(AD4>0,"",IFERROR(PROPER(RTD("cqg.rtd", ,"ContractData",AC4, "LongDescription",, "T")),"")) ->  | AF4: ="" -> 
A5: =IF(Symbols!A5="","",Symbols!A5) -> S.US.AVAV | B5: 1 | C5: S.US.AVAV | D5: =IF(A5="","",RTD("cqg.rtd", ,"ContractData",C5, "LongDescription",, "T")) -> AEROVIRONMENT, INC. | H5: =IF(A5="","",RTD("cqg.rtd", ,"ContractData",C5, "LastTradeToday",, "T")) ->  | I5: =IF(A5="","",RTD("cqg.rtd", ,"ContractData",C5, "NetLastTradeToday",, "T")) ->  | J5: =IF(A5="","",IFERROR(RTD("cqg.rtd", ,"ContractData",C5, "PerCentNetLastTrade",, "T")/100,"")) ->  | K5: =IF(A5="","",RTD("cqg.rtd", ,"ContractData", C5, "T_CVol",, "T")) -> 7367 | L5: 5 | M5: =IFERROR(RANK($J5,INDIRECT(("$J$"&"1"&":$J$"&$A$351)))+COUNTIF($J$1:J5,J5)-1,"") ->  | N5: S.US.AVAV | P5: =IF(O5="","",RTD("cqg.rtd", ,"ContractData",O5, "LongDescription",, "T")) ->  | Q5: =IFERROR(RTD("cqg.rtd", ,"ContractData",O5, "PerCentNetLastTrade",, "T")/100,"") ->  | W5: =IF(Q5="","",IF(Q5<0,"",IFERROR(PROPER(RTD("cqg.rtd", ,"ContractData",O5, "LongDescription",, "T")),""))) ->  | AD5: =IF(RTD("cqg.rtd", ,"ContractData",AC5, "PerCentNetLastTrade",, "T")>0,"",IFERROR(RTD("cqg.rtd", ,"ContractData",AC5, "PerCentNetLastTrade",, "T")/100,"")) ->  | AE5: =IF(AD5>0,"",IFERROR(PROPER(RTD("cqg.rtd", ,"ContractData",AC5, "LongDescription",, "T")),"")) ->  | AF5: ="" -> 
A6: =IF(Symbols!A6="","",Symbols!A6) -> S.US.AXON | B6: 1 | C6: S.US.AXON | D6: =IF(A6="","",RTD("cqg.rtd", ,"ContractData",C6, "LongDescription",, "T")) -> AXON ENTERPRISE, INC | H6: =IF(A6="","",RTD("cqg.rtd", ,"ContractData",C6, "LastTradeToday",, "T")) ->  | I6: =IF(A6="","",RTD("cqg.rtd", ,"ContractData",C6, "NetLastTradeToday",, "T")) ->  | J6: =IF(A6="","",IFERROR(RTD("cqg.rtd", ,"ContractData",C6, "PerCentNetLastTrade",, "T")/100,"")) ->  | K6: =IF(A6="","",RTD("cqg.rtd", ,"ContractData", C6, "T_CVol",, "T")) -> 401 | L6: 6 | M6: =IFERROR(RANK($J6,INDIRECT(("$J$"&"1"&":$J$"&$A$351)))+COUNTIF($J$1:J6,J6)-1,"") ->  | N6: S.US.AXON | P6: =IF(O6="","",RTD("cqg.rtd", ,"ContractData",O6, "LongDescription",, "T")) ->  | Q6: =IFERROR(RTD("cqg.rtd", ,"ContractData",O6, "PerCentNetLastTrade",, "T")/100,"") ->  | W6: =IF(Q6="","",IF(Q6<0,"",IFERROR(PROPER(RTD("cqg.rtd", ,"ContractData",O6, "LongDescription",, "T")),""))) ->  | AD6: =IF(RTD("cqg.rtd", ,"ContractData",AC6, "PerCentNetLastTrade",, "T")>0,"",IFERROR(RTD("cqg.rtd", ,"ContractData",AC6, "PerCentNetLastTrade",, "T")/100,"")) ->  | AE6: =IF(AD6>0,"",IFERROR(PROPER(RTD("cqg.rtd", ,"ContractData",AC6, "LongDescription",, "T")),"")) ->  | AF6: ="" -> 
A7: =IF(Symbols!A7="","",Symbols!A7) -> S.US.BA | B7: 1 | C7: S.US.BA | D7: =IF(A7="","",RTD("cqg.rtd", ,"ContractData",C7, "LongDescription",, "T")) -> Boeing Company | H7: =IF(A7="","",RTD("cqg.rtd", ,"ContractData",C7, "LastTradeToday",, "T")) ->  | I7: =IF(A7="","",RTD("cqg.rtd", ,"ContractData",C7, "NetLastTradeToday",, "T")) ->  | J7: =IF(A7="","",IFERROR(RTD("cqg.rtd", ,"ContractData",C7, "PerCentNetLastTrade",, "T")/100,"")) ->  | K7: =IF(A7="","",RTD("cqg.rtd", ,"ContractData", C7, "T_CVol",, "T")) -> 8846 | L7: 7 | M7: =IFERROR(RANK($J7,INDIRECT(("$J$"&"1"&":$J$"&$A$351)))+COUNTIF($J$1:J7,J7)-1,"") ->  | N7: S.US.BA | P7: =IF(O7="","",RTD("cqg.rtd", ,"ContractData",O7, "LongDescription",, "T")) ->  | Q7: =IFERROR(RTD("cqg.rtd", ,"ContractData",O7, "PerCentNetLastTrade",, "T")/100,"") ->  | W7: =IF(Q7="","",IF(Q7<0,"",IFERROR(PROPER(RTD("cqg.rtd", ,"ContractData",O7, "LongDescription",, "T")),""))) ->  | AD7: =IF(RTD("cqg.rtd", ,"ContractData",AC7, "PerCentNetLastTrade",, "T")>0,"",IFERROR(RTD("cqg.rtd", ,"ContractData",AC7, "PerCentNetLastTrade",, "T")/100,"")) ->  | AE7: =IF(AD7>0,"",IFERROR(PROPER(RTD("cqg.rtd", ,"ContractData",AC7, "LongDescription",, "T")),"")) ->  | AF7: ="" -> 
A8: =IF(Symbols!A8="","",Symbols!A8) -> S.US.BWXT | B8: 1 | C8: S.US.BWXT | D8: =IF(A8="","",RTD("cqg.rtd", ,"ContractData",C8, "LongDescription",, "T")) -> BWX Technologies, Inc. | H8: =IF(A8="","",RTD("cqg.rtd", ,"ContractData",C8, "LastTradeToday",, "T")) ->  | I8: =IF(A8="","",RTD("cqg.rtd", ,"ContractData",C8, "NetLastTradeToday",, "T")) ->  | J8: =IF(A8="","",IFERROR(RTD("cqg.rtd", ,"ContractData",C8, "PerCentNetLastTrade",, "T")/100,"")) ->  | K8: =IF(A8="","",RTD("cqg.rtd", ,"ContractData", C8, "T_CVol",, "T")) -> 1814 | L8: 8 | M8: =IFERROR(RANK($J8,INDIRECT(("$J$"&"1"&":$J$"&$A$351)))+COUNTIF($J$1:J8,J8)-1,"") ->  | N8: S.US.BWXT | P8: =IF(O8="","",RTD("cqg.rtd", ,"ContractData",O8, "LongDescription",, "T")) ->  | Q8: =IFERROR(RTD("cqg.rtd", ,"ContractData",O8, "PerCentNetLastTrade",, "T")/100,"") ->  | W8: =IF(Q8="","",IF(Q8<0,"",IFERROR(PROPER(RTD("cqg.rtd", ,"ContractData",O8, "LongDescription",, "T")),""))) ->  | AD8: =IF(RTD("cqg.rtd", ,"ContractData",AC8, "PerCentNetLastTrade",, "T")>0,"",IFERROR(RTD("cqg.rtd", ,"ContractData",AC8, "PerCentNetLastTrade",, "T")/100,"")) ->  | AE8: =IF(AD8>0,"",IFERROR(PROPER(RTD("cqg.rtd", ,"ContractData",AC8, "LongDescription",, "T")),"")) ->  | AF8: ="" -> 
A9: =IF(Symbols!A9="","",Symbols!A9) -> S.US.CDRE | B9: 1 | C9: S.US.CDRE | D9: =IF(A9="","",RTD("cqg.rtd", ,"ContractData",C9, "LongDescription",, "T")) -> Cadre Holdings, Inc. | H9: =IF(A9="","",RTD("cqg.rtd", ,"ContractData",C9, "LastTradeToday",, "T")) ->  | I9: =IF(A9="","",RTD("cqg.rtd", ,"ContractData",C9, "NetLastTradeToday",, "T")) ->  | J9: =IF(A9="","",IFERROR(RTD("cqg.rtd", ,"ContractData",C9, "PerCentNetLastTrade",, "T")/100,"")) ->  | K9: =IF(A9="","",RTD("cqg.rtd", ,"ContractData", C9, "T_CVol",, "T")) -> 119 | L9: 9 | M9: =IFERROR(RANK($J9,INDIRECT(("$J$"&"1"&":$J$"&$A$351)))+COUNTIF($J$1:J9,J9)-1,"") ->  | N9: S.US.CDRE | P9: =IF(O9="","",RTD("cqg.rtd", ,"ContractData",O9, "LongDescription",, "T")) ->  | Q9: =IFERROR(RTD("cqg.rtd", ,"ContractData",O9, "PerCentNetLastTrade",, "T")/100,"") ->  | W9: =IF(Q9="","",IF(Q9<0,"",IFERROR(PROPER(RTD("cqg.rtd", ,"ContractData",O9, "LongDescription",, "T")),""))) ->  | AD9: =IF(RTD("cqg.rtd", ,"ContractData",AC9, "PerCentNetLastTrade",, "T")>0,"",IFERROR(RTD("cqg.rtd", ,"ContractData",AC9, "PerCentNetLastTrade",, "T")/100,"")) ->  | AE9: =IF(AD9>0,"",IFERROR(PROPER(RTD("cqg.rtd", ,"ContractData",AC9, "LongDescription",, "T")),"")) ->  | AF9: ="" -> 
A10: =IF(Symbols!A10="","",Symbols!A10) -> S.US.CRS | B10: 1 | C10: S.US.CRS | D10: =IF(A10="","",RTD("cqg.rtd", ,"ContractData",C10, "LongDescription",, "T")) -> Carpenter Technology Corp | H10: =IF(A10="","",RTD("cqg.rtd", ,"ContractData",C10, "LastTradeToday",, "T")) ->  | I10: =IF(A10="","",RTD("cqg.rtd", ,"ContractData",C10, "NetLastTradeToday",, "T")) ->  | J10: =IF(A10="","",IFERROR(RTD("cqg.rtd", ,"ContractData",C10, "PerCentNetLastTrade",, "T")/100,"")) ->  | K10: =IF(A10="","",RTD("cqg.rtd", ,"ContractData", C10, "T_CVol",, "T")) -> 517 | L10: 10 | M10: =IFERROR(RANK($J10,INDIRECT(("$J$"&"1"&":$J$"&$A$351)))+COUNTIF($J$1:J10,J10)-1,"") ->  | N10: S.US.CRS | P10: =IF(O10="","",RTD("cqg.rtd", ,"ContractData",O10, "LongDescription",, "T")) ->  | Q10: =IFERROR(RTD("cqg.rtd", ,"ContractData",O10, "PerCentNetLastTrade",, "T")/100,"") ->  | W10: =IF(Q10="","",IF(Q10<0,"",IFERROR(PROPER(RTD("cqg.rtd", ,"ContractData",O10, "LongDescription",, "T")),""))) ->  | AD10: =IF(RTD("cqg.rtd", ,"ContractData",AC10, "PerCentNetLastTrade",, "T")>0,"",IFERROR(RTD("cqg.rtd", ,"ContractData",AC10, "PerCentNetLastTrade",, "T")/100,"")) ->  | AE10: =IF(AD10>0,"",IFERROR(PROPER(RTD("cqg.rtd", ,"ContractData",AC10, "LongDescription",, "T")),"")) ->  | AF10: ="" -> 
A11: =IF(Symbols!A11="","",Symbols!A11) -> S.US.CW | B11: 1 | C11: S.US.CW | D11: =IF(A11="","",RTD("cqg.rtd", ,"ContractData",C11, "LongDescription",, "T")) -> Curtiss-Wright Corporation | H11: =IF(A11="","",RTD("cqg.rtd", ,"ContractData",C11, "LastTradeToday",, "T")) ->  | I11: =IF(A11="","",RTD("cqg.rtd", ,"ContractData",C11, "NetLastTradeToday",, "T")) ->  | J11: =IF(A11="","",IFERROR(RTD("cqg.rtd", ,"ContractData",C11, "PerCentNetLastTrade",, "T")/100,"")) ->  | K11: =IF(A11="","",RTD("cqg.rtd", ,"ContractData", C11, "T_CVol",, "T")) -> 11 | L11: 11 | M11: =IFERROR(RANK($J11,INDIRECT(("$J$"&"1"&":$J$"&$A$351)))+COUNTIF($J$1:J11,J11)-1,"") ->  | N11: S.US.CW | P11: =IF(O11="","",RTD("cqg.rtd", ,"ContractData",O11, "LongDescription",, "T")) ->  | Q11: =IFERROR(RTD("cqg.rtd", ,"ContractData",O11, "PerCentNetLastTrade",, "T")/100,"") ->  | W11: =IF(Q11="","",IF(Q11<0,"",IFERROR(PROPER(RTD("cqg.rtd", ,"ContractData",O11, "LongDescription",, "T")),""))) ->  | AD11: =IF(RTD("cqg.rtd", ,"ContractData",AC11, "PerCentNetLastTrade",, "T")>0,"",IFERROR(RTD("cqg.rtd", ,"ContractData",AC11, "PerCentNetLastTrade",, "T")/100,"")) ->  | AE11: =IF(AD11>0,"",IFERROR(PROPER(RTD("cqg.rtd", ,"ContractData",AC11, "LongDescription",, "T")),"")) ->  | AF11: ="" -> 
A12: =IF(Symbols!A12="","",Symbols!A12) -> S.US.DCO | B12: 1 | C12: S.US.DCO | D12: =IF(A12="","",RTD("cqg.rtd", ,"ContractData",C12, "LongDescription",, "T")) -> DUCOMMUN INC | H12: =IF(A12="","",RTD("cqg.rtd", ,"ContractData",C12, "LastTradeToday",, "T")) ->  | I12: =IF(A12="","",RTD("cqg.rtd", ,"ContractData",C12, "NetLastTradeToday",, "T")) ->  | J12: =IF(A12="","",IFERROR(RTD("cqg.rtd", ,"ContractData",C12, "PerCentNetLastTrade",, "T")/100,"")) ->  | K12: =IF(A12="","",RTD("cqg.rtd", ,"ContractData", C12, "T_CVol",, "T")) -> 0 | L12: 12 | M12: =IFERROR(RANK($J12,INDIRECT(("$J$"&"1"&":$J$"&$A$351)))+COUNTIF($J$1:J12,J12)-1,"") ->  | N12: S.US.DCO | P12: =IF(O12="","",RTD("cqg.rtd", ,"ContractData",O12, "LongDescription",, "T")) ->  | Q12: =IFERROR(RTD("cqg.rtd", ,"ContractData",O12, "PerCentNetLastTrade",, "T")/100,"") ->  | W12: =IF(Q12="","",IF(Q12<0,"",IFERROR(PROPER(RTD("cqg.rtd", ,"ContractData",O12, "LongDescription",, "T")),""))) ->  | AD12: =IF(RTD("cqg.rtd", ,"ContractData",AC12, "PerCentNetLastTrade",, "T")>0,"",IFERROR(RTD("cqg.rtd", ,"ContractData",AC12, "PerCentNetLastTrade",, "T")/100,"")) ->  | AE12: =IF(AD12>0,"",IFERROR(PROPER(RTD("cqg.rtd", ,"ContractData",AC12, "LongDescription",, "T")),"")) ->  | AF12: ="" -> 
A13: =IF(Symbols!A13="","",Symbols!A13) -> S.US.DRS | B13: 1 | C13: S.US.DRS | D13: =IF(A13="","",RTD("cqg.rtd", ,"ContractData",C13, "LongDescription",, "T")) -> LEONARDO DRS, INC CM | H13: =IF(A13="","",RTD("cqg.rtd", ,"ContractData",C13, "LastTradeToday",, "T")) ->  | I13: =IF(A13="","",RTD("cqg.rtd", ,"ContractData",C13, "NetLastTradeToday",, "T")) ->  | J13: =IF(A13="","",IFERROR(RTD("cqg.rtd", ,"ContractData",C13, "PerCentNetLastTrade",, "T")/100,"")) ->  | K13: =IF(A13="","",RTD("cqg.rtd", ,"ContractData", C13, "T_CVol",, "T")) -> 20 | L13: 13 | M13: =IFERROR(RANK($J13,INDIRECT(("$J$"&"1"&":$J$"&$A$351)))+COUNTIF($J$1:J13,J13)-1,"") ->  | N13: S.US.DRS | P13: =IF(O13="","",RTD("cqg.rtd", ,"ContractData",O13, "LongDescription",, "T")) ->  | Q13: =IFERROR(RTD("cqg.rtd", ,"ContractData",O13, "PerCentNetLastTrade",, "T")/100,"") ->  | W13: =IF(Q13="","",IF(Q13<0,"",IFERROR(PROPER(RTD("cqg.rtd", ,"ContractData",O13, "LongDescription",, "T")),""))) ->  | AD13: =IF(RTD("cqg.rtd", ,"ContractData",AC13, "PerCentNetLastTrade",, "T")>0,"",IFERROR(RTD("cqg.rtd", ,"ContractData",AC13, "PerCentNetLastTrade",, "T")/100,"")) ->  | AE13: =IF(AD13>0,"",IFERROR(PROPER(RTD("cqg.rtd", ,"ContractData",AC13, "LongDescription",, "T")),"")) ->  | AF13: ="" -> 
A14: =IF(Symbols!A14="","",Symbols!A14) -> S.US.GD | B14: 1 | C14: S.US.GD | D14: =IF(A14="","",RTD("cqg.rtd", ,"ContractData",C14, "LongDescription",, "T")) -> General Dynamics Corp | H14: =IF(A14="","",RTD("cqg.rtd", ,"ContractData",C14, "LastTradeToday",, "T")) ->  | I14: =IF(A14="","",RTD("cqg.rtd", ,"ContractData",C14, "NetLastTradeToday",, "T")) ->  | J14: =IF(A14="","",IFERROR(RTD("cqg.rtd", ,"ContractData",C14, "PerCentNetLastTrade",, "T")/100,"")) ->  | K14: =IF(A14="","",RTD("cqg.rtd", ,"ContractData", C14, "T_CVol",, "T")) -> 57 | L14: 14 | M14: =IFERROR(RANK($J14,INDIRECT(("$J$"&"1"&":$J$"&$A$351)))+COUNTIF($J$1:J14,J14)-1,"") ->  | N14: S.US.GD | P14: =IF(O14="","",RTD("cqg.rtd", ,"ContractData",O14, "LongDescription",, "T")) ->  | Q14: =IFERROR(RTD("cqg.rtd", ,"ContractData",O14, "PerCentNetLastTrade",, "T")/100,"") ->  | W14: =IF(Q14="","",IF(Q14<0,"",IFERROR(PROPER(RTD("cqg.rtd", ,"ContractData",O14, "LongDescription",, "T")),""))) ->  | AD14: =IF(RTD("cqg.rtd", ,"ContractData",AC14, "PerCentNetLastTrade",, "T")>0,"",IFERROR(RTD("cqg.rtd", ,"ContractData",AC14, "PerCentNetLastTrade",, "T")/100,"")) ->  | AE14: =IF(AD14>0,"",IFERROR(PROPER(RTD("cqg.rtd", ,"ContractData",AC14, "LongDescription",, "T")),"")) ->  | AF14: ="" -> 
A15: =IF(Symbols!A15="","",Symbols!A15) -> S.US.GE | B15: 1 | C15: S.US.GE | D15: =IF(A15="","",RTD("cqg.rtd", ,"ContractData",C15, "LongDescription",, "T")) -> General Electric Co | H15: =IF(A15="","",RTD("cqg.rtd", ,"ContractData",C15, "LastTradeToday",, "T")) ->  | I15: =IF(A15="","",RTD("cqg.rtd", ,"ContractData",C15, "NetLastTradeToday",, "T")) ->  | J15: =IF(A15="","",IFERROR(RTD("cqg.rtd", ,"ContractData",C15, "PerCentNetLastTrade",, "T")/100,"")) ->  | K15: =IF(A15="","",RTD("cqg.rtd", ,"ContractData", C15, "T_CVol",, "T")) -> 2988 | L15: 15 | M15: =IFERROR(RANK($J15,INDIRECT(("$J$"&"1"&":$J$"&$A$351)))+COUNTIF($J$1:J15,J15)-1,"") ->  | N15: S.US.GE | P15: =IF(O15="","",RTD("cqg.rtd", ,"ContractData",O15, "LongDescription",, "T")) ->  | Q15: =IFERROR(RTD("cqg.rtd", ,"ContractData",O15, "PerCentNetLastTrade",, "T")/100,"") ->  | W15: =IF(Q15="","",IF(Q15<0,"",IFERROR(PROPER(RTD("cqg.rtd", ,"ContractData",O15, "LongDescription",, "T")),""))) ->  | AD15: =IF(RTD("cqg.rtd", ,"ContractData",AC15, "PerCentNetLastTrade",, "T")>0,"",IFERROR(RTD("cqg.rtd", ,"ContractData",AC15, "PerCentNetLastTrade",, "T")/100,"")) ->  | AE15: =IF(AD15>0,"",IFERROR(PROPER(RTD("cqg.rtd", ,"ContractData",AC15, "LongDescription",, "T")),"")) ->  | AF15: ="" -> 
A16: =IF(Symbols!A16="","",Symbols!A16) -> S.US.HEI | B16: 1 | C16: S.US.HEI | D16: =IF(A16="","",RTD("cqg.rtd", ,"ContractData",C16, "LongDescription",, "T")) -> HEICO CORP | H16: =IF(A16="","",RTD("cqg.rtd", ,"ContractData",C16, "LastTradeToday",, "T")) ->  | I16: =IF(A16="","",RTD("cqg.rtd", ,"ContractData",C16, "NetLastTradeToday",, "T")) ->  | J16: =IF(A16="","",IFERROR(RTD("cqg.rtd", ,"ContractData",C16, "PerCentNetLastTrade",, "T")/100,"")) ->  | K16: =IF(A16="","",RTD("cqg.rtd", ,"ContractData", C16, "T_CVol",, "T")) -> 1 | L16: 16 | M16: =IFERROR(RANK($J16,INDIRECT(("$J$"&"1"&":$J$"&$A$351)))+COUNTIF($J$1:J16,J16)-1,"") ->  | N16: S.US.HEI
A17: =IF(Symbols!A17="","",Symbols!A17) -> S.US.HEIA | B17: 1 | C17: S.US.HEIA | D17: =IF(A17="","",RTD("cqg.rtd", ,"ContractData",C17, "LongDescription",, "T")) -> HEICO Corp ClA | H17: =IF(A17="","",RTD("cqg.rtd", ,"ContractData",C17, "LastTradeToday",, "T")) ->  | I17: =IF(A17="","",RTD("cqg.rtd", ,"ContractData",C17, "NetLastTradeToday",, "T")) ->  | J17: =IF(A17="","",IFERROR(RTD("cqg.rtd", ,"ContractData",C17, "PerCentNetLastTrade",, "T")/100,"")) ->  | K17: =IF(A17="","",RTD("cqg.rtd", ,"ContractData", C17, "T_CVol",, "T")) -> 401 | L17: 17 | M17: =IFERROR(RANK($J17,INDIRECT(("$J$"&"1"&":$J$"&$A$351)))+COUNTIF($J$1:J17,J17)-1,"") ->  | N17: S.US.HEIA
A18: =IF(Symbols!A18="","",Symbols!A18) -> S.US.HII | B18: 1 | C18: S.US.HII | D18: =IF(A18="","",RTD("cqg.rtd", ,"ContractData",C18, "LongDescription",, "T")) -> Huntington Ingalls Industries | H18: =IF(A18="","",RTD("cqg.rtd", ,"ContractData",C18, "LastTradeToday",, "T")) ->  | I18: =IF(A18="","",RTD("cqg.rtd", ,"ContractData",C18, "NetLastTradeToday",, "T")) ->  | J18: =IF(A18="","",IFERROR(RTD("cqg.rtd", ,"ContractData",C18, "PerCentNetLastTrade",, "T")/100,"")) ->  | K18: =IF(A18="","",RTD("cqg.rtd", ,"ContractData", C18, "T_CVol",, "T")) -> 591 | L18: 18 | M18: =IFERROR(RANK($J18,INDIRECT(("$J$"&"1"&":$J$"&$A$351)))+COUNTIF($J$1:J18,J18)-1,"") ->  | N18: S.US.HII
A19: =IF(Symbols!A19="","",Symbols!A19) -> S.US.HWM | B19: 1 | C19: S.US.HWM | D19: =IF(A19="","",RTD("cqg.rtd", ,"ContractData",C19, "LongDescription",, "T")) -> Howmet Aerospace Inc. | H19: =IF(A19="","",RTD("cqg.rtd", ,"ContractData",C19, "LastTradeToday",, "T")) ->  | I19: =IF(A19="","",RTD("cqg.rtd", ,"ContractData",C19, "NetLastTradeToday",, "T")) ->  | J19: =IF(A19="","",IFERROR(RTD("cqg.rtd", ,"ContractData",C19, "PerCentNetLastTrade",, "T")/100,"")) ->  | K19: =IF(A19="","",RTD("cqg.rtd", ,"ContractData", C19, "T_CVol",, "T")) -> 989 | L19: 19 | M19: =IFERROR(RANK($J19,INDIRECT(("$J$"&"1"&":$J$"&$A$351)))+COUNTIF($J$1:J19,J19)-1,"") ->  | N19: S.US.HWM
A20: =IF(Symbols!A20="","",Symbols!A20) -> S.US.HXL | B20: 1 | C20: S.US.HXL | D20: =IF(A20="","",RTD("cqg.rtd", ,"ContractData",C20, "LongDescription",, "T")) -> Hexcel Corp | H20: =IF(A20="","",RTD("cqg.rtd", ,"ContractData",C20, "LastTradeToday",, "T")) ->  | I20: =IF(A20="","",RTD("cqg.rtd", ,"ContractData",C20, "NetLastTradeToday",, "T")) ->  | J20: =IF(A20="","",IFERROR(RTD("cqg.rtd", ,"ContractData",C20, "PerCentNetLastTrade",, "T")/100,"")) ->  | K20: =IF(A20="","",RTD("cqg.rtd", ,"ContractData", C20, "T_CVol",, "T")) -> 1 | L20: 20 | M20: =IFERROR(RANK($J20,INDIRECT(("$J$"&"1"&":$J$"&$A$351)))+COUNTIF($J$1:J20,J20)-1,"") ->  | N20: S.US.HXL
A21: =IF(Symbols!A21="","",Symbols!A21) -> S.US.KRMN | B21: 1 | C21: S.US.KRMN | D21: =IF(A21="","",RTD("cqg.rtd", ,"ContractData",C21, "LongDescription",, "T")) -> Karman Holdings Inc. | H21: =IF(A21="","",RTD("cqg.rtd", ,"ContractData",C21, "LastTradeToday",, "T")) ->  | I21: =IF(A21="","",RTD("cqg.rtd", ,"ContractData",C21, "NetLastTradeToday",, "T")) ->  | J21: =IF(A21="","",IFERROR(RTD("cqg.rtd", ,"ContractData",C21, "PerCentNetLastTrade",, "T")/100,"")) ->  | K21: =IF(A21="","",RTD("cqg.rtd", ,"ContractData", C21, "T_CVol",, "T")) -> 1100 | L21: 21 | M21: =IFERROR(RANK($J21,INDIRECT(("$J$"&"1"&":$J$"&$A$351)))+COUNTIF($J$1:J21,J21)-1,"") ->  | N21: S.US.KRMN
A22: =IF(Symbols!A22="","",Symbols!A22) -> S.US.KTOS | B22: 1 | C22: S.US.KTOS | D22: =IF(A22="","",RTD("cqg.rtd", ,"ContractData",C22, "LongDescription",, "T")) -> KRATOS DEFNS | H22: =IF(A22="","",RTD("cqg.rtd", ,"ContractData",C22, "LastTradeToday",, "T")) ->  | I22: =IF(A22="","",RTD("cqg.rtd", ,"ContractData",C22, "NetLastTradeToday",, "T")) ->  | J22: =IF(A22="","",IFERROR(RTD("cqg.rtd", ,"ContractData",C22, "PerCentNetLastTrade",, "T")/100,"")) ->  | K22: =IF(A22="","",RTD("cqg.rtd", ,"ContractData", C22, "T_CVol",, "T")) -> 6826 | L22: 22 | M22: =IFERROR(RANK($J22,INDIRECT(("$J$"&"1"&":$J$"&$A$351)))+COUNTIF($J$1:J22,J22)-1,"") ->  | N22: S.US.KTOS
A23: =IF(Symbols!A23="","",Symbols!A23) -> S.US.LHX | B23: 1 | C23: S.US.LHX | D23: =IF(A23="","",RTD("cqg.rtd", ,"ContractData",C23, "LongDescription",, "T")) -> L3Harris Technologies, Inc. | H23: =IF(A23="","",RTD("cqg.rtd", ,"ContractData",C23, "LastTradeToday",, "T")) ->  | I23: =IF(A23="","",RTD("cqg.rtd", ,"ContractData",C23, "NetLastTradeToday",, "T")) ->  | J23: =IF(A23="","",IFERROR(RTD("cqg.rtd", ,"ContractData",C23, "PerCentNetLastTrade",, "T")/100,"")) ->  | K23: =IF(A23="","",RTD("cqg.rtd", ,"ContractData", C23, "T_CVol",, "T")) -> 297 | L23: 23 | M23: =IFERROR(RANK($J23,INDIRECT(("$J$"&"1"&":$J$"&$A$351)))+COUNTIF($J$1:J23,J23)-1,"") ->  | N23: S.US.LHX
A24: =IF(Symbols!A24="","",Symbols!A24) -> S.US.LMT | B24: 1 | C24: S.US.LMT | D24: =IF(A24="","",RTD("cqg.rtd", ,"ContractData",C24, "LongDescription",, "T")) -> Lockheed Martin Corp | H24: =IF(A24="","",RTD("cqg.rtd", ,"ContractData",C24, "LastTradeToday",, "T")) ->  | I24: =IF(A24="","",RTD("cqg.rtd", ,"ContractData",C24, "NetLastTradeToday",, "T")) ->  | J24: =IF(A24="","",IFERROR(RTD("cqg.rtd", ,"ContractData",C24, "PerCentNetLastTrade",, "T")/100,"")) ->  | K24: =IF(A24="","",RTD("cqg.rtd", ,"ContractData", C24, "T_CVol",, "T")) -> 2783 | L24: 24 | M24: =IFERROR(RANK($J24,INDIRECT(("$J$"&"1"&":$J$"&$A$351)))+COUNTIF($J$1:J24,J24)-1,"") ->  | N24: S.US.LMT
A25: =IF(Symbols!A25="","",Symbols!A25) -> S.US.LOAR | B25: 1 | C25: S.US.LOAR | D25: =IF(A25="","",RTD("cqg.rtd", ,"ContractData",C25, "LongDescription",, "T")) -> Loar Holdings Inc. | H25: =IF(A25="","",RTD("cqg.rtd", ,"ContractData",C25, "LastTradeToday",, "T")) ->  | I25: =IF(A25="","",RTD("cqg.rtd", ,"ContractData",C25, "NetLastTradeToday",, "T")) ->  | J25: =IF(A25="","",IFERROR(RTD("cqg.rtd", ,"ContractData",C25, "PerCentNetLastTrade",, "T")/100,"")) ->  | K25: =IF(A25="","",RTD("cqg.rtd", ,"ContractData", C25, "T_CVol",, "T")) -> 163 | L25: 25 | M25: =IFERROR(RANK($J25,INDIRECT(("$J$"&"1"&":$J$"&$A$351)))+COUNTIF($J$1:J25,J25)-1,"") ->  | N25: S.US.LOAR
A26: =IF(Symbols!A26="","",Symbols!A26) -> S.US.LUNR | B26: 1 | C26: S.US.LUNR | D26: =IF(A26="","",RTD("cqg.rtd", ,"ContractData",C26, "LongDescription",, "T")) -> INTUITIVE MCHNS CM | H26: =IF(A26="","",RTD("cqg.rtd", ,"ContractData",C26, "LastTradeToday",, "T")) ->  | I26: =IF(A26="","",RTD("cqg.rtd", ,"ContractData",C26, "NetLastTradeToday",, "T")) ->  | J26: =IF(A26="","",IFERROR(RTD("cqg.rtd", ,"ContractData",C26, "PerCentNetLastTrade",, "T")/100,"")) ->  | K26: =IF(A26="","",RTD("cqg.rtd", ,"ContractData", C26, "T_CVol",, "T")) -> 33573 | L26: 26 | M26: =IFERROR(RANK($J26,INDIRECT(("$J$"&"1"&":$J$"&$A$351)))+COUNTIF($J$1:J26,J26)-1,"") ->  | N26: S.US.LUNR
A27: =IF(Symbols!A27="","",Symbols!A27) -> S.US.MOGA | B27: 1 | C27: S.US.MOGA | D27: =IF(A27="","",RTD("cqg.rtd", ,"ContractData",C27, "LongDescription",, "T")) -> Moog Inc ClsA | H27: =IF(A27="","",RTD("cqg.rtd", ,"ContractData",C27, "LastTradeToday",, "T")) ->  | I27: =IF(A27="","",RTD("cqg.rtd", ,"ContractData",C27, "NetLastTradeToday",, "T")) ->  | J27: =IF(A27="","",IFERROR(RTD("cqg.rtd", ,"ContractData",C27, "PerCentNetLastTrade",, "T")/100,"")) ->  | K27: =IF(A27="","",RTD("cqg.rtd", ,"ContractData", C27, "T_CVol",, "T")) -> 10 | L27: 27 | M27: =IFERROR(RANK($J27,INDIRECT(("$J$"&"1"&":$J$"&$A$351)))+COUNTIF($J$1:J27,J27)-1,"") ->  | N27: S.US.MOGA
A28: =IF(Symbols!A28="","",Symbols!A28) -> S.US.MRCY | B28: 1 | C28: S.US.MRCY | D28: =IF(A28="","",RTD("cqg.rtd", ,"ContractData",C28, "LongDescription",, "T")) -> MERCURY SYS INC | H28: =IF(A28="","",RTD("cqg.rtd", ,"ContractData",C28, "LastTradeToday",, "T")) ->  | I28: =IF(A28="","",RTD("cqg.rtd", ,"ContractData",C28, "NetLastTradeToday",, "T")) ->  | J28: =IF(A28="","",IFERROR(RTD("cqg.rtd", ,"ContractData",C28, "PerCentNetLastTrade",, "T")/100,"")) ->  | K28: =IF(A28="","",RTD("cqg.rtd", ,"ContractData", C28, "T_CVol",, "T")) -> 0 | L28: 28 | M28: =IFERROR(RANK($J28,INDIRECT(("$J$"&"1"&":$J$"&$A$351)))+COUNTIF($J$1:J28,J28)-1,"") ->  | N28: S.US.MRCY
A29: =IF(Symbols!A29="","",Symbols!A29) -> S.US.NOC | B29: 1 | C29: S.US.NOC | D29: =IF(A29="","",RTD("cqg.rtd", ,"ContractData",C29, "LongDescription",, "T")) -> Northrop Grumman Corporation | H29: =IF(A29="","",RTD("cqg.rtd", ,"ContractData",C29, "LastTradeToday",, "T")) ->  | I29: =IF(A29="","",RTD("cqg.rtd", ,"ContractData",C29, "NetLastTradeToday",, "T")) ->  | J29: =IF(A29="","",IFERROR(RTD("cqg.rtd", ,"ContractData",C29, "PerCentNetLastTrade",, "T")/100,"")) ->  | K29: =IF(A29="","",RTD("cqg.rtd", ,"ContractData", C29, "T_CVol",, "T")) -> 477 | L29: 29 | M29: =IFERROR(RANK($J29,INDIRECT(("$J$"&"1"&":$J$"&$A$351)))+COUNTIF($J$1:J29,J29)-1,"") ->  | N29: S.US.NOC
A30: =IF(Symbols!A30="","",Symbols!A30) -> S.US.NPK | B30: 1 | C30: S.US.NPK | D30: =IF(A30="","",RTD("cqg.rtd", ,"ContractData",C30, "LongDescription",, "T")) -> National Presto Industries Inc. | H30: =IF(A30="","",RTD("cqg.rtd", ,"ContractData",C30, "LastTradeToday",, "T")) ->  | I30: =IF(A30="","",RTD("cqg.rtd", ,"ContractData",C30, "NetLastTradeToday",, "T")) ->  | J30: =IF(A30="","",IFERROR(RTD("cqg.rtd", ,"ContractData",C30, "PerCentNetLastTrade",, "T")/100,"")) ->  | K30: =IF(A30="","",RTD("cqg.rtd", ,"ContractData", C30, "T_CVol",, "T")) -> 0 | L30: 30 | M30: =IFERROR(RANK($J30,INDIRECT(("$J$"&"1"&":$J$"&$A$351)))+COUNTIF($J$1:J30,J30)-1,"") ->  | N30: S.US.NPK
A31: =IF(Symbols!A31="","",Symbols!A31) -> S.US.RCAT | B31: 1 | C31: S.US.RCAT | D31: =IF(A31="","",RTD("cqg.rtd", ,"ContractData",C31, "LongDescription",, "T")) -> RED CAT HOLDINGS CMN | H31: =IF(A31="","",RTD("cqg.rtd", ,"ContractData",C31, "LastTradeToday",, "T")) ->  | I31: =IF(A31="","",RTD("cqg.rtd", ,"ContractData",C31, "NetLastTradeToday",, "T")) ->  | J31: =IF(A31="","",IFERROR(RTD("cqg.rtd", ,"ContractData",C31, "PerCentNetLastTrade",, "T")/100,"")) ->  | K31: =IF(A31="","",RTD("cqg.rtd", ,"ContractData", C31, "T_CVol",, "T")) -> 70523 | L31: 31 | M31: =IFERROR(RANK($J31,INDIRECT(("$J$"&"1"&":$J$"&$A$351)))+COUNTIF($J$1:J31,J31)-1,"") ->  | N31: S.US.RCAT
A32: =IF(Symbols!A32="","",Symbols!A32) -> S.US.RGR | B32: 1 | C32: S.US.RGR | D32: =IF(A32="","",RTD("cqg.rtd", ,"ContractData",C32, "LongDescription",, "T")) -> Sturm Ruger & Co Inc | H32: =IF(A32="","",RTD("cqg.rtd", ,"ContractData",C32, "LastTradeToday",, "T")) ->  | I32: =IF(A32="","",RTD("cqg.rtd", ,"ContractData",C32, "NetLastTradeToday",, "T")) ->  | J32: =IF(A32="","",IFERROR(RTD("cqg.rtd", ,"ContractData",C32, "PerCentNetLastTrade",, "T")/100,"")) ->  | K32: =IF(A32="","",RTD("cqg.rtd", ,"ContractData", C32, "T_CVol",, "T")) -> 0 | L32: 32 | M32: =IFERROR(RANK($J32,INDIRECT(("$J$"&"1"&":$J$"&$A$351)))+COUNTIF($J$1:J32,J32)-1,"") ->  | N32: S.US.RGR
A33: =IF(Symbols!A33="","",Symbols!A33) -> S.US.RKLB | B33: 1 | C33: S.US.RKLB | D33: =IF(A33="","",RTD("cqg.rtd", ,"ContractData",C33, "LongDescription",, "T")) -> ROCKET LAB CORP CMN | H33: =IF(A33="","",RTD("cqg.rtd", ,"ContractData",C33, "LastTradeToday",, "T")) ->  | I33: =IF(A33="","",RTD("cqg.rtd", ,"ContractData",C33, "NetLastTradeToday",, "T")) ->  | J33: =IF(A33="","",IFERROR(RTD("cqg.rtd", ,"ContractData",C33, "PerCentNetLastTrade",, "T")/100,"")) ->  | K33: =IF(A33="","",RTD("cqg.rtd", ,"ContractData", C33, "T_CVol",, "T")) -> 88976 | L33: 33 | M33: =IFERROR(RANK($J33,INDIRECT(("$J$"&"1"&":$J$"&$A$351)))+COUNTIF($J$1:J33,J33)-1,"") ->  | N33: S.US.RKLB
A34: =IF(Symbols!A34="","",Symbols!A34) -> S.US.RTX | B34: 1 | C34: S.US.RTX | D34: =IF(A34="","",RTD("cqg.rtd", ,"ContractData",C34, "LongDescription",, "T")) -> RTX Corporation | H34: =IF(A34="","",RTD("cqg.rtd", ,"ContractData",C34, "LastTradeToday",, "T")) ->  | I34: =IF(A34="","",RTD("cqg.rtd", ,"ContractData",C34, "NetLastTradeToday",, "T")) ->  | J34: =IF(A34="","",IFERROR(RTD("cqg.rtd", ,"ContractData",C34, "PerCentNetLastTrade",, "T")/100,"")) ->  | K34: =IF(A34="","",RTD("cqg.rtd", ,"ContractData", C34, "T_CVol",, "T")) -> 7212 | L34: 34 | M34: =IFERROR(RANK($J34,INDIRECT(("$J$"&"1"&":$J$"&$A$351)))+COUNTIF($J$1:J34,J34)-1,"") ->  | N34: S.US.RTX
A35: =IF(Symbols!A35="","",Symbols!A35) -> S.US.SARO | B35: 1 | C35: S.US.SARO | D35: =IF(A35="","",RTD("cqg.rtd", ,"ContractData",C35, "LongDescription",, "T")) -> StandardAero, Inc. | H35: =IF(A35="","",RTD("cqg.rtd", ,"ContractData",C35, "LastTradeToday",, "T")) ->  | I35: =IF(A35="","",RTD("cqg.rtd", ,"ContractData",C35, "NetLastTradeToday",, "T")) ->  | J35: =IF(A35="","",IFERROR(RTD("cqg.rtd", ,"ContractData",C35, "PerCentNetLastTrade",, "T")/100,"")) ->  | K35: =IF(A35="","",RTD("cqg.rtd", ,"ContractData", C35, "T_CVol",, "T")) -> 10 | L35: 35 | M35: =IFERROR(RANK($J35,INDIRECT(("$J$"&"1"&":$J$"&$A$351)))+COUNTIF($J$1:J35,J35)-1,"") ->  | N35: S.US.SARO
A36: =IF(Symbols!A36="","",Symbols!A36) -> S.US.SWBI | B36: 1 | C36: S.US.SWBI | D36: =IF(A36="","",RTD("cqg.rtd", ,"ContractData",C36, "LongDescription",, "T")) -> SMITH & WESSON BRAND | H36: =IF(A36="","",RTD("cqg.rtd", ,"ContractData",C36, "LastTradeToday",, "T")) ->  | I36: =IF(A36="","",RTD("cqg.rtd", ,"ContractData",C36, "NetLastTradeToday",, "T")) ->  | J36: =IF(A36="","",IFERROR(RTD("cqg.rtd", ,"ContractData",C36, "PerCentNetLastTrade",, "T")/100,"")) ->  | K36: =IF(A36="","",RTD("cqg.rtd", ,"ContractData", C36, "T_CVol",, "T")) -> 7 | L36: 36 | M36: =IFERROR(RANK($J36,INDIRECT(("$J$"&"1"&":$J$"&$A$351)))+COUNTIF($J$1:J36,J36)-1,"") ->  | N36: S.US.SWBI
A37: =IF(Symbols!A37="","",Symbols!A37) -> S.US.TDG | B37: 1 | C37: S.US.TDG | D37: =IF(A37="","",RTD("cqg.rtd", ,"ContractData",C37, "LongDescription",, "T")) -> TransDigm Group | H37: =IF(A37="","",RTD("cqg.rtd", ,"ContractData",C37, "LastTradeToday",, "T")) ->  | I37: =IF(A37="","",RTD("cqg.rtd", ,"ContractData",C37, "NetLastTradeToday",, "T")) ->  | J37: =IF(A37="","",IFERROR(RTD("cqg.rtd", ,"ContractData",C37, "PerCentNetLastTrade",, "T")/100,"")) ->  | K37: =IF(A37="","",RTD("cqg.rtd", ,"ContractData", C37, "T_CVol",, "T")) -> 1 | L37: 37 | M37: =IFERROR(RANK($J37,INDIRECT(("$J$"&"1"&":$J$"&$A$351)))+COUNTIF($J$1:J37,J37)-1,"") ->  | N37: S.US.TDG
A38: =IF(Symbols!A38="","",Symbols!A38) -> S.US.TXT | B38: 1 | C38: S.US.TXT | D38: =IF(A38="","",RTD("cqg.rtd", ,"ContractData",C38, "LongDescription",, "T")) -> Textron Inc | H38: =IF(A38="","",RTD("cqg.rtd", ,"ContractData",C38, "LastTradeToday",, "T")) ->  | I38: =IF(A38="","",RTD("cqg.rtd", ,"ContractData",C38, "NetLastTradeToday",, "T")) ->  | J38: =IF(A38="","",IFERROR(RTD("cqg.rtd", ,"ContractData",C38, "PerCentNetLastTrade",, "T")/100,"")) ->  | K38: =IF(A38="","",RTD("cqg.rtd", ,"ContractData", C38, "T_CVol",, "T")) -> 10 | L38: 38 | M38: =IFERROR(RANK($J38,INDIRECT(("$J$"&"1"&":$J$"&$A$351)))+COUNTIF($J$1:J38,J38)-1,"") ->  | N38: S.US.TXT
A39: =IF(Symbols!A39="","",Symbols!A39) -> S.US.VSEC | B39: 1 | C39: S.US.VSEC | D39: =IF(A39="","",RTD("cqg.rtd", ,"ContractData",C39, "LongDescription",, "T")) -> V S E CP ## | H39: =IF(A39="","",RTD("cqg.rtd", ,"ContractData",C39, "LastTradeToday",, "T")) ->  | I39: =IF(A39="","",RTD("cqg.rtd", ,"ContractData",C39, "NetLastTradeToday",, "T")) ->  | J39: =IF(A39="","",IFERROR(RTD("cqg.rtd", ,"ContractData",C39, "PerCentNetLastTrade",, "T")/100,"")) ->  | K39: =IF(A39="","",RTD("cqg.rtd", ,"ContractData", C39, "T_CVol",, "T")) -> 3 | L39: 39 | M39: =IFERROR(RANK($J39,INDIRECT(("$J$"&"1"&":$J$"&$A$351)))+COUNTIF($J$1:J39,J39)-1,"") ->  | N39: S.US.VSEC
A40: =IF(Symbols!A40="","",Symbols!A40) -> S.US.VVX | B40: 1 | C40: S.US.VVX | D40: =IF(A40="","",RTD("cqg.rtd", ,"ContractData",C40, "LongDescription",, "T")) -> V2X, Inc. | H40: =IF(A40="","",RTD("cqg.rtd", ,"ContractData",C40, "LastTradeToday",, "T")) ->  | I40: =IF(A40="","",RTD("cqg.rtd", ,"ContractData",C40, "NetLastTradeToday",, "T")) ->  | J40: =IF(A40="","",IFERROR(RTD("cqg.rtd", ,"ContractData",C40, "PerCentNetLastTrade",, "T")/100,"")) ->  | K40: =IF(A40="","",RTD("cqg.rtd", ,"ContractData", C40, "T_CVol",, "T")) -> 2 | L40: 40 | M40: =IFERROR(RANK($J40,INDIRECT(("$J$"&"1"&":$J$"&$A$351)))+COUNTIF($J$1:J40,J40)-1,"") ->  | N40: S.US.VVX
A41: =IF(Symbols!A41="","",Symbols!A41) -> S.US.WWD | B41: 1 | C41: S.US.WWD | D41: =IF(A41="","",RTD("cqg.rtd", ,"ContractData",C41, "LongDescription",, "T")) -> Woodward, Inc. | H41: =IF(A41="","",RTD("cqg.rtd", ,"ContractData",C41, "LastTradeToday",, "T")) ->  | I41: =IF(A41="","",RTD("cqg.rtd", ,"ContractData",C41, "NetLastTradeToday",, "T")) ->  | J41: =IF(A41="","",IFERROR(RTD("cqg.rtd", ,"ContractData",C41, "PerCentNetLastTrade",, "T")/100,"")) ->  | K41: =IF(A41="","",RTD("cqg.rtd", ,"ContractData", C41, "T_CVol",, "T")) -> 138 | L41: 41 | M41: =IFERROR(RANK($J41,INDIRECT(("$J$"&"1"&":$J$"&$A$351)))+COUNTIF($J$1:J41,J41)-1,"") ->  | N41: S.US.WWD
A42: =IF(Symbols!A42="","",Symbols!A42) ->  | D42: =IF(A42="","",RTD("cqg.rtd", ,"ContractData",C42, "LongDescription",, "T")) ->  | H42: =IF(A42="","",RTD("cqg.rtd", ,"ContractData",C42, "LastTradeToday",, "T")) ->  | I42: =IF(A42="","",RTD("cqg.rtd", ,"ContractData",C42, "NetLastTradeToday",, "T")) ->  | J42: =IF(A42="","",IFERROR(RTD("cqg.rtd", ,"ContractData",C42, "PerCentNetLastTrade",, "T")/100,"")) ->  | K42: =IF(A42="","",RTD("cqg.rtd", ,"ContractData", C42, "T_CVol",, "T")) ->  | L42: 42 | M42: =IFERROR(RANK($J42,INDIRECT(("$J$"&"1"&":$J$"&$A$351)))+COUNTIF($J$1:J42,J42)-1,"") -> 
A43: =IF(Symbols!A43="","",Symbols!A43) ->  | D43: =IF(A43="","",RTD("cqg.rtd", ,"ContractData",C43, "LongDescription",, "T")) ->  | H43: =IF(A43="","",RTD("cqg.rtd", ,"ContractData",C43, "LastTradeToday",, "T")) ->  | I43: =IF(A43="","",RTD("cqg.rtd", ,"ContractData",C43, "NetLastTradeToday",, "T")) ->  | J43: =IF(A43="","",IFERROR(RTD("cqg.rtd", ,"ContractData",C43, "PerCentNetLastTrade",, "T")/100,"")) ->  | K43: =IF(A43="","",RTD("cqg.rtd", ,"ContractData", C43, "T_CVol",, "T")) ->  | L43: 43 | M43: =IFERROR(RANK($J43,INDIRECT(("$J$"&"1"&":$J$"&$A$351)))+COUNTIF($J$1:J43,J43)-1,"") -> 
A44: =IF(Symbols!A44="","",Symbols!A44) ->  | D44: =IF(A44="","",RTD("cqg.rtd", ,"ContractData",C44, "LongDescription",, "T")) ->  | H44: =IF(A44="","",RTD("cqg.rtd", ,"ContractData",C44, "LastTradeToday",, "T")) ->  | I44: =IF(A44="","",RTD("cqg.rtd", ,"ContractData",C44, "NetLastTradeToday",, "T")) ->  | J44: =IF(A44="","",IFERROR(RTD("cqg.rtd", ,"ContractData",C44, "PerCentNetLastTrade",, "T")/100,"")) ->  | K44: =IF(A44="","",RTD("cqg.rtd", ,"ContractData", C44, "T_CVol",, "T")) ->  | L44: 44 | M44: =IFERROR(RANK($J44,INDIRECT(("$J$"&"1"&":$J$"&$A$351)))+COUNTIF($J$1:J44,J44)-1,"") -> 
A45: =IF(Symbols!A45="","",Symbols!A45) ->  | D45: =IF(A45="","",RTD("cqg.rtd", ,"ContractData",C45, "LongDescription",, "T")) ->  | H45: =IF(A45="","",RTD("cqg.rtd", ,"ContractData",C45, "LastTradeToday",, "T")) ->  | I45: =IF(A45="","",RTD("cqg.rtd", ,"ContractData",C45, "NetLastTradeToday",, "T")) ->  | J45: =IF(A45="","",IFERROR(RTD("cqg.rtd", ,"ContractData",C45, "PerCentNetLastTrade",, "T")/100,"")) ->  | K45: =IF(A45="","",RTD("cqg.rtd", ,"ContractData", C45, "T_CVol",, "T")) ->  | L45: 45 | M45: =IFERROR(RANK($J45,INDIRECT(("$J$"&"1"&":$J$"&$A$351)))+COUNTIF($J$1:J45,J45)-1,"") -> 
A46: =IF(Symbols!A46="","",Symbols!A46) ->  | D46: =IF(A46="","",RTD("cqg.rtd", ,"ContractData",C46, "LongDescription",, "T")) ->  | H46: =IF(A46="","",RTD("cqg.rtd", ,"ContractData",C46, "LastTradeToday",, "T")) ->  | I46: =IF(A46="","",RTD("cqg.rtd", ,"ContractData",C46, "NetLastTradeToday",, "T")) ->  | J46: =IF(A46="","",IFERROR(RTD("cqg.rtd", ,"ContractData",C46, "PerCentNetLastTrade",, "T")/100,"")) ->  | K46: =IF(A46="","",RTD("cqg.rtd", ,"ContractData", C46, "T_CVol",, "T")) ->  | L46: 46 | M46: =IFERROR(RANK($J46,INDIRECT(("$J$"&"1"&":$J$"&$A$351)))+COUNTIF($J$1:J46,J46)-1,"") -> 
A47: =IF(Symbols!A47="","",Symbols!A47) ->  | D47: =IF(A47="","",RTD("cqg.rtd", ,"ContractData",C47, "LongDescription",, "T")) ->  | H47: =IF(A47="","",RTD("cqg.rtd", ,"ContractData",C47, "LastTradeToday",, "T")) ->  | I47: =IF(A47="","",RTD("cqg.rtd", ,"ContractData",C47, "NetLastTradeToday",, "T")) ->  | J47: =IF(A47="","",IFERROR(RTD("cqg.rtd", ,"ContractData",C47, "PerCentNetLastTrade",, "T")/100,"")) ->  | K47: =IF(A47="","",RTD("cqg.rtd", ,"ContractData", C47, "T_CVol",, "T")) ->  | L47: 47 | M47: =IFERROR(RANK($J47,INDIRECT(("$J$"&"1"&":$J$"&$A$351)))+COUNTIF($J$1:J47,J47)-1,"") -> 
A48: =IF(Symbols!A48="","",Symbols!A48) ->  | D48: =IF(A48="","",RTD("cqg.rtd", ,"ContractData",C48, "LongDescription",, "T")) ->  | H48: =IF(A48="","",RTD("cqg.rtd", ,"ContractData",C48, "LastTradeToday",, "T")) ->  | I48: =IF(A48="","",RTD("cqg.rtd", ,"ContractData",C48, "NetLastTradeToday",, "T")) ->  | J48: =IF(A48="","",IFERROR(RTD("cqg.rtd", ,"ContractData",C48, "PerCentNetLastTrade",, "T")/100,"")) ->  | K48: =IF(A48="","",RTD("cqg.rtd", ,"ContractData", C48, "T_CVol",, "T")) ->  | L48: 48 | M48: =IFERROR(RANK($J48,INDIRECT(("$J$"&"1"&":$J$"&$A$351)))+COUNTIF($J$1:J48,J48)-1,"") -> 
A49: =IF(Symbols!A49="","",Symbols!A49) ->  | D49: =IF(A49="","",RTD("cqg.rtd", ,"ContractData",C49, "LongDescription",, "T")) ->  | H49: =IF(A49="","",RTD("cqg.rtd", ,"ContractData",C49, "LastTradeToday",, "T")) ->  | I49: =IF(A49="","",RTD("cqg.rtd", ,"ContractData",C49, "NetLastTradeToday",, "T")) ->  | J49: =IF(A49="","",IFERROR(RTD("cqg.rtd", ,"ContractData",C49, "PerCentNetLastTrade",, "T")/100,"")) ->  | K49: =IF(A49="","",RTD("cqg.rtd", ,"ContractData", C49, "T_CVol",, "T")) ->  | L49: 49 | M49: =IFERROR(RANK($J49,INDIRECT(("$J$"&"1"&":$J$"&$A$351)))+COUNTIF($J$1:J49,J49)-1,"") -> 
A50: =IF(Symbols!A50="","",Symbols!A50) ->  | D50: =IF(A50="","",RTD("cqg.rtd", ,"ContractData",C50, "LongDescription",, "T")) ->  | H50: =IF(A50="","",RTD("cqg.rtd", ,"ContractData",C50, "LastTradeToday",, "T")) ->  | I50: =IF(A50="","",RTD("cqg.rtd", ,"ContractData",C50, "NetLastTradeToday",, "T")) ->  | J50: =IF(A50="","",IFERROR(RTD("cqg.rtd", ,"ContractData",C50, "PerCentNetLastTrade",, "T")/100,"")) ->  | K50: =IF(A50="","",RTD("cqg.rtd", ,"ContractData", C50, "T_CVol",, "T")) ->  | L50: 50 | M50: =IFERROR(RANK($J50,INDIRECT(("$J$"&"1"&":$J$"&$A$351)))+COUNTIF($J$1:J50,J50)-1,"") -> 
A51: =IF(Symbols!A51="","",Symbols!A51) ->  | D51: =IF(A51="","",RTD("cqg.rtd", ,"ContractData",C51, "LongDescription",, "T")) ->  | H51: =IF(A51="","",RTD("cqg.rtd", ,"ContractData",C51, "LastTradeToday",, "T")) ->  | I51: =IF(A51="","",RTD("cqg.rtd", ,"ContractData",C51, "NetLastTradeToday",, "T")) ->  | J51: =IF(A51="","",IFERROR(RTD("cqg.rtd", ,"ContractData",C51, "PerCentNetLastTrade",, "T")/100,"")) ->  | K51: =IF(A51="","",RTD("cqg.rtd", ,"ContractData", C51, "T_CVol",, "T")) ->  | L51: 51 | M51: =IFERROR(RANK($J51,INDIRECT(("$J$"&"1"&":$J$"&$A$351)))+COUNTIF($J$1:J51,J51)-1,"") -> 
A52: =IF(Symbols!A52="","",Symbols!A52) ->  | D52: =IF(A52="","",RTD("cqg.rtd", ,"ContractData",C52, "LongDescription",, "T")) ->  | H52: =IF(A52="","",RTD("cqg.rtd", ,"ContractData",C52, "LastTradeToday",, "T")) ->  | I52: =IF(A52="","",RTD("cqg.rtd", ,"ContractData",C52, "NetLastTradeToday",, "T")) ->  | J52: =IF(A52="","",IFERROR(RTD("cqg.rtd", ,"ContractData",C52, "PerCentNetLastTrade",, "T")/100,"")) ->  | K52: =IF(A52="","",RTD("cqg.rtd", ,"ContractData", C52, "T_CVol",, "T")) ->  | L52: 52 | M52: =IFERROR(RANK($J52,INDIRECT(("$J$"&"1"&":$J$"&$A$351)))+COUNTIF($J$1:J52,J52)-1,"") -> 
A53: =IF(Symbols!A53="","",Symbols!A53) ->  | D53: =IF(A53="","",RTD("cqg.rtd", ,"ContractData",C53, "LongDescription",, "T")) ->  | H53: =IF(A53="","",RTD("cqg.rtd", ,"ContractData",C53, "LastTradeToday",, "T")) ->  | I53: =IF(A53="","",RTD("cqg.rtd", ,"ContractData",C53, "NetLastTradeToday",, "T")) ->  | J53: =IF(A53="","",IFERROR(RTD("cqg.rtd", ,"ContractData",C53, "PerCentNetLastTrade",, "T")/100,"")) ->  | K53: =IF(A53="","",RTD("cqg.rtd", ,"ContractData", C53, "T_CVol",, "T")) ->  | L53: 53 | M53: =IFERROR(RANK($J53,INDIRECT(("$J$"&"1"&":$J$"&$A$351)))+COUNTIF($J$1:J53,J53)-1,"") -> 
A54: =IF(Symbols!A54="","",Symbols!A54) ->  | D54: =IF(A54="","",RTD("cqg.rtd", ,"ContractData",C54, "LongDescription",, "T")) ->  | H54: =IF(A54="","",RTD("cqg.rtd", ,"ContractData",C54, "LastTradeToday",, "T")) ->  | I54: =IF(A54="","",RTD("cqg.rtd", ,"ContractData",C54, "NetLastTradeToday",, "T")) ->  | J54: =IF(A54="","",IFERROR(RTD("cqg.rtd", ,"ContractData",C54, "PerCentNetLastTrade",, "T")/100,"")) ->  | K54: =IF(A54="","",RTD("cqg.rtd", ,"ContractData", C54, "T_CVol",, "T")) ->  | L54: 54 | M54: =IFERROR(RANK($J54,INDIRECT(("$J$"&"1"&":$J$"&$A$351)))+COUNTIF($J$1:J54,J54)-1,"") -> 
A55: =IF(Symbols!A55="","",Symbols!A55) ->  | D55: =IF(A55="","",RTD("cqg.rtd", ,"ContractData",C55, "LongDescription",, "T")) ->  | H55: =IF(A55="","",RTD("cqg.rtd", ,"ContractData",C55, "LastTradeToday",, "T")) ->  | I55: =IF(A55="","",RTD("cqg.rtd", ,"ContractData",C55, "NetLastTradeToday",, "T")) ->  | J55: =IF(A55="","",IFERROR(RTD("cqg.rtd", ,"ContractData",C55, "PerCentNetLastTrade",, "T")/100,"")) ->  | K55: =IF(A55="","",RTD("cqg.rtd", ,"ContractData", C55, "T_CVol",, "T")) ->  | L55: 55 | M55: =IFERROR(RANK($J55,INDIRECT(("$J$"&"1"&":$J$"&$A$351)))+COUNTIF($J$1:J55,J55)-1,"") -> 
A56: =IF(Symbols!A56="","",Symbols!A56) ->  | D56: =IF(A56="","",RTD("cqg.rtd", ,"ContractData",C56, "LongDescription",, "T")) ->  | H56: =IF(A56="","",RTD("cqg.rtd", ,"ContractData",C56, "LastTradeToday",, "T")) ->  | I56: =IF(A56="","",RTD("cqg.rtd", ,"ContractData",C56, "NetLastTradeToday",, "T")) ->  | J56: =IF(A56="","",IFERROR(RTD("cqg.rtd", ,"ContractData",C56, "PerCentNetLastTrade",, "T")/100,"")) ->  | K56: =IF(A56="","",RTD("cqg.rtd", ,"ContractData", C56, "T_CVol",, "T")) ->  | L56: 56 | M56: =IFERROR(RANK($J56,INDIRECT(("$J$"&"1"&":$J$"&$A$351)))+COUNTIF($J$1:J56,J56)-1,"") -> 
A57: =IF(Symbols!A57="","",Symbols!A57) ->  | D57: =IF(A57="","",RTD("cqg.rtd", ,"ContractData",C57, "LongDescription",, "T")) ->  | H57: =IF(A57="","",RTD("cqg.rtd", ,"ContractData",C57, "LastTradeToday",, "T")) ->  | I57: =IF(A57="","",RTD("cqg.rtd", ,"ContractData",C57, "NetLastTradeToday",, "T")) ->  | J57: =IF(A57="","",IFERROR(RTD("cqg.rtd", ,"ContractData",C57, "PerCentNetLastTrade",, "T")/100,"")) ->  | K57: =IF(A57="","",RTD("cqg.rtd", ,"ContractData", C57, "T_CVol",, "T")) ->  | L57: 57 | M57: =IFERROR(RANK($J57,INDIRECT(("$J$"&"1"&":$J$"&$A$351)))+COUNTIF($J$1:J57,J57)-1,"") -> 
A58: =IF(Symbols!A58="","",Symbols!A58) ->  | D58: =IF(A58="","",RTD("cqg.rtd", ,"ContractData",C58, "LongDescription",, "T")) ->  | H58: =IF(A58="","",RTD("cqg.rtd", ,"ContractData",C58, "LastTradeToday",, "T")) ->  | I58: =IF(A58="","",RTD("cqg.rtd", ,"ContractData",C58, "NetLastTradeToday",, "T")) ->  | J58: =IF(A58="","",IFERROR(RTD("cqg.rtd", ,"ContractData",C58, "PerCentNetLastTrade",, "T")/100,"")) ->  | K58: =IF(A58="","",RTD("cqg.rtd", ,"ContractData", C58, "T_CVol",, "T")) ->  | L58: 58 | M58: =IFERROR(RANK($J58,INDIRECT(("$J$"&"1"&":$J$"&$A$351)))+COUNTIF($J$1:J58,J58)-1,"") -> 
A59: =IF(Symbols!A59="","",Symbols!A59) ->  | D59: =IF(A59="","",RTD("cqg.rtd", ,"ContractData",C59, "LongDescription",, "T")) ->  | H59: =IF(A59="","",RTD("cqg.rtd", ,"ContractData",C59, "LastTradeToday",, "T")) ->  | I59: =IF(A59="","",RTD("cqg.rtd", ,"ContractData",C59, "NetLastTradeToday",, "T")) ->  | J59: =IF(A59="","",IFERROR(RTD("cqg.rtd", ,"ContractData",C59, "PerCentNetLastTrade",, "T")/100,"")) ->  | K59: =IF(A59="","",RTD("cqg.rtd", ,"ContractData", C59, "T_CVol",, "T")) ->  | L59: 59 | M59: =IFERROR(RANK($J59,INDIRECT(("$J$"&"1"&":$J$"&$A$351)))+COUNTIF($J$1:J59,J59)-1,"") -> 
A60: =IF(Symbols!A60="","",Symbols!A60) ->  | D60: =IF(A60="","",RTD("cqg.rtd", ,"ContractData",C60, "LongDescription",, "T")) ->  | H60: =IF(A60="","",RTD("cqg.rtd", ,"ContractData",C60, "LastTradeToday",, "T")) ->  | I60: =IF(A60="","",RTD("cqg.rtd", ,"ContractData",C60, "NetLastTradeToday",, "T")) ->  | J60: =IF(A60="","",IFERROR(RTD("cqg.rtd", ,"ContractData",C60, "PerCentNetLastTrade",, "T")/100,"")) ->  | K60: =IF(A60="","",RTD("cqg.rtd", ,"ContractData", C60, "T_CVol",, "T")) ->  | L60: 60 | M60: =IFERROR(RANK($J60,INDIRECT(("$J$"&"1"&":$J$"&$A$351)))+COUNTIF($J$1:J60,J60)-1,"") -> 
A61: =IF(Symbols!A61="","",Symbols!A61) ->  | B61: =IF(A61="","",IF(J61>0,1,0)) ->  | C61: =A61 ->  | D61: =IF(A61="","",RTD("cqg.rtd", ,"ContractData",C61, "LongDescription",, "T")) ->  | H61: =IF(A61="","",RTD("cqg.rtd", ,"ContractData",C61, "LastTradeToday",, "T")) ->  | I61: =IF(A61="","",RTD("cqg.rtd", ,"ContractData",C61, "NetLastTradeToday",, "T")) ->  | J61: =IF(A61="","",IFERROR(RTD("cqg.rtd", ,"ContractData",C61, "PerCentNetLastTrade",, "T")/100,"")) ->  | K61: =IF(A61="","",RTD("cqg.rtd", ,"ContractData", C61, "T_CVol",, "T")) ->  | L61: 61 | M61: =IFERROR(RANK($J61,INDIRECT(("$J$"&"1"&":$J$"&$A$351)))+COUNTIF($J$1:J61,J61)-1,"") ->  | N61: =C61 -> 
A62: =IF(Symbols!A62="","",Symbols!A62) ->  | D62: =IF(A62="","",RTD("cqg.rtd", ,"ContractData",C62, "LongDescription",, "T")) ->  | H62: =IF(A62="","",RTD("cqg.rtd", ,"ContractData",C62, "LastTradeToday",, "T")) ->  | I62: =IF(A62="","",RTD("cqg.rtd", ,"ContractData",C62, "NetLastTradeToday",, "T")) ->  | J62: =IF(A62="","",IFERROR(RTD("cqg.rtd", ,"ContractData",C62, "PerCentNetLastTrade",, "T")/100,"")) ->  | K62: =IF(A62="","",RTD("cqg.rtd", ,"ContractData", C62, "T_CVol",, "T")) ->  | L62: 62 | M62: =IFERROR(RANK($J62,INDIRECT(("$J$"&"1"&":$J$"&$A$351)))+COUNTIF($J$1:J62,J62)-1,"") -> 
A63: =IF(Symbols!A63="","",Symbols!A63) ->  | D63: =IF(A63="","",RTD("cqg.rtd", ,"ContractData",C63, "LongDescription",, "T")) ->  | H63: =IF(A63="","",RTD("cqg.rtd", ,"ContractData",C63, "LastTradeToday",, "T")) ->  | I63: =IF(A63="","",RTD("cqg.rtd", ,"ContractData",C63, "NetLastTradeToday",, "T")) ->  | J63: =IF(A63="","",IFERROR(RTD("cqg.rtd", ,"ContractData",C63, "PerCentNetLastTrade",, "T")/100,"")) ->  | K63: =IF(A63="","",RTD("cqg.rtd", ,"ContractData", C63, "T_CVol",, "T")) ->  | L63: 63 | M63: =IFERROR(RANK($J63,INDIRECT(("$J$"&"1"&":$J$"&$A$351)))+COUNTIF($J$1:J63,J63)-1,"") -> 
A64: =IF(Symbols!A64="","",Symbols!A64) ->  | D64: =IF(A64="","",RTD("cqg.rtd", ,"ContractData",C64, "LongDescription",, "T")) ->  | H64: =IF(A64="","",RTD("cqg.rtd", ,"ContractData",C64, "LastTradeToday",, "T")) ->  | I64: =IF(A64="","",RTD("cqg.rtd", ,"ContractData",C64, "NetLastTradeToday",, "T")) ->  | J64: =IF(A64="","",IFERROR(RTD("cqg.rtd", ,"ContractData",C64, "PerCentNetLastTrade",, "T")/100,"")) ->  | K64: =IF(A64="","",RTD("cqg.rtd", ,"ContractData", C64, "T_CVol",, "T")) ->  | L64: 64 | M64: =IFERROR(RANK($J64,INDIRECT(("$J$"&"1"&":$J$"&$A$351)))+COUNTIF($J$1:J64,J64)-1,"") -> 
A65: =IF(Symbols!A65="","",Symbols!A65) ->  | D65: =IF(A65="","",RTD("cqg.rtd", ,"ContractData",C65, "LongDescription",, "T")) ->  | H65: =IF(A65="","",RTD("cqg.rtd", ,"ContractData",C65, "LastTradeToday",, "T")) ->  | I65: =IF(A65="","",RTD("cqg.rtd", ,"ContractData",C65, "NetLastTradeToday",, "T")) ->  | J65: =IF(A65="","",IFERROR(RTD("cqg.rtd", ,"ContractData",C65, "PerCentNetLastTrade",, "T")/100,"")) ->  | K65: =IF(A65="","",RTD("cqg.rtd", ,"ContractData", C65, "T_CVol",, "T")) ->  | L65: 65 | M65: =IFERROR(RANK($J65,INDIRECT(("$J$"&"1"&":$J$"&$A$351)))+COUNTIF($J$1:J65,J65)-1,"") -> 
A66: =IF(Symbols!A66="","",Symbols!A66) ->  | D66: =IF(A66="","",RTD("cqg.rtd", ,"ContractData",C66, "LongDescription",, "T")) ->  | H66: =IF(A66="","",RTD("cqg.rtd", ,"ContractData",C66, "LastTradeToday",, "T")) ->  | I66: =IF(A66="","",RTD("cqg.rtd", ,"ContractData",C66, "NetLastTradeToday",, "T")) ->  | J66: =IF(A66="","",IFERROR(RTD("cqg.rtd", ,"ContractData",C66, "PerCentNetLastTrade",, "T")/100,"")) ->  | K66: =IF(A66="","",RTD("cqg.rtd", ,"ContractData", C66, "T_CVol",, "T")) ->  | L66: 66 | M66: =IFERROR(RANK($J66,INDIRECT(("$J$"&"1"&":$J$"&$A$351)))+COUNTIF($J$1:J66,J66)-1,"") ->  | O66: =IFERROR(VLOOKUP($L66,$M$1:$N$350,2,FALSE),"") -> 
A67: =IF(Symbols!A67="","",Symbols!A67) ->  | D67: =IF(A67="","",RTD("cqg.rtd", ,"ContractData",C67, "LongDescription",, "T")) ->  | H67: =IF(A67="","",RTD("cqg.rtd", ,"ContractData",C67, "LastTradeToday",, "T")) ->  | I67: =IF(A67="","",RTD("cqg.rtd", ,"ContractData",C67, "NetLastTradeToday",, "T")) ->  | J67: =IF(A67="","",IFERROR(RTD("cqg.rtd", ,"ContractData",C67, "PerCentNetLastTrade",, "T")/100,"")) ->  | K67: =IF(A67="","",RTD("cqg.rtd", ,"ContractData", C67, "T_CVol",, "T")) ->  | L67: =L66+1 -> 67 | M67: =IFERROR(RANK($J67,INDIRECT(("$J$"&"1"&":$J$"&$A$351)))+COUNTIF($J$1:J67,J67)-1,"") -> 
A68: =IF(Symbols!A68="","",Symbols!A68) ->  | D68: =IF(A68="","",RTD("cqg.rtd", ,"ContractData",C68, "LongDescription",, "T")) ->  | H68: =IF(A68="","",RTD("cqg.rtd", ,"ContractData",C68, "LastTradeToday",, "T")) ->  | I68: =IF(A68="","",RTD("cqg.rtd", ,"ContractData",C68, "NetLastTradeToday",, "T")) ->  | J68: =IF(A68="","",IFERROR(RTD("cqg.rtd", ,"ContractData",C68, "PerCentNetLastTrade",, "T")/100,"")) ->  | K68: =IF(A68="","",RTD("cqg.rtd", ,"ContractData", C68, "T_CVol",, "T")) ->  | L68: 68 | M68: =IFERROR(RANK($J68,INDIRECT(("$J$"&"1"&":$J$"&$A$351)))+COUNTIF($J$1:J68,J68)-1,"") -> 
A69: =IF(Symbols!A69="","",Symbols!A69) ->  | D69: =IF(A69="","",RTD("cqg.rtd", ,"ContractData",C69, "LongDescription",, "T")) ->  | H69: =IF(A69="","",RTD("cqg.rtd", ,"ContractData",C69, "LastTradeToday",, "T")) ->  | I69: =IF(A69="","",RTD("cqg.rtd", ,"ContractData",C69, "NetLastTradeToday",, "T")) ->  | J69: =IF(A69="","",IFERROR(RTD("cqg.rtd", ,"ContractData",C69, "PerCentNetLastTrade",, "T")/100,"")) ->  | K69: =IF(A69="","",RTD("cqg.rtd", ,"ContractData", C69, "T_CVol",, "T")) ->  | L69: 69 | M69: =IFERROR(RANK($J69,INDIRECT(("$J$"&"1"&":$J$"&$A$351)))+COUNTIF($J$1:J69,J69)-1,"") -> 
A70: =IF(Symbols!A70="","",Symbols!A70) ->  | D70: =IF(A70="","",RTD("cqg.rtd", ,"ContractData",C70, "LongDescription",, "T")) ->  | H70: =IF(A70="","",RTD("cqg.rtd", ,"ContractData",C70, "LastTradeToday",, "T")) ->  | I70: =IF(A70="","",RTD("cqg.rtd", ,"ContractData",C70, "NetLastTradeToday",, "T")) ->  | J70: =IF(A70="","",IFERROR(RTD("cqg.rtd", ,"ContractData",C70, "PerCentNetLastTrade",, "T")/100,"")) ->  | K70: =IF(A70="","",RTD("cqg.rtd", ,"ContractData", C70, "T_CVol",, "T")) ->  | L70: 70 | M70: =IFERROR(RANK($J70,INDIRECT(("$J$"&"1"&":$J$"&$A$351)))+COUNTIF($J$1:J70,J70)-1,"") -> 
A71: =IF(Symbols!A71="","",Symbols!A71) ->  | D71: =IF(A71="","",RTD("cqg.rtd", ,"ContractData",C71, "LongDescription",, "T")) ->  | H71: =IF(A71="","",RTD("cqg.rtd", ,"ContractData",C71, "LastTradeToday",, "T")) ->  | I71: =IF(A71="","",RTD("cqg.rtd", ,"ContractData",C71, "NetLastTradeToday",, "T")) ->  | J71: =IF(A71="","",IFERROR(RTD("cqg.rtd", ,"ContractData",C71, "PerCentNetLastTrade",, "T")/100,"")) ->  | K71: =IF(A71="","",RTD("cqg.rtd", ,"ContractData", C71, "T_CVol",, "T")) ->  | L71: 71 | M71: =IFERROR(RANK($J71,INDIRECT(("$J$"&"1"&":$J$"&$A$351)))+COUNTIF($J$1:J71,J71)-1,"") -> 
A72: =IF(Symbols!A72="","",Symbols!A72) ->  | D72: =IF(A72="","",RTD("cqg.rtd", ,"ContractData",C72, "LongDescription",, "T")) ->  | H72: =IF(A72="","",RTD("cqg.rtd", ,"ContractData",C72, "LastTradeToday",, "T")) ->  | I72: =IF(A72="","",RTD("cqg.rtd", ,"ContractData",C72, "NetLastTradeToday",, "T")) ->  | J72: =IF(A72="","",IFERROR(RTD("cqg.rtd", ,"ContractData",C72, "PerCentNetLastTrade",, "T")/100,"")) ->  | K72: =IF(A72="","",RTD("cqg.rtd", ,"ContractData", C72, "T_CVol",, "T")) ->  | L72: 72 | M72: =IFERROR(RANK($J72,INDIRECT(("$J$"&"1"&":$J$"&$A$351)))+COUNTIF($J$1:J72,J72)-1,"") -> 
A73: =IF(Symbols!A73="","",Symbols!A73) ->  | D73: =IF(A73="","",RTD("cqg.rtd", ,"ContractData",C73, "LongDescription",, "T")) ->  | H73: =IF(A73="","",RTD("cqg.rtd", ,"ContractData",C73, "LastTradeToday",, "T")) ->  | I73: =IF(A73="","",RTD("cqg.rtd", ,"ContractData",C73, "NetLastTradeToday",, "T")) ->  | J73: =IF(A73="","",IFERROR(RTD("cqg.rtd", ,"ContractData",C73, "PerCentNetLastTrade",, "T")/100,"")) ->  | K73: =IF(A73="","",RTD("cqg.rtd", ,"ContractData", C73, "T_CVol",, "T")) ->  | L73: 73 | M73: =IFERROR(RANK($J73,INDIRECT(("$J$"&"1"&":$J$"&$A$351)))+COUNTIF($J$1:J73,J73)-1,"") -> 
A74: =IF(Symbols!A74="","",Symbols!A74) ->  | D74: =IF(A74="","",RTD("cqg.rtd", ,"ContractData",C74, "LongDescription",, "T")) ->  | H74: =IF(A74="","",RTD("cqg.rtd", ,"ContractData",C74, "LastTradeToday",, "T")) ->  | I74: =IF(A74="","",RTD("cqg.rtd", ,"ContractData",C74, "NetLastTradeToday",, "T")) ->  | J74: =IF(A74="","",IFERROR(RTD("cqg.rtd", ,"ContractData",C74, "PerCentNetLastTrade",, "T")/100,"")) ->  | K74: =IF(A74="","",RTD("cqg.rtd", ,"ContractData", C74, "T_CVol",, "T")) ->  | L74: 74 | M74: =IFERROR(RANK($J74,INDIRECT(("$J$"&"1"&":$J$"&$A$351)))+COUNTIF($J$1:J74,J74)-1,"") -> 
A75: =IF(Symbols!A75="","",Symbols!A75) ->  | D75: =IF(A75="","",RTD("cqg.rtd", ,"ContractData",C75, "LongDescription",, "T")) ->  | H75: =IF(A75="","",RTD("cqg.rtd", ,"ContractData",C75, "LastTradeToday",, "T")) ->  | I75: =IF(A75="","",RTD("cqg.rtd", ,"ContractData",C75, "NetLastTradeToday",, "T")) ->  | J75: =IF(A75="","",IFERROR(RTD("cqg.rtd", ,"ContractData",C75, "PerCentNetLastTrade",, "T")/100,"")) ->  | K75: =IF(A75="","",RTD("cqg.rtd", ,"ContractData", C75, "T_CVol",, "T")) ->  | L75: 75 | M75: =IFERROR(RANK($J75,INDIRECT(("$J$"&"1"&":$J$"&$A$351)))+COUNTIF($J$1:J75,J75)-1,"") -> 
A76: =IF(Symbols!A76="","",Symbols!A76) ->  | D76: =IF(A76="","",RTD("cqg.rtd", ,"ContractData",C76, "LongDescription",, "T")) ->  | H76: =IF(A76="","",RTD("cqg.rtd", ,"ContractData",C76, "LastTradeToday",, "T")) ->  | I76: =IF(A76="","",RTD("cqg.rtd", ,"ContractData",C76, "NetLastTradeToday",, "T")) ->  | J76: =IF(A76="","",IFERROR(RTD("cqg.rtd", ,"ContractData",C76, "PerCentNetLastTrade",, "T")/100,"")) ->  | K76: =IF(A76="","",RTD("cqg.rtd", ,"ContractData", C76, "T_CVol",, "T")) ->  | L76: 76 | M76: =IFERROR(RANK($J76,INDIRECT(("$J$"&"1"&":$J$"&$A$351)))+COUNTIF($J$1:J76,J76)-1,"") -> 
A77: =IF(Symbols!A77="","",Symbols!A77) ->  | D77: =IF(A77="","",RTD("cqg.rtd", ,"ContractData",C77, "LongDescription",, "T")) ->  | H77: =IF(A77="","",RTD("cqg.rtd", ,"ContractData",C77, "LastTradeToday",, "T")) ->  | I77: =IF(A77="","",RTD("cqg.rtd", ,"ContractData",C77, "NetLastTradeToday",, "T")) ->  | J77: =IF(A77="","",IFERROR(RTD("cqg.rtd", ,"ContractData",C77, "PerCentNetLastTrade",, "T")/100,"")) ->  | K77: =IF(A77="","",RTD("cqg.rtd", ,"ContractData", C77, "T_CVol",, "T")) ->  | L77: 77 | M77: =IFERROR(RANK($J77,INDIRECT(("$J$"&"1"&":$J$"&$A$351)))+COUNTIF($J$1:J77,J77)-1,"") -> 
A78: =IF(Symbols!A78="","",Symbols!A78) ->  | D78: =IF(A78="","",RTD("cqg.rtd", ,"ContractData",C78, "LongDescription",, "T")) ->  | H78: =IF(A78="","",RTD("cqg.rtd", ,"ContractData",C78, "LastTradeToday",, "T")) ->  | I78: =IF(A78="","",RTD("cqg.rtd", ,"ContractData",C78, "NetLastTradeToday",, "T")) ->  | J78: =IF(A78="","",IFERROR(RTD("cqg.rtd", ,"ContractData",C78, "PerCentNetLastTrade",, "T")/100,"")) ->  | K78: =IF(A78="","",RTD("cqg.rtd", ,"ContractData", C78, "T_CVol",, "T")) ->  | L78: 78 | M78: =IFERROR(RANK($J78,INDIRECT(("$J$"&"1"&":$J$"&$A$351)))+COUNTIF($J$1:J78,J78)-1,"") -> 
A79: =IF(Symbols!A79="","",Symbols!A79) ->  | D79: =IF(A79="","",RTD("cqg.rtd", ,"ContractData",C79, "LongDescription",, "T")) ->  | H79: =IF(A79="","",RTD("cqg.rtd", ,"ContractData",C79, "LastTradeToday",, "T")) ->  | I79: =IF(A79="","",RTD("cqg.rtd", ,"ContractData",C79, "NetLastTradeToday",, "T")) ->  | J79: =IF(A79="","",IFERROR(RTD("cqg.rtd", ,"ContractData",C79, "PerCentNetLastTrade",, "T")/100,"")) ->  | K79: =IF(A79="","",RTD("cqg.rtd", ,"ContractData", C79, "T_CVol",, "T")) ->  | L79: 79 | M79: =IFERROR(RANK($J79,INDIRECT(("$J$"&"1"&":$J$"&$A$351)))+COUNTIF($J$1:J79,J79)-1,"") -> 
A80: =IF(Symbols!A80="","",Symbols!A80) ->  | D80: =IF(A80="","",RTD("cqg.rtd", ,"ContractData",C80, "LongDescription",, "T")) ->  | H80: =IF(A80="","",RTD("cqg.rtd", ,"ContractData",C80, "LastTradeToday",, "T")) ->  | I80: =IF(A80="","",RTD("cqg.rtd", ,"ContractData",C80, "NetLastTradeToday",, "T")) ->  | J80: =IF(A80="","",IFERROR(RTD("cqg.rtd", ,"ContractData",C80, "PerCentNetLastTrade",, "T")/100,"")) ->  | K80: =IF(A80="","",RTD("cqg.rtd", ,"ContractData", C80, "T_CVol",, "T")) ->  | L80: 80 | M80: =IFERROR(RANK($J80,INDIRECT(("$J$"&"1"&":$J$"&$A$351)))+COUNTIF($J$1:J80,J80)-1,"") -> 
A81: =IF(Symbols!A81="","",Symbols!A81) ->  | D81: =IF(A81="","",RTD("cqg.rtd", ,"ContractData",C81, "LongDescription",, "T")) ->  | H81: =IF(A81="","",RTD("cqg.rtd", ,"ContractData",C81, "LastTradeToday",, "T")) ->  | I81: =IF(A81="","",RTD("cqg.rtd", ,"ContractData",C81, "NetLastTradeToday",, "T")) ->  | J81: =IF(A81="","",IFERROR(RTD("cqg.rtd", ,"ContractData",C81, "PerCentNetLastTrade",, "T")/100,"")) ->  | K81: =IF(A81="","",RTD("cqg.rtd", ,"ContractData", C81, "T_CVol",, "T")) ->  | L81: 81 | M81: =IFERROR(RANK($J81,INDIRECT(("$J$"&"1"&":$J$"&$A$351)))+COUNTIF($J$1:J81,J81)-1,"") -> 
A82: =IF(Symbols!A82="","",Symbols!A82) ->  | D82: =IF(A82="","",RTD("cqg.rtd", ,"ContractData",C82, "LongDescription",, "T")) ->  | H82: =IF(A82="","",RTD("cqg.rtd", ,"ContractData",C82, "LastTradeToday",, "T")) ->  | I82: =IF(A82="","",RTD("cqg.rtd", ,"ContractData",C82, "NetLastTradeToday",, "T")) ->  | J82: =IF(A82="","",IFERROR(RTD("cqg.rtd", ,"ContractData",C82, "PerCentNetLastTrade",, "T")/100,"")) ->  | K82: =IF(A82="","",RTD("cqg.rtd", ,"ContractData", C82, "T_CVol",, "T")) ->  | L82: 82 | M82: =IFERROR(RANK($J82,INDIRECT(("$J$"&"1"&":$J$"&$A$351)))+COUNTIF($J$1:J82,J82)-1,"") -> 
A83: =IF(Symbols!A83="","",Symbols!A83) ->  | D83: =IF(A83="","",RTD("cqg.rtd", ,"ContractData",C83, "LongDescription",, "T")) ->  | H83: =IF(A83="","",RTD("cqg.rtd", ,"ContractData",C83, "LastTradeToday",, "T")) ->  | I83: =IF(A83="","",RTD("cqg.rtd", ,"ContractData",C83, "NetLastTradeToday",, "T")) ->  | J83: =IF(A83="","",IFERROR(RTD("cqg.rtd", ,"ContractData",C83, "PerCentNetLastTrade",, "T")/100,"")) ->  | K83: =IF(A83="","",RTD("cqg.rtd", ,"ContractData", C83, "T_CVol",, "T")) ->  | L83: 83 | M83: =IFERROR(RANK($J83,INDIRECT(("$J$"&"1"&":$J$"&$A$351)))+COUNTIF($J$1:J83,J83)-1,"") -> 
A84: =IF(Symbols!A84="","",Symbols!A84) ->  | D84: =IF(A84="","",RTD("cqg.rtd", ,"ContractData",C84, "LongDescription",, "T")) ->  | H84: =IF(A84="","",RTD("cqg.rtd", ,"ContractData",C84, "LastTradeToday",, "T")) ->  | I84: =IF(A84="","",RTD("cqg.rtd", ,"ContractData",C84, "NetLastTradeToday",, "T")) ->  | J84: =IF(A84="","",IFERROR(RTD("cqg.rtd", ,"ContractData",C84, "PerCentNetLastTrade",, "T")/100,"")) ->  | K84: =IF(A84="","",RTD("cqg.rtd", ,"ContractData", C84, "T_CVol",, "T")) ->  | L84: 84 | M84: =IFERROR(RANK($J84,INDIRECT(("$J$"&"1"&":$J$"&$A$351)))+COUNTIF($J$1:J84,J84)-1,"") -> 
A85: =IF(Symbols!A85="","",Symbols!A85) ->  | D85: =IF(A85="","",RTD("cqg.rtd", ,"ContractData",C85, "LongDescription",, "T")) ->  | H85: =IF(A85="","",RTD("cqg.rtd", ,"ContractData",C85, "LastTradeToday",, "T")) ->  | I85: =IF(A85="","",RTD("cqg.rtd", ,"ContractData",C85, "NetLastTradeToday",, "T")) ->  | J85: =IF(A85="","",IFERROR(RTD("cqg.rtd", ,"ContractData",C85, "PerCentNetLastTrade",, "T")/100,"")) ->  | K85: =IF(A85="","",RTD("cqg.rtd", ,"ContractData", C85, "T_CVol",, "T")) ->  | L85: 85 | M85: =IFERROR(RANK($J85,INDIRECT(("$J$"&"1"&":$J$"&$A$351)))+COUNTIF($J$1:J85,J85)-1,"") -> 
A86: =IF(Symbols!A86="","",Symbols!A86) ->  | D86: =IF(A86="","",RTD("cqg.rtd", ,"ContractData",C86, "LongDescription",, "T")) ->  | H86: =IF(A86="","",RTD("cqg.rtd", ,"ContractData",C86, "LastTradeToday",, "T")) ->  | I86: =IF(A86="","",RTD("cqg.rtd", ,"ContractData",C86, "NetLastTradeToday",, "T")) ->  | J86: =IF(A86="","",IFERROR(RTD("cqg.rtd", ,"ContractData",C86, "PerCentNetLastTrade",, "T")/100,"")) ->  | K86: =IF(A86="","",RTD("cqg.rtd", ,"ContractData", C86, "T_CVol",, "T")) ->  | L86: 86 | M86: =IFERROR(RANK($J86,INDIRECT(("$J$"&"1"&":$J$"&$A$351)))+COUNTIF($J$1:J86,J86)-1,"") -> 
A87: =IF(Symbols!A87="","",Symbols!A87) ->  | D87: =IF(A87="","",RTD("cqg.rtd", ,"ContractData",C87, "LongDescription",, "T")) ->  | H87: =IF(A87="","",RTD("cqg.rtd", ,"ContractData",C87, "LastTradeToday",, "T")) ->  | I87: =IF(A87="","",RTD("cqg.rtd", ,"ContractData",C87, "NetLastTradeToday",, "T")) ->  | J87: =IF(A87="","",IFERROR(RTD("cqg.rtd", ,"ContractData",C87, "PerCentNetLastTrade",, "T")/100,"")) ->  | K87: =IF(A87="","",RTD("cqg.rtd", ,"ContractData", C87, "T_CVol",, "T")) ->  | L87: 87 | M87: =IFERROR(RANK($J87,INDIRECT(("$J$"&"1"&":$J$"&$A$351)))+COUNTIF($J$1:J87,J87)-1,"") -> 
A88: =IF(Symbols!A88="","",Symbols!A88) ->  | D88: =IF(A88="","",RTD("cqg.rtd", ,"ContractData",C88, "LongDescription",, "T")) ->  | H88: =IF(A88="","",RTD("cqg.rtd", ,"ContractData",C88, "LastTradeToday",, "T")) ->  | I88: =IF(A88="","",RTD("cqg.rtd", ,"ContractData",C88, "NetLastTradeToday",, "T")) ->  | J88: =IF(A88="","",IFERROR(RTD("cqg.rtd", ,"ContractData",C88, "PerCentNetLastTrade",, "T")/100,"")) ->  | K88: =IF(A88="","",RTD("cqg.rtd", ,"ContractData", C88, "T_CVol",, "T")) ->  | L88: 88 | M88: =IFERROR(RANK($J88,INDIRECT(("$J$"&"1"&":$J$"&$A$351)))+COUNTIF($J$1:J88,J88)-1,"") -> 
A89: =IF(Symbols!A89="","",Symbols!A89) ->  | D89: =IF(A89="","",RTD("cqg.rtd", ,"ContractData",C89, "LongDescription",, "T")) ->  | H89: =IF(A89="","",RTD("cqg.rtd", ,"ContractData",C89, "LastTradeToday",, "T")) ->  | I89: =IF(A89="","",RTD("cqg.rtd", ,"ContractData",C89, "NetLastTradeToday",, "T")) ->  | J89: =IF(A89="","",IFERROR(RTD("cqg.rtd", ,"ContractData",C89, "PerCentNetLastTrade",, "T")/100,"")) ->  | K89: =IF(A89="","",RTD("cqg.rtd", ,"ContractData", C89, "T_CVol",, "T")) ->  | L89: 89 | M89: =IFERROR(RANK($J89,INDIRECT(("$J$"&"1"&":$J$"&$A$351)))+COUNTIF($J$1:J89,J89)-1,"") -> 
A90: =IF(Symbols!A90="","",Symbols!A90) ->  | D90: =IF(A90="","",RTD("cqg.rtd", ,"ContractData",C90, "LongDescription",, "T")) ->  | H90: =IF(A90="","",RTD("cqg.rtd", ,"ContractData",C90, "LastTradeToday",, "T")) ->  | I90: =IF(A90="","",RTD("cqg.rtd", ,"ContractData",C90, "NetLastTradeToday",, "T")) ->  | J90: =IF(A90="","",IFERROR(RTD("cqg.rtd", ,"ContractData",C90, "PerCentNetLastTrade",, "T")/100,"")) ->  | K90: =IF(A90="","",RTD("cqg.rtd", ,"ContractData", C90, "T_CVol",, "T")) ->  | L90: 90 | M90: =IFERROR(RANK($J90,INDIRECT(("$J$"&"1"&":$J$"&$A$351)))+COUNTIF($J$1:J90,J90)-1,"") -> 
A91: =IF(Symbols!A91="","",Symbols!A91) ->  | D91: =IF(A91="","",RTD("cqg.rtd", ,"ContractData",C91, "LongDescription",, "T")) ->  | H91: =IF(A91="","",RTD("cqg.rtd", ,"ContractData",C91, "LastTradeToday",, "T")) ->  | I91: =IF(A91="","",RTD("cqg.rtd", ,"ContractData",C91, "NetLastTradeToday",, "T")) ->  | J91: =IF(A91="","",IFERROR(RTD("cqg.rtd", ,"ContractData",C91, "PerCentNetLastTrade",, "T")/100,"")) ->  | K91: =IF(A91="","",RTD("cqg.rtd", ,"ContractData", C91, "T_CVol",, "T")) ->  | L91: 91 | M91: =IFERROR(RANK($J91,INDIRECT(("$J$"&"1"&":$J$"&$A$351)))+COUNTIF($J$1:J91,J91)-1,"") -> 
A92: =IF(Symbols!A92="","",Symbols!A92) ->  | D92: =IF(A92="","",RTD("cqg.rtd", ,"ContractData",C92, "LongDescription",, "T")) ->  | H92: =IF(A92="","",RTD("cqg.rtd", ,"ContractData",C92, "LastTradeToday",, "T")) ->  | I92: =IF(A92="","",RTD("cqg.rtd", ,"ContractData",C92, "NetLastTradeToday",, "T")) ->  | J92: =IF(A92="","",IFERROR(RTD("cqg.rtd", ,"ContractData",C92, "PerCentNetLastTrade",, "T")/100,"")) ->  | K92: =IF(A92="","",RTD("cqg.rtd", ,"ContractData", C92, "T_CVol",, "T")) ->  | L92: 92 | M92: =IFERROR(RANK($J92,INDIRECT(("$J$"&"1"&":$J$"&$A$351)))+COUNTIF($J$1:J92,J92)-1,"") -> 
A93: =IF(Symbols!A93="","",Symbols!A93) ->  | D93: =IF(A93="","",RTD("cqg.rtd", ,"ContractData",C93, "LongDescription",, "T")) ->  | H93: =IF(A93="","",RTD("cqg.rtd", ,"ContractData",C93, "LastTradeToday",, "T")) ->  | I93: =IF(A93="","",RTD("cqg.rtd", ,"ContractData",C93, "NetLastTradeToday",, "T")) ->  | J93: =IF(A93="","",IFERROR(RTD("cqg.rtd", ,"ContractData",C93, "PerCentNetLastTrade",, "T")/100,"")) ->  | K93: =IF(A93="","",RTD("cqg.rtd", ,"ContractData", C93, "T_CVol",, "T")) ->  | L93: 93 | M93: =IFERROR(RANK($J93,INDIRECT(("$J$"&"1"&":$J$"&$A$351)))+COUNTIF($J$1:J93,J93)-1,"") -> 
A94: =IF(Symbols!A94="","",Symbols!A94) ->  | D94: =IF(A94="","",RTD("cqg.rtd", ,"ContractData",C94, "LongDescription",, "T")) ->  | H94: =IF(A94="","",RTD("cqg.rtd", ,"ContractData",C94, "LastTradeToday",, "T")) ->  | I94: =IF(A94="","",RTD("cqg.rtd", ,"ContractData",C94, "NetLastTradeToday",, "T")) ->  | J94: =IF(A94="","",IFERROR(RTD("cqg.rtd", ,"ContractData",C94, "PerCentNetLastTrade",, "T")/100,"")) ->  | K94: =IF(A94="","",RTD("cqg.rtd", ,"ContractData", C94, "T_CVol",, "T")) ->  | L94: 94 | M94: =IFERROR(RANK($J94,INDIRECT(("$J$"&"1"&":$J$"&$A$351)))+COUNTIF($J$1:J94,J94)-1,"") -> 
A95: =IF(Symbols!A95="","",Symbols!A95) ->  | D95: =IF(A95="","",RTD("cqg.rtd", ,"ContractData",C95, "LongDescription",, "T")) ->  | H95: =IF(A95="","",RTD("cqg.rtd", ,"ContractData",C95, "LastTradeToday",, "T")) ->  | I95: =IF(A95="","",RTD("cqg.rtd", ,"ContractData",C95, "NetLastTradeToday",, "T")) ->  | J95: =IF(A95="","",IFERROR(RTD("cqg.rtd", ,"ContractData",C95, "PerCentNetLastTrade",, "T")/100,"")) ->  | K95: =IF(A95="","",RTD("cqg.rtd", ,"ContractData", C95, "T_CVol",, "T")) ->  | L95: 95 | M95: =IFERROR(RANK($J95,INDIRECT(("$J$"&"1"&":$J$"&$A$351)))+COUNTIF($J$1:J95,J95)-1,"") -> 
A96: =IF(Symbols!A96="","",Symbols!A96) ->  | D96: =IF(A96="","",RTD("cqg.rtd", ,"ContractData",C96, "LongDescription",, "T")) ->  | H96: =IF(A96="","",RTD("cqg.rtd", ,"ContractData",C96, "LastTradeToday",, "T")) ->  | I96: =IF(A96="","",RTD("cqg.rtd", ,"ContractData",C96, "NetLastTradeToday",, "T")) ->  | J96: =IF(A96="","",IFERROR(RTD("cqg.rtd", ,"ContractData",C96, "PerCentNetLastTrade",, "T")/100,"")) ->  | K96: =IF(A96="","",RTD("cqg.rtd", ,"ContractData", C96, "T_CVol",, "T")) ->  | L96: 96 | M96: =IFERROR(RANK($J96,INDIRECT(("$J$"&"1"&":$J$"&$A$351)))+COUNTIF($J$1:J96,J96)-1,"") -> 
A97: =IF(Symbols!A97="","",Symbols!A97) ->  | D97: =IF(A97="","",RTD("cqg.rtd", ,"ContractData",C97, "LongDescription",, "T")) ->  | H97: =IF(A97="","",RTD("cqg.rtd", ,"ContractData",C97, "LastTradeToday",, "T")) ->  | I97: =IF(A97="","",RTD("cqg.rtd", ,"ContractData",C97, "NetLastTradeToday",, "T")) ->  | J97: =IF(A97="","",IFERROR(RTD("cqg.rtd", ,"ContractData",C97, "PerCentNetLastTrade",, "T")/100,"")) ->  | K97: =IF(A97="","",RTD("cqg.rtd", ,"ContractData", C97, "T_CVol",, "T")) ->  | L97: 97 | M97: =IFERROR(RANK($J97,INDIRECT(("$J$"&"1"&":$J$"&$A$351)))+COUNTIF($J$1:J97,J97)-1,"") -> 
A98: =IF(Symbols!A98="","",Symbols!A98) ->  | D98: =IF(A98="","",RTD("cqg.rtd", ,"ContractData",C98, "LongDescription",, "T")) ->  | H98: =IF(A98="","",RTD("cqg.rtd", ,"ContractData",C98, "LastTradeToday",, "T")) ->  | I98: =IF(A98="","",RTD("cqg.rtd", ,"ContractData",C98, "NetLastTradeToday",, "T")) ->  | J98: =IF(A98="","",IFERROR(RTD("cqg.rtd", ,"ContractData",C98, "PerCentNetLastTrade",, "T")/100,"")) ->  | K98: =IF(A98="","",RTD("cqg.rtd", ,"ContractData", C98, "T_CVol",, "T")) ->  | L98: 98 | M98: =IFERROR(RANK($J98,INDIRECT(("$J$"&"1"&":$J$"&$A$351)))+COUNTIF($J$1:J98,J98)-1,"") -> 
A99: =IF(Symbols!A99="","",Symbols!A99) ->  | D99: =IF(A99="","",RTD("cqg.rtd", ,"ContractData",C99, "LongDescription",, "T")) ->  | H99: =IF(A99="","",RTD("cqg.rtd", ,"ContractData",C99, "LastTradeToday",, "T")) ->  | I99: =IF(A99="","",RTD("cqg.rtd", ,"ContractData",C99, "NetLastTradeToday",, "T")) ->  | J99: =IF(A99="","",IFERROR(RTD("cqg.rtd", ,"ContractData",C99, "PerCentNetLastTrade",, "T")/100,"")) ->  | K99: =IF(A99="","",RTD("cqg.rtd", ,"ContractData", C99, "T_CVol",, "T")) ->  | L99: 99 | M99: =IFERROR(RANK($J99,INDIRECT(("$J$"&"1"&":$J$"&$A$351)))+COUNTIF($J$1:J99,J99)-1,"") -> 
A100: =IF(Symbols!A100="","",Symbols!A100) ->  | D100: =IF(A100="","",RTD("cqg.rtd", ,"ContractData",C100, "LongDescription",, "T")) ->  | H100: =IF(A100="","",RTD("cqg.rtd", ,"ContractData",C100, "LastTradeToday",, "T")) ->  | I100: =IF(A100="","",RTD("cqg.rtd", ,"ContractData",C100, "NetLastTradeToday",, "T")) ->  | J100: =IF(A100="","",IFERROR(RTD("cqg.rtd", ,"ContractData",C100, "PerCentNetLastTrade",, "T")/100,"")) ->  | K100: =IF(A100="","",RTD("cqg.rtd", ,"ContractData", C100, "T_CVol",, "T")) ->  | L100: 100 | M100: =IFERROR(RANK($J100,INDIRECT(("$J$"&"1"&":$J$"&$A$351)))+COUNTIF($J$1:J100,J100)-1,"") -> 
A101: =IF(Symbols!A101="","",Symbols!A101) ->  | D101: =IF(A101="","",RTD("cqg.rtd", ,"ContractData",C101, "LongDescription",, "T")) ->  | H101: =IF(A101="","",RTD("cqg.rtd", ,"ContractData",C101, "LastTradeToday",, "T")) ->  | I101: =IF(A101="","",RTD("cqg.rtd", ,"ContractData",C101, "NetLastTradeToday",, "T")) ->  | J101: =IF(A101="","",IFERROR(RTD("cqg.rtd", ,"ContractData",C101, "PerCentNetLastTrade",, "T")/100,"")) ->  | K101: =IF(A101="","",RTD("cqg.rtd", ,"ContractData", C101, "T_CVol",, "T")) ->  | L101: 101 | M101: =IFERROR(RANK($J101,INDIRECT(("$J$"&"1"&":$J$"&$A$351)))+COUNTIF($J$1:J101,J101)-1,"") -> 
A102: =IF(Symbols!A102="","",Symbols!A102) ->  | D102: =IF(A102="","",RTD("cqg.rtd", ,"ContractData",C102, "LongDescription",, "T")) ->  | H102: =IF(A102="","",RTD("cqg.rtd", ,"ContractData",C102, "LastTradeToday",, "T")) ->  | I102: =IF(A102="","",RTD("cqg.rtd", ,"ContractData",C102, "NetLastTradeToday",, "T")) ->  | J102: =IF(A102="","",IFERROR(RTD("cqg.rtd", ,"ContractData",C102, "PerCentNetLastTrade",, "T")/100,"")) ->  | K102: =IF(A102="","",RTD("cqg.rtd", ,"ContractData", C102, "T_CVol",, "T")) ->  | L102: 102 | M102: =IFERROR(RANK($J102,INDIRECT(("$J$"&"1"&":$J$"&$A$351)))+COUNTIF($J$1:J102,J102)-1,"") -> 
A103: =IF(Symbols!A103="","",Symbols!A103) ->  | D103: =IF(A103="","",RTD("cqg.rtd", ,"ContractData",C103, "LongDescription",, "T")) ->  | H103: =IF(A103="","",RTD("cqg.rtd", ,"ContractData",C103, "LastTradeToday",, "T")) ->  | I103: =IF(A103="","",RTD("cqg.rtd", ,"ContractData",C103, "NetLastTradeToday",, "T")) ->  | J103: =IF(A103="","",IFERROR(RTD("cqg.rtd", ,"ContractData",C103, "PerCentNetLastTrade",, "T")/100,"")) ->  | K103: =IF(A103="","",RTD("cqg.rtd", ,"ContractData", C103, "T_CVol",, "T")) ->  | L103: 103 | M103: =IFERROR(RANK($J103,INDIRECT(("$J$"&"1"&":$J$"&$A$351)))+COUNTIF($J$1:J103,J103)-1,"") -> 
A104: =IF(Symbols!A104="","",Symbols!A104) ->  | D104: =IF(A104="","",RTD("cqg.rtd", ,"ContractData",C104, "LongDescription",, "T")) ->  | H104: =IF(A104="","",RTD("cqg.rtd", ,"ContractData",C104, "LastTradeToday",, "T")) ->  | I104: =IF(A104="","",RTD("cqg.rtd", ,"ContractData",C104, "NetLastTradeToday",, "T")) ->  | J104: =IF(A104="","",IFERROR(RTD("cqg.rtd", ,"ContractData",C104, "PerCentNetLastTrade",, "T")/100,"")) ->  | K104: =IF(A104="","",RTD("cqg.rtd", ,"ContractData", C104, "T_CVol",, "T")) ->  | L104: 104 | M104: =IFERROR(RANK($J104,INDIRECT(("$J$"&"1"&":$J$"&$A$351)))+COUNTIF($J$1:J104,J104)-1,"") -> 
A105: =IF(Symbols!A105="","",Symbols!A105) ->  | D105: =IF(A105="","",RTD("cqg.rtd", ,"ContractData",C105, "LongDescription",, "T")) ->  | H105: =IF(A105="","",RTD("cqg.rtd", ,"ContractData",C105, "LastTradeToday",, "T")) ->  | I105: =IF(A105="","",RTD("cqg.rtd", ,"ContractData",C105, "NetLastTradeToday",, "T")) ->  | J105: =IF(A105="","",IFERROR(RTD("cqg.rtd", ,"ContractData",C105, "PerCentNetLastTrade",, "T")/100,"")) ->  | K105: =IF(A105="","",RTD("cqg.rtd", ,"ContractData", C105, "T_CVol",, "T")) ->  | L105: 105 | M105: =IFERROR(RANK($J105,INDIRECT(("$J$"&"1"&":$J$"&$A$351)))+COUNTIF($J$1:J105,J105)-1,"") -> 
A106: =IF(Symbols!A106="","",Symbols!A106) ->  | D106: =IF(A106="","",RTD("cqg.rtd", ,"ContractData",C106, "LongDescription",, "T")) ->  | H106: =IF(A106="","",RTD("cqg.rtd", ,"ContractData",C106, "LastTradeToday",, "T")) ->  | I106: =IF(A106="","",RTD("cqg.rtd", ,"ContractData",C106, "NetLastTradeToday",, "T")) ->  | J106: =IF(A106="","",IFERROR(RTD("cqg.rtd", ,"ContractData",C106, "PerCentNetLastTrade",, "T")/100,"")) ->  | K106: =IF(A106="","",RTD("cqg.rtd", ,"ContractData", C106, "T_CVol",, "T")) ->  | L106: 106 | M106: =IFERROR(RANK($J106,INDIRECT(("$J$"&"1"&":$J$"&$A$351)))+COUNTIF($J$1:J106,J106)-1,"") -> 
A107: =IF(Symbols!A107="","",Symbols!A107) ->  | D107: =IF(A107="","",RTD("cqg.rtd", ,"ContractData",C107, "LongDescription",, "T")) ->  | H107: =IF(A107="","",RTD("cqg.rtd", ,"ContractData",C107, "LastTradeToday",, "T")) ->  | I107: =IF(A107="","",RTD("cqg.rtd", ,"ContractData",C107, "NetLastTradeToday",, "T")) ->  | J107: =IF(A107="","",IFERROR(RTD("cqg.rtd", ,"ContractData",C107, "PerCentNetLastTrade",, "T")/100,"")) ->  | K107: =IF(A107="","",RTD("cqg.rtd", ,"ContractData", C107, "T_CVol",, "T")) ->  | L107: 107 | M107: =IFERROR(RANK($J107,INDIRECT(("$J$"&"1"&":$J$"&$A$351)))+COUNTIF($J$1:J107,J107)-1,"") -> 
A108: =IF(Symbols!A108="","",Symbols!A108) ->  | D108: =IF(A108="","",RTD("cqg.rtd", ,"ContractData",C108, "LongDescription",, "T")) ->  | H108: =IF(A108="","",RTD("cqg.rtd", ,"ContractData",C108, "LastTradeToday",, "T")) ->  | I108: =IF(A108="","",RTD("cqg.rtd", ,"ContractData",C108, "NetLastTradeToday",, "T")) ->  | J108: =IF(A108="","",IFERROR(RTD("cqg.rtd", ,"ContractData",C108, "PerCentNetLastTrade",, "T")/100,"")) ->  | K108: =IF(A108="","",RTD("cqg.rtd", ,"ContractData", C108, "T_CVol",, "T")) ->  | L108: 108 | M108: =IFERROR(RANK($J108,INDIRECT(("$J$"&"1"&":$J$"&$A$351)))+COUNTIF($J$1:J108,J108)-1,"") -> 
A109: =IF(Symbols!A109="","",Symbols!A109) ->  | D109: =IF(A109="","",RTD("cqg.rtd", ,"ContractData",C109, "LongDescription",, "T")) ->  | H109: =IF(A109="","",RTD("cqg.rtd", ,"ContractData",C109, "LastTradeToday",, "T")) ->  | I109: =IF(A109="","",RTD("cqg.rtd", ,"ContractData",C109, "NetLastTradeToday",, "T")) ->  | J109: =IF(A109="","",IFERROR(RTD("cqg.rtd", ,"ContractData",C109, "PerCentNetLastTrade",, "T")/100,"")) ->  | K109: =IF(A109="","",RTD("cqg.rtd", ,"ContractData", C109, "T_CVol",, "T")) ->  | L109: 109 | M109: =IFERROR(RANK($J109,INDIRECT(("$J$"&"1"&":$J$"&$A$351)))+COUNTIF($J$1:J109,J109)-1,"") -> 
A110: =IF(Symbols!A110="","",Symbols!A110) ->  | D110: =IF(A110="","",RTD("cqg.rtd", ,"ContractData",C110, "LongDescription",, "T")) ->  | H110: =IF(A110="","",RTD("cqg.rtd", ,"ContractData",C110, "LastTradeToday",, "T")) ->  | I110: =IF(A110="","",RTD("cqg.rtd", ,"ContractData",C110, "NetLastTradeToday",, "T")) ->  | J110: =IF(A110="","",IFERROR(RTD("cqg.rtd", ,"ContractData",C110, "PerCentNetLastTrade",, "T")/100,"")) ->  | K110: =IF(A110="","",RTD("cqg.rtd", ,"ContractData", C110, "T_CVol",, "T")) ->  | L110: 110 | M110: =IFERROR(RANK($J110,INDIRECT(("$J$"&"1"&":$J$"&$A$351)))+COUNTIF($J$1:J110,J110)-1,"") -> 
A111: =IF(Symbols!A111="","",Symbols!A111) ->  | D111: =IF(A111="","",RTD("cqg.rtd", ,"ContractData",C111, "LongDescription",, "T")) ->  | H111: =IF(A111="","",RTD("cqg.rtd", ,"ContractData",C111, "LastTradeToday",, "T")) ->  | I111: =IF(A111="","",RTD("cqg.rtd", ,"ContractData",C111, "NetLastTradeToday",, "T")) ->  | J111: =IF(A111="","",IFERROR(RTD("cqg.rtd", ,"ContractData",C111, "PerCentNetLastTrade",, "T")/100,"")) ->  | K111: =IF(A111="","",RTD("cqg.rtd", ,"ContractData", C111, "T_CVol",, "T")) ->  | L111: 111 | M111: =IFERROR(RANK($J111,INDIRECT(("$J$"&"1"&":$J$"&$A$351)))+COUNTIF($J$1:J111,J111)-1,"") -> 
A112: =IF(Symbols!A112="","",Symbols!A112) ->  | D112: =IF(A112="","",RTD("cqg.rtd", ,"ContractData",C112, "LongDescription",, "T")) ->  | H112: =IF(A112="","",RTD("cqg.rtd", ,"ContractData",C112, "LastTradeToday",, "T")) ->  | I112: =IF(A112="","",RTD("cqg.rtd", ,"ContractData",C112, "NetLastTradeToday",, "T")) ->  | J112: =IF(A112="","",IFERROR(RTD("cqg.rtd", ,"ContractData",C112, "PerCentNetLastTrade",, "T")/100,"")) ->  | K112: =IF(A112="","",RTD("cqg.rtd", ,"ContractData", C112, "T_CVol",, "T")) ->  | L112: 112 | M112: =IFERROR(RANK($J112,INDIRECT(("$J$"&"1"&":$J$"&$A$351)))+COUNTIF($J$1:J112,J112)-1,"") -> 
A113: =IF(Symbols!A113="","",Symbols!A113) ->  | D113: =IF(A113="","",RTD("cqg.rtd", ,"ContractData",C113, "LongDescription",, "T")) ->  | H113: =IF(A113="","",RTD("cqg.rtd", ,"ContractData",C113, "LastTradeToday",, "T")) ->  | I113: =IF(A113="","",RTD("cqg.rtd", ,"ContractData",C113, "NetLastTradeToday",, "T")) ->  | J113: =IF(A113="","",IFERROR(RTD("cqg.rtd", ,"ContractData",C113, "PerCentNetLastTrade",, "T")/100,"")) ->  | K113: =IF(A113="","",RTD("cqg.rtd", ,"ContractData", C113, "T_CVol",, "T")) ->  | L113: 113 | M113: =IFERROR(RANK($J113,INDIRECT(("$J$"&"1"&":$J$"&$A$351)))+COUNTIF($J$1:J113,J113)-1,"") -> 
A114: =IF(Symbols!A114="","",Symbols!A114) ->  | D114: =IF(A114="","",RTD("cqg.rtd", ,"ContractData",C114, "LongDescription",, "T")) ->  | H114: =IF(A114="","",RTD("cqg.rtd", ,"ContractData",C114, "LastTradeToday",, "T")) ->  | I114: =IF(A114="","",RTD("cqg.rtd", ,"ContractData",C114, "NetLastTradeToday",, "T")) ->  | J114: =IF(A114="","",IFERROR(RTD("cqg.rtd", ,"ContractData",C114, "PerCentNetLastTrade",, "T")/100,"")) ->  | K114: =IF(A114="","",RTD("cqg.rtd", ,"ContractData", C114, "T_CVol",, "T")) ->  | L114: 114 | M114: =IFERROR(RANK($J114,INDIRECT(("$J$"&"1"&":$J$"&$A$351)))+COUNTIF($J$1:J114,J114)-1,"") -> 
A115: =IF(Symbols!A115="","",Symbols!A115) ->  | D115: =IF(A115="","",RTD("cqg.rtd", ,"ContractData",C115, "LongDescription",, "T")) ->  | H115: =IF(A115="","",RTD("cqg.rtd", ,"ContractData",C115, "LastTradeToday",, "T")) ->  | I115: =IF(A115="","",RTD("cqg.rtd", ,"ContractData",C115, "NetLastTradeToday",, "T")) ->  | J115: =IF(A115="","",IFERROR(RTD("cqg.rtd", ,"ContractData",C115, "PerCentNetLastTrade",, "T")/100,"")) ->  | K115: =IF(A115="","",RTD("cqg.rtd", ,"ContractData", C115, "T_CVol",, "T")) ->  | L115: 115 | M115: =IFERROR(RANK($J115,INDIRECT(("$J$"&"1"&":$J$"&$A$351)))+COUNTIF($J$1:J115,J115)-1,"") -> 
A116: =IF(Symbols!A116="","",Symbols!A116) ->  | D116: =IF(A116="","",RTD("cqg.rtd", ,"ContractData",C116, "LongDescription",, "T")) ->  | H116: =IF(A116="","",RTD("cqg.rtd", ,"ContractData",C116, "LastTradeToday",, "T")) ->  | I116: =IF(A116="","",RTD("cqg.rtd", ,"ContractData",C116, "NetLastTradeToday",, "T")) ->  | J116: =IF(A116="","",IFERROR(RTD("cqg.rtd", ,"ContractData",C116, "PerCentNetLastTrade",, "T")/100,"")) ->  | K116: =IF(A116="","",RTD("cqg.rtd", ,"ContractData", C116, "T_CVol",, "T")) ->  | L116: 116 | M116: =IFERROR(RANK($J116,INDIRECT(("$J$"&"1"&":$J$"&$A$351)))+COUNTIF($J$1:J116,J116)-1,"") -> 
A117: =IF(Symbols!A117="","",Symbols!A117) ->  | D117: =IF(A117="","",RTD("cqg.rtd", ,"ContractData",C117, "LongDescription",, "T")) ->  | H117: =IF(A117="","",RTD("cqg.rtd", ,"ContractData",C117, "LastTradeToday",, "T")) ->  | I117: =IF(A117="","",RTD("cqg.rtd", ,"ContractData",C117, "NetLastTradeToday",, "T")) ->  | J117: =IF(A117="","",IFERROR(RTD("cqg.rtd", ,"ContractData",C117, "PerCentNetLastTrade",, "T")/100,"")) ->  | K117: =IF(A117="","",RTD("cqg.rtd", ,"ContractData", C117, "T_CVol",, "T")) ->  | L117: 117 | M117: =IFERROR(RANK($J117,INDIRECT(("$J$"&"1"&":$J$"&$A$351)))+COUNTIF($J$1:J117,J117)-1,"") -> 
A118: =IF(Symbols!A118="","",Symbols!A118) ->  | D118: =IF(A118="","",RTD("cqg.rtd", ,"ContractData",C118, "LongDescription",, "T")) ->  | H118: =IF(A118="","",RTD("cqg.rtd", ,"ContractData",C118, "LastTradeToday",, "T")) ->  | I118: =IF(A118="","",RTD("cqg.rtd", ,"ContractData",C118, "NetLastTradeToday",, "T")) ->  | J118: =IF(A118="","",IFERROR(RTD("cqg.rtd", ,"ContractData",C118, "PerCentNetLastTrade",, "T")/100,"")) ->  | K118: =IF(A118="","",RTD("cqg.rtd", ,"ContractData", C118, "T_CVol",, "T")) ->  | L118: 118 | M118: =IFERROR(RANK($J118,INDIRECT(("$J$"&"1"&":$J$"&$A$351)))+COUNTIF($J$1:J118,J118)-1,"") -> 
A119: =IF(Symbols!A119="","",Symbols!A119) ->  | D119: =IF(A119="","",RTD("cqg.rtd", ,"ContractData",C119, "LongDescription",, "T")) ->  | H119: =IF(A119="","",RTD("cqg.rtd", ,"ContractData",C119, "LastTradeToday",, "T")) ->  | I119: =IF(A119="","",RTD("cqg.rtd", ,"ContractData",C119, "NetLastTradeToday",, "T")) ->  | J119: =IF(A119="","",IFERROR(RTD("cqg.rtd", ,"ContractData",C119, "PerCentNetLastTrade",, "T")/100,"")) ->  | K119: =IF(A119="","",RTD("cqg.rtd", ,"ContractData", C119, "T_CVol",, "T")) ->  | L119: 119 | M119: =IFERROR(RANK($J119,INDIRECT(("$J$"&"1"&":$J$"&$A$351)))+COUNTIF($J$1:J119,J119)-1,"") -> 
A120: =IF(Symbols!A120="","",Symbols!A120) ->  | D120: =IF(A120="","",RTD("cqg.rtd", ,"ContractData",C120, "LongDescription",, "T")) ->  | H120: =IF(A120="","",RTD("cqg.rtd", ,"ContractData",C120, "LastTradeToday",, "T")) ->  | I120: =IF(A120="","",RTD("cqg.rtd", ,"ContractData",C120, "NetLastTradeToday",, "T")) ->  | J120: =IF(A120="","",IFERROR(RTD("cqg.rtd", ,"ContractData",C120, "PerCentNetLastTrade",, "T")/100,"")) ->  | K120: =IF(A120="","",RTD("cqg.rtd", ,"ContractData", C120, "T_CVol",, "T")) ->  | L120: 120 | M120: =IFERROR(RANK($J120,INDIRECT(("$J$"&"1"&":$J$"&$A$351)))+COUNTIF($J$1:J120,J120)-1,"") -> 
A121: =IF(Symbols!A121="","",Symbols!A121) ->  | D121: =IF(A121="","",RTD("cqg.rtd", ,"ContractData",C121, "LongDescription",, "T")) ->  | H121: =IF(A121="","",RTD("cqg.rtd", ,"ContractData",C121, "LastTradeToday",, "T")) ->  | I121: =IF(A121="","",RTD("cqg.rtd", ,"ContractData",C121, "NetLastTradeToday",, "T")) ->  | J121: =IF(A121="","",IFERROR(RTD("cqg.rtd", ,"ContractData",C121, "PerCentNetLastTrade",, "T")/100,"")) ->  | K121: =IF(A121="","",RTD("cqg.rtd", ,"ContractData", C121, "T_CVol",, "T")) ->  | L121: 121 | M121: =IFERROR(RANK($J121,INDIRECT(("$J$"&"1"&":$J$"&$A$351)))+COUNTIF($J$1:J121,J121)-1,"") -> 
A122: =IF(Symbols!A122="","",Symbols!A122) ->  | D122: =IF(A122="","",RTD("cqg.rtd", ,"ContractData",C122, "LongDescription",, "T")) ->  | H122: =IF(A122="","",RTD("cqg.rtd", ,"ContractData",C122, "LastTradeToday",, "T")) ->  | I122: =IF(A122="","",RTD("cqg.rtd", ,"ContractData",C122, "NetLastTradeToday",, "T")) ->  | J122: =IF(A122="","",IFERROR(RTD("cqg.rtd", ,"ContractData",C122, "PerCentNetLastTrade",, "T")/100,"")) ->  | K122: =IF(A122="","",RTD("cqg.rtd", ,"ContractData", C122, "T_CVol",, "T")) ->  | L122: 122 | M122: =IFERROR(RANK($J122,INDIRECT(("$J$"&"1"&":$J$"&$A$351)))+COUNTIF($J$1:J122,J122)-1,"") -> 
A123: =IF(Symbols!A123="","",Symbols!A123) ->  | D123: =IF(A123="","",RTD("cqg.rtd", ,"ContractData",C123, "LongDescription",, "T")) ->  | H123: =IF(A123="","",RTD("cqg.rtd", ,"ContractData",C123, "LastTradeToday",, "T")) ->  | I123: =IF(A123="","",RTD("cqg.rtd", ,"ContractData",C123, "NetLastTradeToday",, "T")) ->  | J123: =IF(A123="","",IFERROR(RTD("cqg.rtd", ,"ContractData",C123, "PerCentNetLastTrade",, "T")/100,"")) ->  | K123: =IF(A123="","",RTD("cqg.rtd", ,"ContractData", C123, "T_CVol",, "T")) ->  | L123: 123 | M123: =IFERROR(RANK($J123,INDIRECT(("$J$"&"1"&":$J$"&$A$351)))+COUNTIF($J$1:J123,J123)-1,"") -> 
A124: =IF(Symbols!A124="","",Symbols!A124) ->  | D124: =IF(A124="","",RTD("cqg.rtd", ,"ContractData",C124, "LongDescription",, "T")) ->  | H124: =IF(A124="","",RTD("cqg.rtd", ,"ContractData",C124, "LastTradeToday",, "T")) ->  | I124: =IF(A124="","",RTD("cqg.rtd", ,"ContractData",C124, "NetLastTradeToday",, "T")) ->  | J124: =IF(A124="","",IFERROR(RTD("cqg.rtd", ,"ContractData",C124, "PerCentNetLastTrade",, "T")/100,"")) ->  | K124: =IF(A124="","",RTD("cqg.rtd", ,"ContractData", C124, "T_CVol",, "T")) ->  | L124: 124 | M124: =IFERROR(RANK($J124,INDIRECT(("$J$"&"1"&":$J$"&$A$351)))+COUNTIF($J$1:J124,J124)-1,"") -> 
A125: =IF(Symbols!A125="","",Symbols!A125) ->  | B125: =IF(A125="","",IF(J125>0,1,0)) ->  | C125: =A125 ->  | D125: =IF(A125="","",RTD("cqg.rtd", ,"ContractData",C125, "LongDescription",, "T")) ->  | H125: =IF(A125="","",RTD("cqg.rtd", ,"ContractData",C125, "LastTradeToday",, "T")) ->  | I125: =IF(A125="","",RTD("cqg.rtd", ,"ContractData",C125, "NetLastTradeToday",, "T")) ->  | J125: =IF(A125="","",IFERROR(RTD("cqg.rtd", ,"ContractData",C125, "PerCentNetLastTrade",, "T")/100,"")) ->  | K125: =IF(A125="","",RTD("cqg.rtd", ,"ContractData", C125, "T_CVol",, "T")) ->  | L125: 125 | M125: =IFERROR(RANK($J125,INDIRECT(("$J$"&"1"&":$J$"&$A$351)))+COUNTIF($J$1:J125,J125)-1,"") ->  | N125: =C125 -> 
A126: =IF(Symbols!A126="","",Symbols!A126) ->  | D126: =IF(A126="","",RTD("cqg.rtd", ,"ContractData",C126, "LongDescription",, "T")) ->  | H126: =IF(A126="","",RTD("cqg.rtd", ,"ContractData",C126, "LastTradeToday",, "T")) ->  | I126: =IF(A126="","",RTD("cqg.rtd", ,"ContractData",C126, "NetLastTradeToday",, "T")) ->  | J126: =IF(A126="","",IFERROR(RTD("cqg.rtd", ,"ContractData",C126, "PerCentNetLastTrade",, "T")/100,"")) ->  | K126: =IF(A126="","",RTD("cqg.rtd", ,"ContractData", C126, "T_CVol",, "T")) ->  | L126: 126 | M126: =IFERROR(RANK($J126,INDIRECT(("$J$"&"1"&":$J$"&$A$351)))+COUNTIF($J$1:J126,J126)-1,"") -> 
A127: =IF(Symbols!A127="","",Symbols!A127) ->  | D127: =IF(A127="","",RTD("cqg.rtd", ,"ContractData",C127, "LongDescription",, "T")) ->  | H127: =IF(A127="","",RTD("cqg.rtd", ,"ContractData",C127, "LastTradeToday",, "T")) ->  | I127: =IF(A127="","",RTD("cqg.rtd", ,"ContractData",C127, "NetLastTradeToday",, "T")) ->  | J127: =IF(A127="","",IFERROR(RTD("cqg.rtd", ,"ContractData",C127, "PerCentNetLastTrade",, "T")/100,"")) ->  | K127: =IF(A127="","",RTD("cqg.rtd", ,"ContractData", C127, "T_CVol",, "T")) ->  | L127: 127 | M127: =IFERROR(RANK($J127,INDIRECT(("$J$"&"1"&":$J$"&$A$351)))+COUNTIF($J$1:J127,J127)-1,"") -> 
A128: =IF(Symbols!A128="","",Symbols!A128) ->  | D128: =IF(A128="","",RTD("cqg.rtd", ,"ContractData",C128, "LongDescription",, "T")) ->  | H128: =IF(A128="","",RTD("cqg.rtd", ,"ContractData",C128, "LastTradeToday",, "T")) ->  | I128: =IF(A128="","",RTD("cqg.rtd", ,"ContractData",C128, "NetLastTradeToday",, "T")) ->  | J128: =IF(A128="","",IFERROR(RTD("cqg.rtd", ,"ContractData",C128, "PerCentNetLastTrade",, "T")/100,"")) ->  | K128: =IF(A128="","",RTD("cqg.rtd", ,"ContractData", C128, "T_CVol",, "T")) ->  | L128: 128 | M128: =IFERROR(RANK($J128,INDIRECT(("$J$"&"1"&":$J$"&$A$351)))+COUNTIF($J$1:J128,J128)-1,"") -> 
A129: =IF(Symbols!A129="","",Symbols!A129) ->  | D129: =IF(A129="","",RTD("cqg.rtd", ,"ContractData",C129, "LongDescription",, "T")) ->  | H129: =IF(A129="","",RTD("cqg.rtd", ,"ContractData",C129, "LastTradeToday",, "T")) ->  | I129: =IF(A129="","",RTD("cqg.rtd", ,"ContractData",C129, "NetLastTradeToday",, "T")) ->  | J129: =IF(A129="","",IFERROR(RTD("cqg.rtd", ,"ContractData",C129, "PerCentNetLastTrade",, "T")/100,"")) ->  | K129: =IF(A129="","",RTD("cqg.rtd", ,"ContractData", C129, "T_CVol",, "T")) ->  | L129: 129 | M129: =IFERROR(RANK($J129,INDIRECT(("$J$"&"1"&":$J$"&$A$351)))+COUNTIF($J$1:J129,J129)-1,"") -> 
A130: =IF(Symbols!A130="","",Symbols!A130) ->  | D130: =IF(A130="","",RTD("cqg.rtd", ,"ContractData",C130, "LongDescription",, "T")) ->  | H130: =IF(A130="","",RTD("cqg.rtd", ,"ContractData",C130, "LastTradeToday",, "T")) ->  | I130: =IF(A130="","",RTD("cqg.rtd", ,"ContractData",C130, "NetLastTradeToday",, "T")) ->  | J130: =IF(A130="","",IFERROR(RTD("cqg.rtd", ,"ContractData",C130, "PerCentNetLastTrade",, "T")/100,"")) ->  | K130: =IF(A130="","",RTD("cqg.rtd", ,"ContractData", C130, "T_CVol",, "T")) ->  | L130: 130 | M130: =IFERROR(RANK($J130,INDIRECT(("$J$"&"1"&":$J$"&$A$351)))+COUNTIF($J$1:J130,J130)-1,"") ->  | O130: =IFERROR(VLOOKUP($L130,$M$1:$N$350,2,FALSE),"") -> 
A131: =IF(Symbols!A131="","",Symbols!A131) ->  | D131: =IF(A131="","",RTD("cqg.rtd", ,"ContractData",C131, "LongDescription",, "T")) ->  | H131: =IF(A131="","",RTD("cqg.rtd", ,"ContractData",C131, "LastTradeToday",, "T")) ->  | I131: =IF(A131="","",RTD("cqg.rtd", ,"ContractData",C131, "NetLastTradeToday",, "T")) ->  | J131: =IF(A131="","",IFERROR(RTD("cqg.rtd", ,"ContractData",C131, "PerCentNetLastTrade",, "T")/100,"")) ->  | K131: =IF(A131="","",RTD("cqg.rtd", ,"ContractData", C131, "T_CVol",, "T")) ->  | L131: =L130+1 -> 131 | M131: =IFERROR(RANK($J131,INDIRECT(("$J$"&"1"&":$J$"&$A$351)))+COUNTIF($J$1:J131,J131)-1,"") -> 
A132: =IF(Symbols!A132="","",Symbols!A132) ->  | D132: =IF(A132="","",RTD("cqg.rtd", ,"ContractData",C132, "LongDescription",, "T")) ->  | H132: =IF(A132="","",RTD("cqg.rtd", ,"ContractData",C132, "LastTradeToday",, "T")) ->  | I132: =IF(A132="","",RTD("cqg.rtd", ,"ContractData",C132, "NetLastTradeToday",, "T")) ->  | J132: =IF(A132="","",IFERROR(RTD("cqg.rtd", ,"ContractData",C132, "PerCentNetLastTrade",, "T")/100,"")) ->  | K132: =IF(A132="","",RTD("cqg.rtd", ,"ContractData", C132, "T_CVol",, "T")) ->  | L132: 132 | M132: =IFERROR(RANK($J132,INDIRECT(("$J$"&"1"&":$J$"&$A$351)))+COUNTIF($J$1:J132,J132)-1,"") -> 
A133: =IF(Symbols!A133="","",Symbols!A133) ->  | D133: =IF(A133="","",RTD("cqg.rtd", ,"ContractData",C133, "LongDescription",, "T")) ->  | H133: =IF(A133="","",RTD("cqg.rtd", ,"ContractData",C133, "LastTradeToday",, "T")) ->  | I133: =IF(A133="","",RTD("cqg.rtd", ,"ContractData",C133, "NetLastTradeToday",, "T")) ->  | J133: =IF(A133="","",IFERROR(RTD("cqg.rtd", ,"ContractData",C133, "PerCentNetLastTrade",, "T")/100,"")) ->  | K133: =IF(A133="","",RTD("cqg.rtd", ,"ContractData", C133, "T_CVol",, "T")) ->  | L133: 133 | M133: =IFERROR(RANK($J133,INDIRECT(("$J$"&"1"&":$J$"&$A$351)))+COUNTIF($J$1:J133,J133)-1,"") -> 
A134: =IF(Symbols!A134="","",Symbols!A134) ->  | D134: =IF(A134="","",RTD("cqg.rtd", ,"ContractData",C134, "LongDescription",, "T")) ->  | H134: =IF(A134="","",RTD("cqg.rtd", ,"ContractData",C134, "LastTradeToday",, "T")) ->  | I134: =IF(A134="","",RTD("cqg.rtd", ,"ContractData",C134, "NetLastTradeToday",, "T")) ->  | J134: =IF(A134="","",IFERROR(RTD("cqg.rtd", ,"ContractData",C134, "PerCentNetLastTrade",, "T")/100,"")) ->  | K134: =IF(A134="","",RTD("cqg.rtd", ,"ContractData", C134, "T_CVol",, "T")) ->  | L134: 134 | M134: =IFERROR(RANK($J134,INDIRECT(("$J$"&"1"&":$J$"&$A$351)))+COUNTIF($J$1:J134,J134)-1,"") -> 
A135: =IF(Symbols!A135="","",Symbols!A135) ->  | D135: =IF(A135="","",RTD("cqg.rtd", ,"ContractData",C135, "LongDescription",, "T")) ->  | H135: =IF(A135="","",RTD("cqg.rtd", ,"ContractData",C135, "LastTradeToday",, "T")) ->  | I135: =IF(A135="","",RTD("cqg.rtd", ,"ContractData",C135, "NetLastTradeToday",, "T")) ->  | J135: =IF(A135="","",IFERROR(RTD("cqg.rtd", ,"ContractData",C135, "PerCentNetLastTrade",, "T")/100,"")) ->  | K135: =IF(A135="","",RTD("cqg.rtd", ,"ContractData", C135, "T_CVol",, "T")) ->  | L135: 135 | M135: =IFERROR(RANK($J135,INDIRECT(("$J$"&"1"&":$J$"&$A$351)))+COUNTIF($J$1:J135,J135)-1,"") -> 
A136: =IF(Symbols!A136="","",Symbols!A136) ->  | D136: =IF(A136="","",RTD("cqg.rtd", ,"ContractData",C136, "LongDescription",, "T")) ->  | H136: =IF(A136="","",RTD("cqg.rtd", ,"ContractData",C136, "LastTradeToday",, "T")) ->  | I136: =IF(A136="","",RTD("cqg.rtd", ,"ContractData",C136, "NetLastTradeToday",, "T")) ->  | J136: =IF(A136="","",IFERROR(RTD("cqg.rtd", ,"ContractData",C136, "PerCentNetLastTrade",, "T")/100,"")) ->  | K136: =IF(A136="","",RTD("cqg.rtd", ,"ContractData", C136, "T_CVol",, "T")) ->  | L136: 136 | M136: =IFERROR(RANK($J136,INDIRECT(("$J$"&"1"&":$J$"&$A$351)))+COUNTIF($J$1:J136,J136)-1,"") -> 
A137: =IF(Symbols!A137="","",Symbols!A137) ->  | D137: =IF(A137="","",RTD("cqg.rtd", ,"ContractData",C137, "LongDescription",, "T")) ->  | H137: =IF(A137="","",RTD("cqg.rtd", ,"ContractData",C137, "LastTradeToday",, "T")) ->  | I137: =IF(A137="","",RTD("cqg.rtd", ,"ContractData",C137, "NetLastTradeToday",, "T")) ->  | J137: =IF(A137="","",IFERROR(RTD("cqg.rtd", ,"ContractData",C137, "PerCentNetLastTrade",, "T")/100,"")) ->  | K137: =IF(A137="","",RTD("cqg.rtd", ,"ContractData", C137, "T_CVol",, "T")) ->  | L137: 137 | M137: =IFERROR(RANK($J137,INDIRECT(("$J$"&"1"&":$J$"&$A$351)))+COUNTIF($J$1:J137,J137)-1,"") -> 
A138: =IF(Symbols!A138="","",Symbols!A138) ->  | D138: =IF(A138="","",RTD("cqg.rtd", ,"ContractData",C138, "LongDescription",, "T")) ->  | H138: =IF(A138="","",RTD("cqg.rtd", ,"ContractData",C138, "LastTradeToday",, "T")) ->  | I138: =IF(A138="","",RTD("cqg.rtd", ,"ContractData",C138, "NetLastTradeToday",, "T")) ->  | J138: =IF(A138="","",IFERROR(RTD("cqg.rtd", ,"ContractData",C138, "PerCentNetLastTrade",, "T")/100,"")) ->  | K138: =IF(A138="","",RTD("cqg.rtd", ,"ContractData", C138, "T_CVol",, "T")) ->  | L138: 138 | M138: =IFERROR(RANK($J138,INDIRECT(("$J$"&"1"&":$J$"&$A$351)))+COUNTIF($J$1:J138,J138)-1,"") -> 
A139: =IF(Symbols!A139="","",Symbols!A139) ->  | D139: =IF(A139="","",RTD("cqg.rtd", ,"ContractData",C139, "LongDescription",, "T")) ->  | H139: =IF(A139="","",RTD("cqg.rtd", ,"ContractData",C139, "LastTradeToday",, "T")) ->  | I139: =IF(A139="","",RTD("cqg.rtd", ,"ContractData",C139, "NetLastTradeToday",, "T")) ->  | J139: =IF(A139="","",IFERROR(RTD("cqg.rtd", ,"ContractData",C139, "PerCentNetLastTrade",, "T")/100,"")) ->  | K139: =IF(A139="","",RTD("cqg.rtd", ,"ContractData", C139, "T_CVol",, "T")) ->  | L139: 139 | M139: =IFERROR(RANK($J139,INDIRECT(("$J$"&"1"&":$J$"&$A$351)))+COUNTIF($J$1:J139,J139)-1,"") -> 
A140: =IF(Symbols!A140="","",Symbols!A140) ->  | D140: =IF(A140="","",RTD("cqg.rtd", ,"ContractData",C140, "LongDescription",, "T")) ->  | H140: =IF(A140="","",RTD("cqg.rtd", ,"ContractData",C140, "LastTradeToday",, "T")) ->  | I140: =IF(A140="","",RTD("cqg.rtd", ,"ContractData",C140, "NetLastTradeToday",, "T")) ->  | J140: =IF(A140="","",IFERROR(RTD("cqg.rtd", ,"ContractData",C140, "PerCentNetLastTrade",, "T")/100,"")) ->  | K140: =IF(A140="","",RTD("cqg.rtd", ,"ContractData", C140, "T_CVol",, "T")) ->  | L140: 140 | M140: =IFERROR(RANK($J140,INDIRECT(("$J$"&"1"&":$J$"&$A$351)))+COUNTIF($J$1:J140,J140)-1,"") -> 
A141: =IF(Symbols!A141="","",Symbols!A141) ->  | D141: =IF(A141="","",RTD("cqg.rtd", ,"ContractData",C141, "LongDescription",, "T")) ->  | H141: =IF(A141="","",RTD("cqg.rtd", ,"ContractData",C141, "LastTradeToday",, "T")) ->  | I141: =IF(A141="","",RTD("cqg.rtd", ,"ContractData",C141, "NetLastTradeToday",, "T")) ->  | J141: =IF(A141="","",IFERROR(RTD("cqg.rtd", ,"ContractData",C141, "PerCentNetLastTrade",, "T")/100,"")) ->  | K141: =IF(A141="","",RTD("cqg.rtd", ,"ContractData", C141, "T_CVol",, "T")) ->  | L141: 141 | M141: =IFERROR(RANK($J141,INDIRECT(("$J$"&"1"&":$J$"&$A$351)))+COUNTIF($J$1:J141,J141)-1,"") -> 
A142: =IF(Symbols!A142="","",Symbols!A142) ->  | D142: =IF(A142="","",RTD("cqg.rtd", ,"ContractData",C142, "LongDescription",, "T")) ->  | H142: =IF(A142="","",RTD("cqg.rtd", ,"ContractData",C142, "LastTradeToday",, "T")) ->  | I142: =IF(A142="","",RTD("cqg.rtd", ,"ContractData",C142, "NetLastTradeToday",, "T")) ->  | J142: =IF(A142="","",IFERROR(RTD("cqg.rtd", ,"ContractData",C142, "PerCentNetLastTrade",, "T")/100,"")) ->  | K142: =IF(A142="","",RTD("cqg.rtd", ,"ContractData", C142, "T_CVol",, "T")) ->  | L142: 142 | M142: =IFERROR(RANK($J142,INDIRECT(("$J$"&"1"&":$J$"&$A$351)))+COUNTIF($J$1:J142,J142)-1,"") -> 
A143: =IF(Symbols!A143="","",Symbols!A143) ->  | D143: =IF(A143="","",RTD("cqg.rtd", ,"ContractData",C143, "LongDescription",, "T")) ->  | H143: =IF(A143="","",RTD("cqg.rtd", ,"ContractData",C143, "LastTradeToday",, "T")) ->  | I143: =IF(A143="","",RTD("cqg.rtd", ,"ContractData",C143, "NetLastTradeToday",, "T")) ->  | J143: =IF(A143="","",IFERROR(RTD("cqg.rtd", ,"ContractData",C143, "PerCentNetLastTrade",, "T")/100,"")) ->  | K143: =IF(A143="","",RTD("cqg.rtd", ,"ContractData", C143, "T_CVol",, "T")) ->  | L143: 143 | M143: =IFERROR(RANK($J143,INDIRECT(("$J$"&"1"&":$J$"&$A$351)))+COUNTIF($J$1:J143,J143)-1,"") -> 
A144: =IF(Symbols!A144="","",Symbols!A144) ->  | D144: =IF(A144="","",RTD("cqg.rtd", ,"ContractData",C144, "LongDescription",, "T")) ->  | H144: =IF(A144="","",RTD("cqg.rtd", ,"ContractData",C144, "LastTradeToday",, "T")) ->  | I144: =IF(A144="","",RTD("cqg.rtd", ,"ContractData",C144, "NetLastTradeToday",, "T")) ->  | J144: =IF(A144="","",IFERROR(RTD("cqg.rtd", ,"ContractData",C144, "PerCentNetLastTrade",, "T")/100,"")) ->  | K144: =IF(A144="","",RTD("cqg.rtd", ,"ContractData", C144, "T_CVol",, "T")) ->  | L144: 144 | M144: =IFERROR(RANK($J144,INDIRECT(("$J$"&"1"&":$J$"&$A$351)))+COUNTIF($J$1:J144,J144)-1,"") -> 
A145: =IF(Symbols!A145="","",Symbols!A145) ->  | D145: =IF(A145="","",RTD("cqg.rtd", ,"ContractData",C145, "LongDescription",, "T")) ->  | H145: =IF(A145="","",RTD("cqg.rtd", ,"ContractData",C145, "LastTradeToday",, "T")) ->  | I145: =IF(A145="","",RTD("cqg.rtd", ,"ContractData",C145, "NetLastTradeToday",, "T")) ->  | J145: =IF(A145="","",IFERROR(RTD("cqg.rtd", ,"ContractData",C145, "PerCentNetLastTrade",, "T")/100,"")) ->  | K145: =IF(A145="","",RTD("cqg.rtd", ,"ContractData", C145, "T_CVol",, "T")) ->  | L145: 145 | M145: =IFERROR(RANK($J145,INDIRECT(("$J$"&"1"&":$J$"&$A$351)))+COUNTIF($J$1:J145,J145)-1,"") -> 
A146: =IF(Symbols!A146="","",Symbols!A146) ->  | D146: =IF(A146="","",RTD("cqg.rtd", ,"ContractData",C146, "LongDescription",, "T")) ->  | H146: =IF(A146="","",RTD("cqg.rtd", ,"ContractData",C146, "LastTradeToday",, "T")) ->  | I146: =IF(A146="","",RTD("cqg.rtd", ,"ContractData",C146, "NetLastTradeToday",, "T")) ->  | J146: =IF(A146="","",IFERROR(RTD("cqg.rtd", ,"ContractData",C146, "PerCentNetLastTrade",, "T")/100,"")) ->  | K146: =IF(A146="","",RTD("cqg.rtd", ,"ContractData", C146, "T_CVol",, "T")) ->  | L146: 146 | M146: =IFERROR(RANK($J146,INDIRECT(("$J$"&"1"&":$J$"&$A$351)))+COUNTIF($J$1:J146,J146)-1,"") -> 
A147: =IF(Symbols!A147="","",Symbols!A147) ->  | D147: =IF(A147="","",RTD("cqg.rtd", ,"ContractData",C147, "LongDescription",, "T")) ->  | H147: =IF(A147="","",RTD("cqg.rtd", ,"ContractData",C147, "LastTradeToday",, "T")) ->  | I147: =IF(A147="","",RTD("cqg.rtd", ,"ContractData",C147, "NetLastTradeToday",, "T")) ->  | J147: =IF(A147="","",IFERROR(RTD("cqg.rtd", ,"ContractData",C147, "PerCentNetLastTrade",, "T")/100,"")) ->  | K147: =IF(A147="","",RTD("cqg.rtd", ,"ContractData", C147, "T_CVol",, "T")) ->  | L147: 147 | M147: =IFERROR(RANK($J147,INDIRECT(("$J$"&"1"&":$J$"&$A$351)))+COUNTIF($J$1:J147,J147)-1,"") -> 
A148: =IF(Symbols!A148="","",Symbols!A148) ->  | D148: =IF(A148="","",RTD("cqg.rtd", ,"ContractData",C148, "LongDescription",, "T")) ->  | H148: =IF(A148="","",RTD("cqg.rtd", ,"ContractData",C148, "LastTradeToday",, "T")) ->  | I148: =IF(A148="","",RTD("cqg.rtd", ,"ContractData",C148, "NetLastTradeToday",, "T")) ->  | J148: =IF(A148="","",IFERROR(RTD("cqg.rtd", ,"ContractData",C148, "PerCentNetLastTrade",, "T")/100,"")) ->  | K148: =IF(A148="","",RTD("cqg.rtd", ,"ContractData", C148, "T_CVol",, "T")) ->  | L148: 148 | M148: =IFERROR(RANK($J148,INDIRECT(("$J$"&"1"&":$J$"&$A$351)))+COUNTIF($J$1:J148,J148)-1,"") -> 
A149: =IF(Symbols!A149="","",Symbols!A149) ->  | D149: =IF(A149="","",RTD("cqg.rtd", ,"ContractData",C149, "LongDescription",, "T")) ->  | H149: =IF(A149="","",RTD("cqg.rtd", ,"ContractData",C149, "LastTradeToday",, "T")) ->  | I149: =IF(A149="","",RTD("cqg.rtd", ,"ContractData",C149, "NetLastTradeToday",, "T")) ->  | J149: =IF(A149="","",IFERROR(RTD("cqg.rtd", ,"ContractData",C149, "PerCentNetLastTrade",, "T")/100,"")) ->  | K149: =IF(A149="","",RTD("cqg.rtd", ,"ContractData", C149, "T_CVol",, "T")) ->  | L149: 149 | M149: =IFERROR(RANK($J149,INDIRECT(("$J$"&"1"&":$J$"&$A$351)))+COUNTIF($J$1:J149,J149)-1,"") -> 
A150: =IF(Symbols!A150="","",Symbols!A150) ->  | D150: =IF(A150="","",RTD("cqg.rtd", ,"ContractData",C150, "LongDescription",, "T")) ->  | H150: =IF(A150="","",RTD("cqg.rtd", ,"ContractData",C150, "LastTradeToday",, "T")) ->  | I150: =IF(A150="","",RTD("cqg.rtd", ,"ContractData",C150, "NetLastTradeToday",, "T")) ->  | J150: =IF(A150="","",IFERROR(RTD("cqg.rtd", ,"ContractData",C150, "PerCentNetLastTrade",, "T")/100,"")) ->  | K150: =IF(A150="","",RTD("cqg.rtd", ,"ContractData", C150, "T_CVol",, "T")) ->  | L150: 150 | M150: =IFERROR(RANK($J150,INDIRECT(("$J$"&"1"&":$J$"&$A$351)))+COUNTIF($J$1:J150,J150)-1,"") -> 
A151: =IF(Symbols!A151="","",Symbols!A151) ->  | D151: =IF(A151="","",RTD("cqg.rtd", ,"ContractData",C151, "LongDescription",, "T")) ->  | H151: =IF(A151="","",RTD("cqg.rtd", ,"ContractData",C151, "LastTradeToday",, "T")) ->  | I151: =IF(A151="","",RTD("cqg.rtd", ,"ContractData",C151, "NetLastTradeToday",, "T")) ->  | J151: =IF(A151="","",IFERROR(RTD("cqg.rtd", ,"ContractData",C151, "PerCentNetLastTrade",, "T")/100,"")) ->  | K151: =IF(A151="","",RTD("cqg.rtd", ,"ContractData", C151, "T_CVol",, "T")) ->  | L151: 151 | M151: =IFERROR(RANK($J151,INDIRECT(("$J$"&"1"&":$J$"&$A$351)))+COUNTIF($J$1:J151,J151)-1,"") -> 
A152: =IF(Symbols!A152="","",Symbols!A152) ->  | D152: =IF(A152="","",RTD("cqg.rtd", ,"ContractData",C152, "LongDescription",, "T")) ->  | H152: =IF(A152="","",RTD("cqg.rtd", ,"ContractData",C152, "LastTradeToday",, "T")) ->  | I152: =IF(A152="","",RTD("cqg.rtd", ,"ContractData",C152, "NetLastTradeToday",, "T")) ->  | J152: =IF(A152="","",IFERROR(RTD("cqg.rtd", ,"ContractData",C152, "PerCentNetLastTrade",, "T")/100,"")) ->  | K152: =IF(A152="","",RTD("cqg.rtd", ,"ContractData", C152, "T_CVol",, "T")) ->  | L152: 152 | M152: =IFERROR(RANK($J152,INDIRECT(("$J$"&"1"&":$J$"&$A$351)))+COUNTIF($J$1:J152,J152)-1,"") -> 
A153: =IF(Symbols!A153="","",Symbols!A153) ->  | D153: =IF(A153="","",RTD("cqg.rtd", ,"ContractData",C153, "LongDescription",, "T")) ->  | H153: =IF(A153="","",RTD("cqg.rtd", ,"ContractData",C153, "LastTradeToday",, "T")) ->  | I153: =IF(A153="","",RTD("cqg.rtd", ,"ContractData",C153, "NetLastTradeToday",, "T")) ->  | J153: =IF(A153="","",IFERROR(RTD("cqg.rtd", ,"ContractData",C153, "PerCentNetLastTrade",, "T")/100,"")) ->  | K153: =IF(A153="","",RTD("cqg.rtd", ,"ContractData", C153, "T_CVol",, "T")) ->  | L153: 153 | M153: =IFERROR(RANK($J153,INDIRECT(("$J$"&"1"&":$J$"&$A$351)))+COUNTIF($J$1:J153,J153)-1,"") -> 
A154: =IF(Symbols!A154="","",Symbols!A154) ->  | D154: =IF(A154="","",RTD("cqg.rtd", ,"ContractData",C154, "LongDescription",, "T")) ->  | H154: =IF(A154="","",RTD("cqg.rtd", ,"ContractData",C154, "LastTradeToday",, "T")) ->  | I154: =IF(A154="","",RTD("cqg.rtd", ,"ContractData",C154, "NetLastTradeToday",, "T")) ->  | J154: =IF(A154="","",IFERROR(RTD("cqg.rtd", ,"ContractData",C154, "PerCentNetLastTrade",, "T")/100,"")) ->  | K154: =IF(A154="","",RTD("cqg.rtd", ,"ContractData", C154, "T_CVol",, "T")) ->  | L154: 154 | M154: =IFERROR(RANK($J154,INDIRECT(("$J$"&"1"&":$J$"&$A$351)))+COUNTIF($J$1:J154,J154)-1,"") -> 
A155: =IF(Symbols!A155="","",Symbols!A155) ->  | D155: =IF(A155="","",RTD("cqg.rtd", ,"ContractData",C155, "LongDescription",, "T")) ->  | H155: =IF(A155="","",RTD("cqg.rtd", ,"ContractData",C155, "LastTradeToday",, "T")) ->  | I155: =IF(A155="","",RTD("cqg.rtd", ,"ContractData",C155, "NetLastTradeToday",, "T")) ->  | J155: =IF(A155="","",IFERROR(RTD("cqg.rtd", ,"ContractData",C155, "PerCentNetLastTrade",, "T")/100,"")) ->  | K155: =IF(A155="","",RTD("cqg.rtd", ,"ContractData", C155, "T_CVol",, "T")) ->  | L155: 155 | M155: =IFERROR(RANK($J155,INDIRECT(("$J$"&"1"&":$J$"&$A$351)))+COUNTIF($J$1:J155,J155)-1,"") -> 
A156: =IF(Symbols!A156="","",Symbols!A156) ->  | D156: =IF(A156="","",RTD("cqg.rtd", ,"ContractData",C156, "LongDescription",, "T")) ->  | H156: =IF(A156="","",RTD("cqg.rtd", ,"ContractData",C156, "LastTradeToday",, "T")) ->  | I156: =IF(A156="","",RTD("cqg.rtd", ,"ContractData",C156, "NetLastTradeToday",, "T")) ->  | J156: =IF(A156="","",IFERROR(RTD("cqg.rtd", ,"ContractData",C156, "PerCentNetLastTrade",, "T")/100,"")) ->  | K156: =IF(A156="","",RTD("cqg.rtd", ,"ContractData", C156, "T_CVol",, "T")) ->  | L156: 156 | M156: =IFERROR(RANK($J156,INDIRECT(("$J$"&"1"&":$J$"&$A$351)))+COUNTIF($J$1:J156,J156)-1,"") -> 
A157: =IF(Symbols!A157="","",Symbols!A157) ->  | D157: =IF(A157="","",RTD("cqg.rtd", ,"ContractData",C157, "LongDescription",, "T")) ->  | H157: =IF(A157="","",RTD("cqg.rtd", ,"ContractData",C157, "LastTradeToday",, "T")) ->  | I157: =IF(A157="","",RTD("cqg.rtd", ,"ContractData",C157, "NetLastTradeToday",, "T")) ->  | J157: =IF(A157="","",IFERROR(RTD("cqg.rtd", ,"ContractData",C157, "PerCentNetLastTrade",, "T")/100,"")) ->  | K157: =IF(A157="","",RTD("cqg.rtd", ,"ContractData", C157, "T_CVol",, "T")) ->  | L157: 157 | M157: =IFERROR(RANK($J157,INDIRECT(("$J$"&"1"&":$J$"&$A$351)))+COUNTIF($J$1:J157,J157)-1,"") -> 
A158: =IF(Symbols!A158="","",Symbols!A158) ->  | D158: =IF(A158="","",RTD("cqg.rtd", ,"ContractData",C158, "LongDescription",, "T")) ->  | H158: =IF(A158="","",RTD("cqg.rtd", ,"ContractData",C158, "LastTradeToday",, "T")) ->  | I158: =IF(A158="","",RTD("cqg.rtd", ,"ContractData",C158, "NetLastTradeToday",, "T")) ->  | J158: =IF(A158="","",IFERROR(RTD("cqg.rtd", ,"ContractData",C158, "PerCentNetLastTrade",, "T")/100,"")) ->  | K158: =IF(A158="","",RTD("cqg.rtd", ,"ContractData", C158, "T_CVol",, "T")) ->  | L158: 158 | M158: =IFERROR(RANK($J158,INDIRECT(("$J$"&"1"&":$J$"&$A$351)))+COUNTIF($J$1:J158,J158)-1,"") -> 
A159: =IF(Symbols!A159="","",Symbols!A159) ->  | D159: =IF(A159="","",RTD("cqg.rtd", ,"ContractData",C159, "LongDescription",, "T")) ->  | H159: =IF(A159="","",RTD("cqg.rtd", ,"ContractData",C159, "LastTradeToday",, "T")) ->  | I159: =IF(A159="","",RTD("cqg.rtd", ,"ContractData",C159, "NetLastTradeToday",, "T")) ->  | J159: =IF(A159="","",IFERROR(RTD("cqg.rtd", ,"ContractData",C159, "PerCentNetLastTrade",, "T")/100,"")) ->  | K159: =IF(A159="","",RTD("cqg.rtd", ,"ContractData", C159, "T_CVol",, "T")) ->  | L159: 159 | M159: =IFERROR(RANK($J159,INDIRECT(("$J$"&"1"&":$J$"&$A$351)))+COUNTIF($J$1:J159,J159)-1,"") -> 
A160: =IF(Symbols!A160="","",Symbols!A160) ->  | D160: =IF(A160="","",RTD("cqg.rtd", ,"ContractData",C160, "LongDescription",, "T")) ->  | H160: =IF(A160="","",RTD("cqg.rtd", ,"ContractData",C160, "LastTradeToday",, "T")) ->  | I160: =IF(A160="","",RTD("cqg.rtd", ,"ContractData",C160, "NetLastTradeToday",, "T")) ->  | J160: =IF(A160="","",IFERROR(RTD("cqg.rtd", ,"ContractData",C160, "PerCentNetLastTrade",, "T")/100,"")) ->  | K160: =IF(A160="","",RTD("cqg.rtd", ,"ContractData", C160, "T_CVol",, "T")) ->  | L160: 160 | M160: =IFERROR(RANK($J160,INDIRECT(("$J$"&"1"&":$J$"&$A$351)))+COUNTIF($J$1:J160,J160)-1,"") -> 
A161: =IF(Symbols!A161="","",Symbols!A161) ->  | D161: =IF(A161="","",RTD("cqg.rtd", ,"ContractData",C161, "LongDescription",, "T")) ->  | H161: =IF(A161="","",RTD("cqg.rtd", ,"ContractData",C161, "LastTradeToday",, "T")) ->  | I161: =IF(A161="","",RTD("cqg.rtd", ,"ContractData",C161, "NetLastTradeToday",, "T")) ->  | J161: =IF(A161="","",IFERROR(RTD("cqg.rtd", ,"ContractData",C161, "PerCentNetLastTrade",, "T")/100,"")) ->  | K161: =IF(A161="","",RTD("cqg.rtd", ,"ContractData", C161, "T_CVol",, "T")) ->  | L161: 161 | M161: =IFERROR(RANK($J161,INDIRECT(("$J$"&"1"&":$J$"&$A$351)))+COUNTIF($J$1:J161,J161)-1,"") -> 
A162: =IF(Symbols!A162="","",Symbols!A162) ->  | D162: =IF(A162="","",RTD("cqg.rtd", ,"ContractData",C162, "LongDescription",, "T")) ->  | H162: =IF(A162="","",RTD("cqg.rtd", ,"ContractData",C162, "LastTradeToday",, "T")) ->  | I162: =IF(A162="","",RTD("cqg.rtd", ,"ContractData",C162, "NetLastTradeToday",, "T")) ->  | J162: =IF(A162="","",IFERROR(RTD("cqg.rtd", ,"ContractData",C162, "PerCentNetLastTrade",, "T")/100,"")) ->  | K162: =IF(A162="","",RTD("cqg.rtd", ,"ContractData", C162, "T_CVol",, "T")) ->  | L162: 162 | M162: =IFERROR(RANK($J162,INDIRECT(("$J$"&"1"&":$J$"&$A$351)))+COUNTIF($J$1:J162,J162)-1,"") -> 
A163: =IF(Symbols!A163="","",Symbols!A163) ->  | D163: =IF(A163="","",RTD("cqg.rtd", ,"ContractData",C163, "LongDescription",, "T")) ->  | H163: =IF(A163="","",RTD("cqg.rtd", ,"ContractData",C163, "LastTradeToday",, "T")) ->  | I163: =IF(A163="","",RTD("cqg.rtd", ,"ContractData",C163, "NetLastTradeToday",, "T")) ->  | J163: =IF(A163="","",IFERROR(RTD("cqg.rtd", ,"ContractData",C163, "PerCentNetLastTrade",, "T")/100,"")) ->  | K163: =IF(A163="","",RTD("cqg.rtd", ,"ContractData", C163, "T_CVol",, "T")) ->  | L163: 163 | M163: =IFERROR(RANK($J163,INDIRECT(("$J$"&"1"&":$J$"&$A$351)))+COUNTIF($J$1:J163,J163)-1,"") -> 
A164: =IF(Symbols!A164="","",Symbols!A164) ->  | D164: =IF(A164="","",RTD("cqg.rtd", ,"ContractData",C164, "LongDescription",, "T")) ->  | H164: =IF(A164="","",RTD("cqg.rtd", ,"ContractData",C164, "LastTradeToday",, "T")) ->  | I164: =IF(A164="","",RTD("cqg.rtd", ,"ContractData",C164, "NetLastTradeToday",, "T")) ->  | J164: =IF(A164="","",IFERROR(RTD("cqg.rtd", ,"ContractData",C164, "PerCentNetLastTrade",, "T")/100,"")) ->  | K164: =IF(A164="","",RTD("cqg.rtd", ,"ContractData", C164, "T_CVol",, "T")) ->  | L164: 164 | M164: =IFERROR(RANK($J164,INDIRECT(("$J$"&"1"&":$J$"&$A$351)))+COUNTIF($J$1:J164,J164)-1,"") -> 
A165: =IF(Symbols!A165="","",Symbols!A165) ->  | D165: =IF(A165="","",RTD("cqg.rtd", ,"ContractData",C165, "LongDescription",, "T")) ->  | H165: =IF(A165="","",RTD("cqg.rtd", ,"ContractData",C165, "LastTradeToday",, "T")) ->  | I165: =IF(A165="","",RTD("cqg.rtd", ,"ContractData",C165, "NetLastTradeToday",, "T")) ->  | J165: =IF(A165="","",IFERROR(RTD("cqg.rtd", ,"ContractData",C165, "PerCentNetLastTrade",, "T")/100,"")) ->  | K165: =IF(A165="","",RTD("cqg.rtd", ,"ContractData", C165, "T_CVol",, "T")) ->  | L165: 165 | M165: =IFERROR(RANK($J165,INDIRECT(("$J$"&"1"&":$J$"&$A$351)))+COUNTIF($J$1:J165,J165)-1,"") -> 
A166: =IF(Symbols!A166="","",Symbols!A166) ->  | D166: =IF(A166="","",RTD("cqg.rtd", ,"ContractData",C166, "LongDescription",, "T")) ->  | H166: =IF(A166="","",RTD("cqg.rtd", ,"ContractData",C166, "LastTradeToday",, "T")) ->  | I166: =IF(A166="","",RTD("cqg.rtd", ,"ContractData",C166, "NetLastTradeToday",, "T")) ->  | J166: =IF(A166="","",IFERROR(RTD("cqg.rtd", ,"ContractData",C166, "PerCentNetLastTrade",, "T")/100,"")) ->  | K166: =IF(A166="","",RTD("cqg.rtd", ,"ContractData", C166, "T_CVol",, "T")) ->  | L166: 166 | M166: =IFERROR(RANK($J166,INDIRECT(("$J$"&"1"&":$J$"&$A$351)))+COUNTIF($J$1:J166,J166)-1,"") -> 
A167: =IF(Symbols!A167="","",Symbols!A167) ->  | D167: =IF(A167="","",RTD("cqg.rtd", ,"ContractData",C167, "LongDescription",, "T")) ->  | H167: =IF(A167="","",RTD("cqg.rtd", ,"ContractData",C167, "LastTradeToday",, "T")) ->  | I167: =IF(A167="","",RTD("cqg.rtd", ,"ContractData",C167, "NetLastTradeToday",, "T")) ->  | J167: =IF(A167="","",IFERROR(RTD("cqg.rtd", ,"ContractData",C167, "PerCentNetLastTrade",, "T")/100,"")) ->  | K167: =IF(A167="","",RTD("cqg.rtd", ,"ContractData", C167, "T_CVol",, "T")) ->  | L167: 167 | M167: =IFERROR(RANK($J167,INDIRECT(("$J$"&"1"&":$J$"&$A$351)))+COUNTIF($J$1:J167,J167)-1,"") -> 
A168: =IF(Symbols!A168="","",Symbols!A168) ->  | D168: =IF(A168="","",RTD("cqg.rtd", ,"ContractData",C168, "LongDescription",, "T")) ->  | H168: =IF(A168="","",RTD("cqg.rtd", ,"ContractData",C168, "LastTradeToday",, "T")) ->  | I168: =IF(A168="","",RTD("cqg.rtd", ,"ContractData",C168, "NetLastTradeToday",, "T")) ->  | J168: =IF(A168="","",IFERROR(RTD("cqg.rtd", ,"ContractData",C168, "PerCentNetLastTrade",, "T")/100,"")) ->  | K168: =IF(A168="","",RTD("cqg.rtd", ,"ContractData", C168, "T_CVol",, "T")) ->  | L168: 168 | M168: =IFERROR(RANK($J168,INDIRECT(("$J$"&"1"&":$J$"&$A$351)))+COUNTIF($J$1:J168,J168)-1,"") -> 
A169: =IF(Symbols!A169="","",Symbols!A169) ->  | D169: =IF(A169="","",RTD("cqg.rtd", ,"ContractData",C169, "LongDescription",, "T")) ->  | H169: =IF(A169="","",RTD("cqg.rtd", ,"ContractData",C169, "LastTradeToday",, "T")) ->  | I169: =IF(A169="","",RTD("cqg.rtd", ,"ContractData",C169, "NetLastTradeToday",, "T")) ->  | J169: =IF(A169="","",IFERROR(RTD("cqg.rtd", ,"ContractData",C169, "PerCentNetLastTrade",, "T")/100,"")) ->  | K169: =IF(A169="","",RTD("cqg.rtd", ,"ContractData", C169, "T_CVol",, "T")) ->  | L169: 169 | M169: =IFERROR(RANK($J169,INDIRECT(("$J$"&"1"&":$J$"&$A$351)))+COUNTIF($J$1:J169,J169)-1,"") -> 
A170: =IF(Symbols!A170="","",Symbols!A170) ->  | D170: =IF(A170="","",RTD("cqg.rtd", ,"ContractData",C170, "LongDescription",, "T")) ->  | H170: =IF(A170="","",RTD("cqg.rtd", ,"ContractData",C170, "LastTradeToday",, "T")) ->  | I170: =IF(A170="","",RTD("cqg.rtd", ,"ContractData",C170, "NetLastTradeToday",, "T")) ->  | J170: =IF(A170="","",IFERROR(RTD("cqg.rtd", ,"ContractData",C170, "PerCentNetLastTrade",, "T")/100,"")) ->  | K170: =IF(A170="","",RTD("cqg.rtd", ,"ContractData", C170, "T_CVol",, "T")) ->  | L170: 170 | M170: =IFERROR(RANK($J170,INDIRECT(("$J$"&"1"&":$J$"&$A$351)))+COUNTIF($J$1:J170,J170)-1,"") -> 
A171: =IF(Symbols!A171="","",Symbols!A171) ->  | D171: =IF(A171="","",RTD("cqg.rtd", ,"ContractData",C171, "LongDescription",, "T")) ->  | H171: =IF(A171="","",RTD("cqg.rtd", ,"ContractData",C171, "LastTradeToday",, "T")) ->  | I171: =IF(A171="","",RTD("cqg.rtd", ,"ContractData",C171, "NetLastTradeToday",, "T")) ->  | J171: =IF(A171="","",IFERROR(RTD("cqg.rtd", ,"ContractData",C171, "PerCentNetLastTrade",, "T")/100,"")) ->  | K171: =IF(A171="","",RTD("cqg.rtd", ,"ContractData", C171, "T_CVol",, "T")) ->  | L171: 171 | M171: =IFERROR(RANK($J171,INDIRECT(("$J$"&"1"&":$J$"&$A$351)))+COUNTIF($J$1:J171,J171)-1,"") -> 
A172: =IF(Symbols!A172="","",Symbols!A172) ->  | D172: =IF(A172="","",RTD("cqg.rtd", ,"ContractData",C172, "LongDescription",, "T")) ->  | H172: =IF(A172="","",RTD("cqg.rtd", ,"ContractData",C172, "LastTradeToday",, "T")) ->  | I172: =IF(A172="","",RTD("cqg.rtd", ,"ContractData",C172, "NetLastTradeToday",, "T")) ->  | J172: =IF(A172="","",IFERROR(RTD("cqg.rtd", ,"ContractData",C172, "PerCentNetLastTrade",, "T")/100,"")) ->  | K172: =IF(A172="","",RTD("cqg.rtd", ,"ContractData", C172, "T_CVol",, "T")) ->  | L172: 172 | M172: =IFERROR(RANK($J172,INDIRECT(("$J$"&"1"&":$J$"&$A$351)))+COUNTIF($J$1:J172,J172)-1,"") -> 
A173: =IF(Symbols!A173="","",Symbols!A173) ->  | D173: =IF(A173="","",RTD("cqg.rtd", ,"ContractData",C173, "LongDescription",, "T")) ->  | H173: =IF(A173="","",RTD("cqg.rtd", ,"ContractData",C173, "LastTradeToday",, "T")) ->  | I173: =IF(A173="","",RTD("cqg.rtd", ,"ContractData",C173, "NetLastTradeToday",, "T")) ->  | J173: =IF(A173="","",IFERROR(RTD("cqg.rtd", ,"ContractData",C173, "PerCentNetLastTrade",, "T")/100,"")) ->  | K173: =IF(A173="","",RTD("cqg.rtd", ,"ContractData", C173, "T_CVol",, "T")) ->  | L173: 173 | M173: =IFERROR(RANK($J173,INDIRECT(("$J$"&"1"&":$J$"&$A$351)))+COUNTIF($J$1:J173,J173)-1,"") -> 
A174: =IF(Symbols!A174="","",Symbols!A174) ->  | D174: =IF(A174="","",RTD("cqg.rtd", ,"ContractData",C174, "LongDescription",, "T")) ->  | H174: =IF(A174="","",RTD("cqg.rtd", ,"ContractData",C174, "LastTradeToday",, "T")) ->  | I174: =IF(A174="","",RTD("cqg.rtd", ,"ContractData",C174, "NetLastTradeToday",, "T")) ->  | J174: =IF(A174="","",IFERROR(RTD("cqg.rtd", ,"ContractData",C174, "PerCentNetLastTrade",, "T")/100,"")) ->  | K174: =IF(A174="","",RTD("cqg.rtd", ,"ContractData", C174, "T_CVol",, "T")) ->  | L174: 174 | M174: =IFERROR(RANK($J174,INDIRECT(("$J$"&"1"&":$J$"&$A$351)))+COUNTIF($J$1:J174,J174)-1,"") -> 
A175: =IF(Symbols!A175="","",Symbols!A175) ->  | D175: =IF(A175="","",RTD("cqg.rtd", ,"ContractData",C175, "LongDescription",, "T")) ->  | H175: =IF(A175="","",RTD("cqg.rtd", ,"ContractData",C175, "LastTradeToday",, "T")) ->  | I175: =IF(A175="","",RTD("cqg.rtd", ,"ContractData",C175, "NetLastTradeToday",, "T")) ->  | J175: =IF(A175="","",IFERROR(RTD("cqg.rtd", ,"ContractData",C175, "PerCentNetLastTrade",, "T")/100,"")) ->  | K175: =IF(A175="","",RTD("cqg.rtd", ,"ContractData", C175, "T_CVol",, "T")) ->  | L175: 175 | M175: =IFERROR(RANK($J175,INDIRECT(("$J$"&"1"&":$J$"&$A$351)))+COUNTIF($J$1:J175,J175)-1,"") -> 
A176: =IF(Symbols!A176="","",Symbols!A176) ->  | D176: =IF(A176="","",RTD("cqg.rtd", ,"ContractData",C176, "LongDescription",, "T")) ->  | H176: =IF(A176="","",RTD("cqg.rtd", ,"ContractData",C176, "LastTradeToday",, "T")) ->  | I176: =IF(A176="","",RTD("cqg.rtd", ,"ContractData",C176, "NetLastTradeToday",, "T")) ->  | J176: =IF(A176="","",IFERROR(RTD("cqg.rtd", ,"ContractData",C176, "PerCentNetLastTrade",, "T")/100,"")) ->  | K176: =IF(A176="","",RTD("cqg.rtd", ,"ContractData", C176, "T_CVol",, "T")) ->  | L176: 176 | M176: =IFERROR(RANK($J176,INDIRECT(("$J$"&"1"&":$J$"&$A$351)))+COUNTIF($J$1:J176,J176)-1,"") -> 
A177: =IF(Symbols!A177="","",Symbols!A177) ->  | D177: =IF(A177="","",RTD("cqg.rtd", ,"ContractData",C177, "LongDescription",, "T")) ->  | H177: =IF(A177="","",RTD("cqg.rtd", ,"ContractData",C177, "LastTradeToday",, "T")) ->  | I177: =IF(A177="","",RTD("cqg.rtd", ,"ContractData",C177, "NetLastTradeToday",, "T")) ->  | J177: =IF(A177="","",IFERROR(RTD("cqg.rtd", ,"ContractData",C177, "PerCentNetLastTrade",, "T")/100,"")) ->  | K177: =IF(A177="","",RTD("cqg.rtd", ,"ContractData", C177, "T_CVol",, "T")) ->  | L177: 177 | M177: =IFERROR(RANK($J177,INDIRECT(("$J$"&"1"&":$J$"&$A$351)))+COUNTIF($J$1:J177,J177)-1,"") -> 
A178: =IF(Symbols!A178="","",Symbols!A178) ->  | D178: =IF(A178="","",RTD("cqg.rtd", ,"ContractData",C178, "LongDescription",, "T")) ->  | H178: =IF(A178="","",RTD("cqg.rtd", ,"ContractData",C178, "LastTradeToday",, "T")) ->  | I178: =IF(A178="","",RTD("cqg.rtd", ,"ContractData",C178, "NetLastTradeToday",, "T")) ->  | J178: =IF(A178="","",IFERROR(RTD("cqg.rtd", ,"ContractData",C178, "PerCentNetLastTrade",, "T")/100,"")) ->  | K178: =IF(A178="","",RTD("cqg.rtd", ,"ContractData", C178, "T_CVol",, "T")) ->  | L178: 178 | M178: =IFERROR(RANK($J178,INDIRECT(("$J$"&"1"&":$J$"&$A$351)))+COUNTIF($J$1:J178,J178)-1,"") -> 
A179: =IF(Symbols!A179="","",Symbols!A179) ->  | D179: =IF(A179="","",RTD("cqg.rtd", ,"ContractData",C179, "LongDescription",, "T")) ->  | H179: =IF(A179="","",RTD("cqg.rtd", ,"ContractData",C179, "LastTradeToday",, "T")) ->  | I179: =IF(A179="","",RTD("cqg.rtd", ,"ContractData",C179, "NetLastTradeToday",, "T")) ->  | J179: =IF(A179="","",IFERROR(RTD("cqg.rtd", ,"ContractData",C179, "PerCentNetLastTrade",, "T")/100,"")) ->  | K179: =IF(A179="","",RTD("cqg.rtd", ,"ContractData", C179, "T_CVol",, "T")) ->  | L179: 179 | M179: =IFERROR(RANK($J179,INDIRECT(("$J$"&"1"&":$J$"&$A$351)))+COUNTIF($J$1:J179,J179)-1,"") -> 
A180: =IF(Symbols!A180="","",Symbols!A180) ->  | D180: =IF(A180="","",RTD("cqg.rtd", ,"ContractData",C180, "LongDescription",, "T")) ->  | H180: =IF(A180="","",RTD("cqg.rtd", ,"ContractData",C180, "LastTradeToday",, "T")) ->  | I180: =IF(A180="","",RTD("cqg.rtd", ,"ContractData",C180, "NetLastTradeToday",, "T")) ->  | J180: =IF(A180="","",IFERROR(RTD("cqg.rtd", ,"ContractData",C180, "PerCentNetLastTrade",, "T")/100,"")) ->  | K180: =IF(A180="","",RTD("cqg.rtd", ,"ContractData", C180, "T_CVol",, "T")) ->  | L180: 180 | M180: =IFERROR(RANK($J180,INDIRECT(("$J$"&"1"&":$J$"&$A$351)))+COUNTIF($J$1:J180,J180)-1,"") -> 
A181: =IF(Symbols!A181="","",Symbols!A181) ->  | D181: =IF(A181="","",RTD("cqg.rtd", ,"ContractData",C181, "LongDescription",, "T")) ->  | H181: =IF(A181="","",RTD("cqg.rtd", ,"ContractData",C181, "LastTradeToday",, "T")) ->  | I181: =IF(A181="","",RTD("cqg.rtd", ,"ContractData",C181, "NetLastTradeToday",, "T")) ->  | J181: =IF(A181="","",IFERROR(RTD("cqg.rtd", ,"ContractData",C181, "PerCentNetLastTrade",, "T")/100,"")) ->  | K181: =IF(A181="","",RTD("cqg.rtd", ,"ContractData", C181, "T_CVol",, "T")) ->  | L181: 181 | M181: =IFERROR(RANK($J181,INDIRECT(("$J$"&"1"&":$J$"&$A$351)))+COUNTIF($J$1:J181,J181)-1,"") -> 
A182: =IF(Symbols!A182="","",Symbols!A182) ->  | D182: =IF(A182="","",RTD("cqg.rtd", ,"ContractData",C182, "LongDescription",, "T")) ->  | H182: =IF(A182="","",RTD("cqg.rtd", ,"ContractData",C182, "LastTradeToday",, "T")) ->  | I182: =IF(A182="","",RTD("cqg.rtd", ,"ContractData",C182, "NetLastTradeToday",, "T")) ->  | J182: =IF(A182="","",IFERROR(RTD("cqg.rtd", ,"ContractData",C182, "PerCentNetLastTrade",, "T")/100,"")) ->  | K182: =IF(A182="","",RTD("cqg.rtd", ,"ContractData", C182, "T_CVol",, "T")) ->  | L182: 182 | M182: =IFERROR(RANK($J182,INDIRECT(("$J$"&"1"&":$J$"&$A$351)))+COUNTIF($J$1:J182,J182)-1,"") -> 
A183: =IF(Symbols!A183="","",Symbols!A183) ->  | D183: =IF(A183="","",RTD("cqg.rtd", ,"ContractData",C183, "LongDescription",, "T")) ->  | H183: =IF(A183="","",RTD("cqg.rtd", ,"ContractData",C183, "LastTradeToday",, "T")) ->  | I183: =IF(A183="","",RTD("cqg.rtd", ,"ContractData",C183, "NetLastTradeToday",, "T")) ->  | J183: =IF(A183="","",IFERROR(RTD("cqg.rtd", ,"ContractData",C183, "PerCentNetLastTrade",, "T")/100,"")) ->  | K183: =IF(A183="","",RTD("cqg.rtd", ,"ContractData", C183, "T_CVol",, "T")) ->  | L183: 183 | M183: =IFERROR(RANK($J183,INDIRECT(("$J$"&"1"&":$J$"&$A$351)))+COUNTIF($J$1:J183,J183)-1,"") -> 
A184: =IF(Symbols!A184="","",Symbols!A184) ->  | D184: =IF(A184="","",RTD("cqg.rtd", ,"ContractData",C184, "LongDescription",, "T")) ->  | H184: =IF(A184="","",RTD("cqg.rtd", ,"ContractData",C184, "LastTradeToday",, "T")) ->  | I184: =IF(A184="","",RTD("cqg.rtd", ,"ContractData",C184, "NetLastTradeToday",, "T")) ->  | J184: =IF(A184="","",IFERROR(RTD("cqg.rtd", ,"ContractData",C184, "PerCentNetLastTrade",, "T")/100,"")) ->  | K184: =IF(A184="","",RTD("cqg.rtd", ,"ContractData", C184, "T_CVol",, "T")) ->  | L184: 184 | M184: =IFERROR(RANK($J184,INDIRECT(("$J$"&"1"&":$J$"&$A$351)))+COUNTIF($J$1:J184,J184)-1,"") -> 
A185: =IF(Symbols!A185="","",Symbols!A185) ->  | D185: =IF(A185="","",RTD("cqg.rtd", ,"ContractData",C185, "LongDescription",, "T")) ->  | H185: =IF(A185="","",RTD("cqg.rtd", ,"ContractData",C185, "LastTradeToday",, "T")) ->  | I185: =IF(A185="","",RTD("cqg.rtd", ,"ContractData",C185, "NetLastTradeToday",, "T")) ->  | J185: =IF(A185="","",IFERROR(RTD("cqg.rtd", ,"ContractData",C185, "PerCentNetLastTrade",, "T")/100,"")) ->  | K185: =IF(A185="","",RTD("cqg.rtd", ,"ContractData", C185, "T_CVol",, "T")) ->  | L185: 185 | M185: =IFERROR(RANK($J185,INDIRECT(("$J$"&"1"&":$J$"&$A$351)))+COUNTIF($J$1:J185,J185)-1,"") -> 
A186: =IF(Symbols!A186="","",Symbols!A186) ->  | D186: =IF(A186="","",RTD("cqg.rtd", ,"ContractData",C186, "LongDescription",, "T")) ->  | H186: =IF(A186="","",RTD("cqg.rtd", ,"ContractData",C186, "LastTradeToday",, "T")) ->  | I186: =IF(A186="","",RTD("cqg.rtd", ,"ContractData",C186, "NetLastTradeToday",, "T")) ->  | J186: =IF(A186="","",IFERROR(RTD("cqg.rtd", ,"ContractData",C186, "PerCentNetLastTrade",, "T")/100,"")) ->  | K186: =IF(A186="","",RTD("cqg.rtd", ,"ContractData", C186, "T_CVol",, "T")) ->  | L186: 186 | M186: =IFERROR(RANK($J186,INDIRECT(("$J$"&"1"&":$J$"&$A$351)))+COUNTIF($J$1:J186,J186)-1,"") -> 
A187: =IF(Symbols!A187="","",Symbols!A187) ->  | D187: =IF(A187="","",RTD("cqg.rtd", ,"ContractData",C187, "LongDescription",, "T")) ->  | H187: =IF(A187="","",RTD("cqg.rtd", ,"ContractData",C187, "LastTradeToday",, "T")) ->  | I187: =IF(A187="","",RTD("cqg.rtd", ,"ContractData",C187, "NetLastTradeToday",, "T")) ->  | J187: =IF(A187="","",IFERROR(RTD("cqg.rtd", ,"ContractData",C187, "PerCentNetLastTrade",, "T")/100,"")) ->  | K187: =IF(A187="","",RTD("cqg.rtd", ,"ContractData", C187, "T_CVol",, "T")) ->  | L187: 187 | M187: =IFERROR(RANK($J187,INDIRECT(("$J$"&"1"&":$J$"&$A$351)))+COUNTIF($J$1:J187,J187)-1,"") -> 
A188: =IF(Symbols!A188="","",Symbols!A188) ->  | D188: =IF(A188="","",RTD("cqg.rtd", ,"ContractData",C188, "LongDescription",, "T")) ->  | H188: =IF(A188="","",RTD("cqg.rtd", ,"ContractData",C188, "LastTradeToday",, "T")) ->  | I188: =IF(A188="","",RTD("cqg.rtd", ,"ContractData",C188, "NetLastTradeToday",, "T")) ->  | J188: =IF(A188="","",IFERROR(RTD("cqg.rtd", ,"ContractData",C188, "PerCentNetLastTrade",, "T")/100,"")) ->  | K188: =IF(A188="","",RTD("cqg.rtd", ,"ContractData", C188, "T_CVol",, "T")) ->  | L188: 188 | M188: =IFERROR(RANK($J188,INDIRECT(("$J$"&"1"&":$J$"&$A$351)))+COUNTIF($J$1:J188,J188)-1,"") -> 
A189: =IF(Symbols!A189="","",Symbols!A189) ->  | B189: =IF(A189="","",IF(J189>0,1,0)) ->  | C189: =A189 ->  | D189: =IF(A189="","",RTD("cqg.rtd", ,"ContractData",C189, "LongDescription",, "T")) ->  | H189: =IF(A189="","",RTD("cqg.rtd", ,"ContractData",C189, "LastTradeToday",, "T")) ->  | I189: =IF(A189="","",RTD("cqg.rtd", ,"ContractData",C189, "NetLastTradeToday",, "T")) ->  | J189: =IF(A189="","",IFERROR(RTD("cqg.rtd", ,"ContractData",C189, "PerCentNetLastTrade",, "T")/100,"")) ->  | K189: =IF(A189="","",RTD("cqg.rtd", ,"ContractData", C189, "T_CVol",, "T")) ->  | L189: 189 | M189: =IFERROR(RANK($J189,INDIRECT(("$J$"&"1"&":$J$"&$A$351)))+COUNTIF($J$1:J189,J189)-1,"") ->  | N189: =C189 -> 
A190: =IF(Symbols!A190="","",Symbols!A190) ->  | D190: =IF(A190="","",RTD("cqg.rtd", ,"ContractData",C190, "LongDescription",, "T")) ->  | H190: =IF(A190="","",RTD("cqg.rtd", ,"ContractData",C190, "LastTradeToday",, "T")) ->  | I190: =IF(A190="","",RTD("cqg.rtd", ,"ContractData",C190, "NetLastTradeToday",, "T")) ->  | J190: =IF(A190="","",IFERROR(RTD("cqg.rtd", ,"ContractData",C190, "PerCentNetLastTrade",, "T")/100,"")) ->  | K190: =IF(A190="","",RTD("cqg.rtd", ,"ContractData", C190, "T_CVol",, "T")) ->  | L190: 190 | M190: =IFERROR(RANK($J190,INDIRECT(("$J$"&"1"&":$J$"&$A$351)))+COUNTIF($J$1:J190,J190)-1,"") -> 
A191: =IF(Symbols!A191="","",Symbols!A191) ->  | D191: =IF(A191="","",RTD("cqg.rtd", ,"ContractData",C191, "LongDescription",, "T")) ->  | H191: =IF(A191="","",RTD("cqg.rtd", ,"ContractData",C191, "LastTradeToday",, "T")) ->  | I191: =IF(A191="","",RTD("cqg.rtd", ,"ContractData",C191, "NetLastTradeToday",, "T")) ->  | J191: =IF(A191="","",IFERROR(RTD("cqg.rtd", ,"ContractData",C191, "PerCentNetLastTrade",, "T")/100,"")) ->  | K191: =IF(A191="","",RTD("cqg.rtd", ,"ContractData", C191, "T_CVol",, "T")) ->  | L191: 191 | M191: =IFERROR(RANK($J191,INDIRECT(("$J$"&"1"&":$J$"&$A$351)))+COUNTIF($J$1:J191,J191)-1,"") -> 
A192: =IF(Symbols!A192="","",Symbols!A192) ->  | D192: =IF(A192="","",RTD("cqg.rtd", ,"ContractData",C192, "LongDescription",, "T")) ->  | H192: =IF(A192="","",RTD("cqg.rtd", ,"ContractData",C192, "LastTradeToday",, "T")) ->  | I192: =IF(A192="","",RTD("cqg.rtd", ,"ContractData",C192, "NetLastTradeToday",, "T")) ->  | J192: =IF(A192="","",IFERROR(RTD("cqg.rtd", ,"ContractData",C192, "PerCentNetLastTrade",, "T")/100,"")) ->  | K192: =IF(A192="","",RTD("cqg.rtd", ,"ContractData", C192, "T_CVol",, "T")) ->  | L192: 192 | M192: =IFERROR(RANK($J192,INDIRECT(("$J$"&"1"&":$J$"&$A$351)))+COUNTIF($J$1:J192,J192)-1,"") -> 
A193: =IF(Symbols!A193="","",Symbols!A193) ->  | D193: =IF(A193="","",RTD("cqg.rtd", ,"ContractData",C193, "LongDescription",, "T")) ->  | H193: =IF(A193="","",RTD("cqg.rtd", ,"ContractData",C193, "LastTradeToday",, "T")) ->  | I193: =IF(A193="","",RTD("cqg.rtd", ,"ContractData",C193, "NetLastTradeToday",, "T")) ->  | J193: =IF(A193="","",IFERROR(RTD("cqg.rtd", ,"ContractData",C193, "PerCentNetLastTrade",, "T")/100,"")) ->  | K193: =IF(A193="","",RTD("cqg.rtd", ,"ContractData", C193, "T_CVol",, "T")) ->  | L193: 193 | M193: =IFERROR(RANK($J193,INDIRECT(("$J$"&"1"&":$J$"&$A$351)))+COUNTIF($J$1:J193,J193)-1,"") -> 
A194: =IF(Symbols!A194="","",Symbols!A194) ->  | D194: =IF(A194="","",RTD("cqg.rtd", ,"ContractData",C194, "LongDescription",, "T")) ->  | H194: =IF(A194="","",RTD("cqg.rtd", ,"ContractData",C194, "LastTradeToday",, "T")) ->  | I194: =IF(A194="","",RTD("cqg.rtd", ,"ContractData",C194, "NetLastTradeToday",, "T")) ->  | J194: =IF(A194="","",IFERROR(RTD("cqg.rtd", ,"ContractData",C194, "PerCentNetLastTrade",, "T")/100,"")) ->  | K194: =IF(A194="","",RTD("cqg.rtd", ,"ContractData", C194, "T_CVol",, "T")) ->  | L194: 194 | M194: =IFERROR(RANK($J194,INDIRECT(("$J$"&"1"&":$J$"&$A$351)))+COUNTIF($J$1:J194,J194)-1,"") ->  | O194: =IFERROR(VLOOKUP($L194,$M$1:$N$350,2,FALSE),"") -> 
A195: =IF(Symbols!A195="","",Symbols!A195) ->  | D195: =IF(A195="","",RTD("cqg.rtd", ,"ContractData",C195, "LongDescription",, "T")) ->  | H195: =IF(A195="","",RTD("cqg.rtd", ,"ContractData",C195, "LastTradeToday",, "T")) ->  | I195: =IF(A195="","",RTD("cqg.rtd", ,"ContractData",C195, "NetLastTradeToday",, "T")) ->  | J195: =IF(A195="","",IFERROR(RTD("cqg.rtd", ,"ContractData",C195, "PerCentNetLastTrade",, "T")/100,"")) ->  | K195: =IF(A195="","",RTD("cqg.rtd", ,"ContractData", C195, "T_CVol",, "T")) ->  | L195: =L194+1 -> 195 | M195: =IFERROR(RANK($J195,INDIRECT(("$J$"&"1"&":$J$"&$A$351)))+COUNTIF($J$1:J195,J195)-1,"") -> 
A196: =IF(Symbols!A196="","",Symbols!A196) ->  | D196: =IF(A196="","",RTD("cqg.rtd", ,"ContractData",C196, "LongDescription",, "T")) ->  | H196: =IF(A196="","",RTD("cqg.rtd", ,"ContractData",C196, "LastTradeToday",, "T")) ->  | I196: =IF(A196="","",RTD("cqg.rtd", ,"ContractData",C196, "NetLastTradeToday",, "T")) ->  | J196: =IF(A196="","",IFERROR(RTD("cqg.rtd", ,"ContractData",C196, "PerCentNetLastTrade",, "T")/100,"")) ->  | K196: =IF(A196="","",RTD("cqg.rtd", ,"ContractData", C196, "T_CVol",, "T")) ->  | L196: 196 | M196: =IFERROR(RANK($J196,INDIRECT(("$J$"&"1"&":$J$"&$A$351)))+COUNTIF($J$1:J196,J196)-1,"") -> 
A197: =IF(Symbols!A197="","",Symbols!A197) ->  | D197: =IF(A197="","",RTD("cqg.rtd", ,"ContractData",C197, "LongDescription",, "T")) ->  | H197: =IF(A197="","",RTD("cqg.rtd", ,"ContractData",C197, "LastTradeToday",, "T")) ->  | I197: =IF(A197="","",RTD("cqg.rtd", ,"ContractData",C197, "NetLastTradeToday",, "T")) ->  | J197: =IF(A197="","",IFERROR(RTD("cqg.rtd", ,"ContractData",C197, "PerCentNetLastTrade",, "T")/100,"")) ->  | K197: =IF(A197="","",RTD("cqg.rtd", ,"ContractData", C197, "T_CVol",, "T")) ->  | L197: 197 | M197: =IFERROR(RANK($J197,INDIRECT(("$J$"&"1"&":$J$"&$A$351)))+COUNTIF($J$1:J197,J197)-1,"") -> 
A198: =IF(Symbols!A198="","",Symbols!A198) ->  | D198: =IF(A198="","",RTD("cqg.rtd", ,"ContractData",C198, "LongDescription",, "T")) ->  | H198: =IF(A198="","",RTD("cqg.rtd", ,"ContractData",C198, "LastTradeToday",, "T")) ->  | I198: =IF(A198="","",RTD("cqg.rtd", ,"ContractData",C198, "NetLastTradeToday",, "T")) ->  | J198: =IF(A198="","",IFERROR(RTD("cqg.rtd", ,"ContractData",C198, "PerCentNetLastTrade",, "T")/100,"")) ->  | K198: =IF(A198="","",RTD("cqg.rtd", ,"ContractData", C198, "T_CVol",, "T")) ->  | L198: 198 | M198: =IFERROR(RANK($J198,INDIRECT(("$J$"&"1"&":$J$"&$A$351)))+COUNTIF($J$1:J198,J198)-1,"") -> 
A199: =IF(Symbols!A199="","",Symbols!A199) ->  | D199: =IF(A199="","",RTD("cqg.rtd", ,"ContractData",C199, "LongDescription",, "T")) ->  | H199: =IF(A199="","",RTD("cqg.rtd", ,"ContractData",C199, "LastTradeToday",, "T")) ->  | I199: =IF(A199="","",RTD("cqg.rtd", ,"ContractData",C199, "NetLastTradeToday",, "T")) ->  | J199: =IF(A199="","",IFERROR(RTD("cqg.rtd", ,"ContractData",C199, "PerCentNetLastTrade",, "T")/100,"")) ->  | K199: =IF(A199="","",RTD("cqg.rtd", ,"ContractData", C199, "T_CVol",, "T")) ->  | L199: 199 | M199: =IFERROR(RANK($J199,INDIRECT(("$J$"&"1"&":$J$"&$A$351)))+COUNTIF($J$1:J199,J199)-1,"") -> 
A200: =IF(Symbols!A200="","",Symbols!A200) ->  | D200: =IF(A200="","",RTD("cqg.rtd", ,"ContractData",C200, "LongDescription",, "T")) ->  | H200: =IF(A200="","",RTD("cqg.rtd", ,"ContractData",C200, "LastTradeToday",, "T")) ->  | I200: =IF(A200="","",RTD("cqg.rtd", ,"ContractData",C200, "NetLastTradeToday",, "T")) ->  | J200: =IF(A200="","",IFERROR(RTD("cqg.rtd", ,"ContractData",C200, "PerCentNetLastTrade",, "T")/100,"")) ->  | K200: =IF(A200="","",RTD("cqg.rtd", ,"ContractData", C200, "T_CVol",, "T")) ->  | L200: 200 | M200: =IFERROR(RANK($J200,INDIRECT(("$J$"&"1"&":$J$"&$A$351)))+COUNTIF($J$1:J200,J200)-1,"") -> 
... 152 more rows

Sheet Symbols
A1: S.US.ACHR | B1: =IF(A1="","",RTD("cqg.rtd", ,"ContractData",A1, "LongDescription",, "T")) -> Archer Aviation Inc
A2: S.US.AIR | B2: =IF(A2="","",RTD("cqg.rtd", ,"ContractData",A2, "LongDescription",, "T")) -> AAR Corporation
A3: S.US.ATI | B3: =IF(A3="","",RTD("cqg.rtd", ,"ContractData",A3, "LongDescription",, "T")) -> ATI Inc.
A4: S.US.ATRO | B4: =IF(A4="","",RTD("cqg.rtd", ,"ContractData",A4, "LongDescription",, "T")) -> ASTRONICS CP ##
A5: S.US.AVAV | B5: =IF(A5="","",RTD("cqg.rtd", ,"ContractData",A5, "LongDescription",, "T")) -> AEROVIRONMENT, INC.
A6: S.US.AXON | B6: =IF(A6="","",RTD("cqg.rtd", ,"ContractData",A6, "LongDescription",, "T")) -> AXON ENTERPRISE, INC
A7: S.US.BA | B7: =IF(A7="","",RTD("cqg.rtd", ,"ContractData",A7, "LongDescription",, "T")) -> Boeing Company
A8: S.US.BWXT | B8: =IF(A8="","",RTD("cqg.rtd", ,"ContractData",A8, "LongDescription",, "T")) -> BWX Technologies, Inc.
A9: S.US.CDRE | B9: =IF(A9="","",RTD("cqg.rtd", ,"ContractData",A9, "LongDescription",, "T")) -> Cadre Holdings, Inc.
A10: S.US.CRS | B10: =IF(A10="","",RTD("cqg.rtd", ,"ContractData",A10, "LongDescription",, "T")) -> Carpenter Technology Corp
A11: S.US.CW | B11: =IF(A11="","",RTD("cqg.rtd", ,"ContractData",A11, "LongDescription",, "T")) -> Curtiss-Wright Corporation
A12: S.US.DCO | B12: =IF(A12="","",RTD("cqg.rtd", ,"ContractData",A12, "LongDescription",, "T")) -> DUCOMMUN INC | D12: https://www.ishares.com/us/products/239502/ishares-us-aerospace-defense-etf
A13: S.US.DRS | B13: =IF(A13="","",RTD("cqg.rtd", ,"ContractData",A13, "LongDescription",, "T")) -> LEONARDO DRS, INC CM
A14: S.US.GD | B14: =IF(A14="","",RTD("cqg.rtd", ,"ContractData",A14, "LongDescription",, "T")) -> General Dynamics Corp
A15: S.US.GE | B15: =IF(A15="","",RTD("cqg.rtd", ,"ContractData",A15, "LongDescription",, "T")) -> General Electric Co
A16: S.US.HEI | B16: =IF(A16="","",RTD("cqg.rtd", ,"ContractData",A16, "LongDescription",, "T")) -> HEICO CORP
A17: S.US.HEIA | B17: =IF(A17="","",RTD("cqg.rtd", ,"ContractData",A17, "LongDescription",, "T")) -> HEICO Corp ClA
A18: S.US.HII | B18: =IF(A18="","",RTD("cqg.rtd", ,"ContractData",A18, "LongDescription",, "T")) -> Huntington Ingalls Industries | C18: To update the Ticker List:
A19: S.US.HWM | B19: =IF(A19="","",RTD("cqg.rtd", ,"ContractData",A19, "LongDescription",, "T")) -> Howmet Aerospace Inc.
A20: S.US.HXL | B20: =IF(A20="","",RTD("cqg.rtd", ,"ContractData",A20, "LongDescription",, "T")) -> Hexcel Corp
A21: S.US.KRMN | B21: =IF(A21="","",RTD("cqg.rtd", ,"ContractData",A21, "LongDescription",, "T")) -> Karman Holdings Inc. | C21: 1) From their Web site download the CSV File.
A22: S.US.KTOS | B22: =IF(A22="","",RTD("cqg.rtd", ,"ContractData",A22, "LongDescription",, "T")) -> KRATOS DEFNS
A23: S.US.LHX | B23: =IF(A23="","",RTD("cqg.rtd", ,"ContractData",A23, "LongDescription",, "T")) -> L3Harris Technologies, Inc.
A24: S.US.LMT | B24: =IF(A24="","",RTD("cqg.rtd", ,"ContractData",A24, "LongDescription",, "T")) -> Lockheed Martin Corp | C24: 2) Copy the Tickers from the file. | G24: Merge "S.US." to the Tickers. ="S.US."&H1
A25: S.US.LOAR | B25: =IF(A25="","",RTD("cqg.rtd", ,"ContractData",A25, "LongDescription",, "T")) -> Loar Holdings Inc.
A26: S.US.LUNR | B26: =IF(A26="","",RTD("cqg.rtd", ,"ContractData",A26, "LongDescription",, "T")) -> INTUITIVE MCHNS CM
A27: S.US.MOGA | B27: =IF(A27="","",RTD("cqg.rtd", ,"ContractData",A27, "LongDescription",, "T")) -> Moog Inc ClsA | C27: 3) Remove money market fund tickers.
A28: S.US.MRCY | B28: =IF(A28="","",RTD("cqg.rtd", ,"ContractData",A28, "LongDescription",, "T")) -> MERCURY SYS INC
A29: S.US.NOC | B29: =IF(A29="","",RTD("cqg.rtd", ,"ContractData",A29, "LongDescription",, "T")) -> Northrop Grumman Corporation
A30: S.US.NPK | B30: =IF(A30="","",RTD("cqg.rtd", ,"ContractData",A30, "LongDescription",, "T")) -> National Presto Industries Inc. | C30: 4) Copy and Paste "As Values" the updated Ticker List to column A.
A31: S.US.RCAT | B31: =IF(A31="","",RTD("cqg.rtd", ,"ContractData",A31, "LongDescription",, "T")) -> RED CAT HOLDINGS CMN
A32: S.US.RGR | B32: =IF(A32="","",RTD("cqg.rtd", ,"ContractData",A32, "LongDescription",, "T")) -> Sturm Ruger & Co Inc
A33: S.US.RKLB | B33: =IF(A33="","",RTD("cqg.rtd", ,"ContractData",A33, "LongDescription",, "T")) -> ROCKET LAB CORP CMN
A34: S.US.RTX | B34: =IF(A34="","",RTD("cqg.rtd", ,"ContractData",A34, "LongDescription",, "T")) -> RTX Corporation
A35: S.US.SARO | B35: =IF(A35="","",RTD("cqg.rtd", ,"ContractData",A35, "LongDescription",, "T")) -> StandardAero, Inc.
A36: S.US.SWBI | B36: =IF(A36="","",RTD("cqg.rtd", ,"ContractData",A36, "LongDescription",, "T")) -> SMITH & WESSON BRAND
A37: S.US.TDG | B37: =IF(A37="","",RTD("cqg.rtd", ,"ContractData",A37, "LongDescription",, "T")) -> TransDigm Group
A38: S.US.TXT | B38: =IF(A38="","",RTD("cqg.rtd", ,"ContractData",A38, "LongDescription",, "T")) -> Textron Inc
A39: S.US.VSEC | B39: =IF(A39="","",RTD("cqg.rtd", ,"ContractData",A39, "LongDescription",, "T")) -> V S E CP ##
A40: S.US.VVX | B40: =IF(A40="","",RTD("cqg.rtd", ,"ContractData",A40, "LongDescription",, "T")) -> V2X, Inc.
A41: S.US.WWD | B41: =IF(A41="","",RTD("cqg.rtd", ,"ContractData",A41, "LongDescription",, "T")) -> Woodward, Inc.
B42: =IF(A42="","",RTD("cqg.rtd", ,"ContractData",A42, "LongDescription",, "T")) -> 
B43: =IF(A43="","",RTD("cqg.rtd", ,"ContractData",A43, "LongDescription",, "T")) -> 
B44: =IF(A44="","",RTD("cqg.rtd", ,"ContractData",A44, "LongDescription",, "T")) -> 
B45: =IF(A45="","",RTD("cqg.rtd", ,"ContractData",A45, "LongDescription",, "T")) -> 
B46: =IF(A46="","",RTD("cqg.rtd", ,"ContractData",A46, "LongDescription",, "T")) -> 
B47: =IF(A47="","",RTD("cqg.rtd", ,"ContractData",A47, "LongDescription",, "T")) -> 
B48: =IF(A48="","",RTD("cqg.rtd", ,"ContractData",A48, "LongDescription",, "T")) -> 
B49: =IF(A49="","",RTD("cqg.rtd", ,"ContractData",A49, "LongDescription",, "T")) -> 
B50: =IF(A50="","",RTD("cqg.rtd", ,"ContractData",A50, "LongDescription",, "T")) -> 
B51: =IF(A51="","",RTD("cqg.rtd", ,"ContractData",A51, "LongDescription",, "T")) -> 
B52: =IF(A52="","",RTD("cqg.rtd", ,"ContractData",A52, "LongDescription",, "T")) -> 
B53: =IF(A53="","",RTD("cqg.rtd", ,"ContractData",A53, "LongDescription",, "T")) -> 
B54: =IF(A54="","",RTD("cqg.rtd", ,"ContractData",A54, "LongDescription",, "T")) -> 
B55: =IF(A55="","",RTD("cqg.rtd", ,"ContractData",A55, "LongDescription",, "T")) -> 
B56: =IF(A56="","",RTD("cqg.rtd", ,"ContractData",A56, "LongDescription",, "T")) -> 
B57: =IF(A57="","",RTD("cqg.rtd", ,"ContractData",A57, "LongDescription",, "T")) -> 
B58: =IF(A58="","",RTD("cqg.rtd", ,"ContractData",A58, "LongDescription",, "T")) -> 
B59: =IF(A59="","",RTD("cqg.rtd", ,"ContractData",A59, "LongDescription",, "T")) -> 
B60: =IF(A60="","",RTD("cqg.rtd", ,"ContractData",A60, "LongDescription",, "T")) -> 
B61: =IF(A61="","",RTD("cqg.rtd", ,"ContractData",A61, "LongDescription",, "T")) -> 
B62: =IF(A62="","",RTD("cqg.rtd", ,"ContractData",A62, "LongDescription",, "T")) -> 
B63: =IF(A63="","",RTD("cqg.rtd", ,"ContractData",A63, "LongDescription",, "T")) -> 
B64: =IF(A64="","",RTD("cqg.rtd", ,"ContractData",A64, "LongDescription",, "T")) -> 
B65: =IF(A65="","",RTD("cqg.rtd", ,"ContractData",A65, "LongDescription",, "T")) -> 
B66: =IF(A66="","",RTD("cqg.rtd", ,"ContractData",A66, "LongDescription",, "T")) -> 
B67: =IF(A67="","",RTD("cqg.rtd", ,"ContractData",A67, "LongDescription",, "T")) -> 
B68: =IF(A68="","",RTD("cqg.rtd", ,"ContractData",A68, "LongDescription",, "T")) -> 
B69: =IF(A69="","",RTD("cqg.rtd", ,"ContractData",A69, "LongDescription",, "T")) -> 
B70: =IF(A70="","",RTD("cqg.rtd", ,"ContractData",A70, "LongDescription",, "T")) -> 
B71: =IF(A71="","",RTD("cqg.rtd", ,"ContractData",A71, "LongDescription",, "T")) -> 
B72: =IF(A72="","",RTD("cqg.rtd", ,"ContractData",A72, "LongDescription",, "T")) -> 
B73: =IF(A73="","",RTD("cqg.rtd", ,"ContractData",A73, "LongDescription",, "T")) -> 
B74: =IF(A74="","",RTD("cqg.rtd", ,"ContractData",A74, "LongDescription",, "T")) -> 
B75: =IF(A75="","",RTD("cqg.rtd", ,"ContractData",A75, "LongDescription",, "T")) -> 
B76: =IF(A76="","",RTD("cqg.rtd", ,"ContractData",A76, "LongDescription",, "T")) -> 
B77: =IF(A77="","",RTD("cqg.rtd", ,"ContractData",A77, "LongDescription",, "T")) -> 
B78: =IF(A78="","",RTD("cqg.rtd", ,"ContractData",A78, "LongDescription",, "T")) -> 
B79: =IF(A79="","",RTD("cqg.rtd", ,"ContractData",A79, "LongDescription",, "T")) -> 
B80: =IF(A80="","",RTD("cqg.rtd", ,"ContractData",A80, "LongDescription",, "T")) -> 
B81: =IF(A81="","",RTD("cqg.rtd", ,"ContractData",A81, "LongDescription",, "T")) -> 
B82: =IF(A82="","",RTD("cqg.rtd", ,"ContractData",A82, "LongDescription",, "T")) -> 
B83: =IF(A83="","",RTD("cqg.rtd", ,"ContractData",A83, "LongDescription",, "T")) -> 
B84: =IF(A84="","",RTD("cqg.rtd", ,"ContractData",A84, "LongDescription",, "T")) -> 
B85: =IF(A85="","",RTD("cqg.rtd", ,"ContractData",A85, "LongDescription",, "T")) -> 
B86: =IF(A86="","",RTD("cqg.rtd", ,"ContractData",A86, "LongDescription",, "T")) -> 
B87: =IF(A87="","",RTD("cqg.rtd", ,"ContractData",A87, "LongDescription",, "T")) -> 
B88: =IF(A88="","",RTD("cqg.rtd", ,"ContractData",A88, "LongDescription",, "T")) -> 
B89: =IF(A89="","",RTD("cqg.rtd", ,"ContractData",A89, "LongDescription",, "T")) -> 
B90: =IF(A90="","",RTD("cqg.rtd", ,"ContractData",A90, "LongDescription",, "T")) -> 
B91: =IF(A91="","",RTD("cqg.rtd", ,"ContractData",A91, "LongDescription",, "T")) -> 
B92: =IF(A92="","",RTD("cqg.rtd", ,"ContractData",A92, "LongDescription",, "T")) -> 
B93: =IF(A93="","",RTD("cqg.rtd", ,"ContractData",A93, "LongDescription",, "T")) -> 
B94: =IF(A94="","",RTD("cqg.rtd", ,"ContractData",A94, "LongDescription",, "T")) -> 
B95: =IF(A95="","",RTD("cqg.rtd", ,"ContractData",A95, "LongDescription",, "T")) -> 
B96: =IF(A96="","",RTD("cqg.rtd", ,"ContractData",A96, "LongDescription",, "T")) -> 
B97: =IF(A97="","",RTD("cqg.rtd", ,"ContractData",A97, "LongDescription",, "T")) -> 
B98: =IF(A98="","",RTD("cqg.rtd", ,"ContractData",A98, "LongDescription",, "T")) -> 
B99: =IF(A99="","",RTD("cqg.rtd", ,"ContractData",A99, "LongDescription",, "T")) -> 
B100: =IF(A100="","",RTD("cqg.rtd", ,"ContractData",A100, "LongDescription",, "T")) -> 
B101: =IF(A101="","",RTD("cqg.rtd", ,"ContractData",A101, "LongDescription",, "T")) -> 
B102: =IF(A102="","",RTD("cqg.rtd", ,"ContractData",A102, "LongDescription",, "T")) -> 
B103: =IF(A103="","",RTD("cqg.rtd", ,"ContractData",A103, "LongDescription",, "T")) -> 
B104: =IF(A104="","",RTD("cqg.rtd", ,"ContractData",A104, "LongDescription",, "T")) -> 
B105: =IF(A105="","",RTD("cqg.rtd", ,"ContractData",A105, "LongDescription",, "T")) -> 
B106: =IF(A106="","",RTD("cqg.rtd", ,"ContractData",A106, "LongDescription",, "T")) -> 
B107: =IF(A107="","",RTD("cqg.rtd", ,"ContractData",A107, "LongDescription",, "T")) -> 
B108: =IF(A108="","",RTD("cqg.rtd", ,"ContractData",A108, "LongDescription",, "T")) -> 
B109: =IF(A109="","",RTD("cqg.rtd", ,"ContractData",A109, "LongDescription",, "T")) -> 
B110: =IF(A110="","",RTD("cqg.rtd", ,"ContractData",A110, "LongDescription",, "T")) -> 
B111: =IF(A111="","",RTD("cqg.rtd", ,"ContractData",A111, "LongDescription",, "T")) -> 
B112: =IF(A112="","",RTD("cqg.rtd", ,"ContractData",A112, "LongDescription",, "T")) -> 
B113: =IF(A113="","",RTD("cqg.rtd", ,"ContractData",A113, "LongDescription",, "T")) -> 
B114: =IF(A114="","",RTD("cqg.rtd", ,"ContractData",A114, "LongDescription",, "T")) -> 
B115: =IF(A115="","",RTD("cqg.rtd", ,"ContractData",A115, "LongDescription",, "T")) -> 
B116: =IF(A116="","",RTD("cqg.rtd", ,"ContractData",A116, "LongDescription",, "T")) -> 
B117: =IF(A117="","",RTD("cqg.rtd", ,"ContractData",A117, "LongDescription",, "T")) -> 
B118: =IF(A118="","",RTD("cqg.rtd", ,"ContractData",A118, "LongDescription",, "T")) -> 
B119: =IF(A119="","",RTD("cqg.rtd", ,"ContractData",A119, "LongDescription",, "T")) -> 
B120: =IF(A120="","",RTD("cqg.rtd", ,"ContractData",A120, "LongDescription",, "T")) -> 
B121: =IF(A121="","",RTD("cqg.rtd", ,"ContractData",A121, "LongDescription",, "T")) -> 
B122: =IF(A122="","",RTD("cqg.rtd", ,"ContractData",A122, "LongDescription",, "T")) -> 
B123: =IF(A123="","",RTD("cqg.rtd", ,"ContractData",A123, "LongDescription",, "T")) -> 
B124: =IF(A124="","",RTD("cqg.rtd", ,"ContractData",A124, "LongDescription",, "T")) -> 
B125: =IF(A125="","",RTD("cqg.rtd", ,"ContractData",A125, "LongDescription",, "T")) -> 
B126: =IF(A126="","",RTD("cqg.rtd", ,"ContractData",A126, "LongDescription",, "T")) -> 
B127: =IF(A127="","",RTD("cqg.rtd", ,"ContractData",A127, "LongDescription",, "T")) -> 
B128: =IF(A128="","",RTD("cqg.rtd", ,"ContractData",A128, "LongDescription",, "T")) -> 
B129: =IF(A129="","",RTD("cqg.rtd", ,"ContractData",A129, "LongDescription",, "T")) -> 
B130: =IF(A130="","",RTD("cqg.rtd", ,"ContractData",A130, "LongDescription",, "T")) -> 
B131: =IF(A131="","",RTD("cqg.rtd", ,"ContractData",A131, "LongDescription",, "T")) -> 
B132: =IF(A132="","",RTD("cqg.rtd", ,"ContractData",A132, "LongDescription",, "T")) -> 
B133: =IF(A133="","",RTD("cqg.rtd", ,"ContractData",A133, "LongDescription",, "T")) -> 
B134: =IF(A134="","",RTD("cqg.rtd", ,"ContractData",A134, "LongDescription",, "T")) -> 
B135: =IF(A135="","",RTD("cqg.rtd", ,"ContractData",A135, "LongDescription",, "T")) -> 
B136: =IF(A136="","",RTD("cqg.rtd", ,"ContractData",A136, "LongDescription",, "T")) -> 
B137: =IF(A137="","",RTD("cqg.rtd", ,"ContractData",A137, "LongDescription",, "T")) -> 
B138: =IF(A138="","",RTD("cqg.rtd", ,"ContractData",A138, "LongDescription",, "T")) -> 
B139: =IF(A139="","",RTD("cqg.rtd", ,"ContractData",A139, "LongDescription",, "T")) -> 
B140: =IF(A140="","",RTD("cqg.rtd", ,"ContractData",A140, "LongDescription",, "T")) -> 
B141: =IF(A141="","",RTD("cqg.rtd", ,"ContractData",A141, "LongDescription",, "T")) -> 
B142: =IF(A142="","",RTD("cqg.rtd", ,"ContractData",A142, "LongDescription",, "T")) -> 
B143: =IF(A143="","",RTD("cqg.rtd", ,"ContractData",A143, "LongDescription",, "T")) -> 
B144: =IF(A144="","",RTD("cqg.rtd", ,"ContractData",A144, "LongDescription",, "T")) -> 
B145: =IF(A145="","",RTD("cqg.rtd", ,"ContractData",A145, "LongDescription",, "T")) -> 
B146: =IF(A146="","",RTD("cqg.rtd", ,"ContractData",A146, "LongDescription",, "T")) -> 
B147: =IF(A147="","",RTD("cqg.rtd", ,"ContractData",A147, "LongDescription",, "T")) -> 
B148: =IF(A148="","",RTD("cqg.rtd", ,"ContractData",A148, "LongDescription",, "T")) -> 
B149: =IF(A149="","",RTD("cqg.rtd", ,"ContractData",A149, "LongDescription",, "T")) -> 
B150: =IF(A150="","",RTD("cqg.rtd", ,"ContractData",A150, "LongDescription",, "T")) -> 
B151: =IF(A151="","",RTD("cqg.rtd", ,"ContractData",A151, "LongDescription",, "T")) -> 
B152: =IF(A152="","",RTD("cqg.rtd", ,"ContractData",A152, "LongDescription",, "T")) -> 
B153: =IF(A153="","",RTD("cqg.rtd", ,"ContractData",A153, "LongDescription",, "T")) -> 
B154: =IF(A154="","",RTD("cqg.rtd", ,"ContractData",A154, "LongDescription",, "T")) -> 
B155: =IF(A155="","",RTD("cqg.rtd", ,"ContractData",A155, "LongDescription",, "T")) -> 
B156: =IF(A156="","",RTD("cqg.rtd", ,"ContractData",A156, "LongDescription",, "T")) -> 
B157: =IF(A157="","",RTD("cqg.rtd", ,"ContractData",A157, "LongDescription",, "T")) -> 
B158: =IF(A158="","",RTD("cqg.rtd", ,"ContractData",A158, "LongDescription",, "T")) -> 
B159: =IF(A159="","",RTD("cqg.rtd", ,"ContractData",A159, "LongDescription",, "T")) -> 
B160: =IF(A160="","",RTD("cqg.rtd", ,"ContractData",A160, "LongDescription",, "T")) -> 
B161: =IF(A161="","",RTD("cqg.rtd", ,"ContractData",A161, "LongDescription",, "T")) -> 
B162: =IF(A162="","",RTD("cqg.rtd", ,"ContractData",A162, "LongDescription",, "T")) -> 
B163: =IF(A163="","",RTD("cqg.rtd", ,"ContractData",A163, "LongDescription",, "T")) -> 
B164: =IF(A164="","",RTD("cqg.rtd", ,"ContractData",A164, "LongDescription",, "T")) -> 
B165: =IF(A165="","",RTD("cqg.rtd", ,"ContractData",A165, "LongDescription",, "T")) -> 
B166: =IF(A166="","",RTD("cqg.rtd", ,"ContractData",A166, "LongDescription",, "T")) -> 
B167: =IF(A167="","",RTD("cqg.rtd", ,"ContractData",A167, "LongDescription",, "T")) -> 
B168: =IF(A168="","",RTD("cqg.rtd", ,"ContractData",A168, "LongDescription",, "T")) -> 
B169: =IF(A169="","",RTD("cqg.rtd", ,"ContractData",A169, "LongDescription",, "T")) -> 
B170: =IF(A170="","",RTD("cqg.rtd", ,"ContractData",A170, "LongDescription",, "T")) -> 
B171: =IF(A171="","",RTD("cqg.rtd", ,"ContractData",A171, "LongDescription",, "T")) -> 
B172: =IF(A172="","",RTD("cqg.rtd", ,"ContractData",A172, "LongDescription",, "T")) -> 
B173: =IF(A173="","",RTD("cqg.rtd", ,"ContractData",A173, "LongDescription",, "T")) -> 
B174: =IF(A174="","",RTD("cqg.rtd", ,"ContractData",A174, "LongDescription",, "T")) -> 
B175: =IF(A175="","",RTD("cqg.rtd", ,"ContractData",A175, "LongDescription",, "T")) -> 
B176: =IF(A176="","",RTD("cqg.rtd", ,"ContractData",A176, "LongDescription",, "T")) -> 
B177: =IF(A177="","",RTD("cqg.rtd", ,"ContractData",A177, "LongDescription",, "T")) -> 
B178: =IF(A178="","",RTD("cqg.rtd", ,"ContractData",A178, "LongDescription",, "T")) -> 
B179: =IF(A179="","",RTD("cqg.rtd", ,"ContractData",A179, "LongDescription",, "T")) -> 
B180: =IF(A180="","",RTD("cqg.rtd", ,"ContractData",A180, "LongDescription",, "T")) -> 
B181: =IF(A181="","",RTD("cqg.rtd", ,"ContractData",A181, "LongDescription",, "T")) -> 
B182: =IF(A182="","",RTD("cqg.rtd", ,"ContractData",A182, "LongDescription",, "T")) -> 
B183: =IF(A183="","",RTD("cqg.rtd", ,"ContractData",A183, "LongDescription",, "T")) -> 
B184: =IF(A184="","",RTD("cqg.rtd", ,"ContractData",A184, "LongDescription",, "T")) -> 
B185: =IF(A185="","",RTD("cqg.rtd", ,"ContractData",A185, "LongDescription",, "T")) -> 
B186: =IF(A186="","",RTD("cqg.rtd", ,"ContractData",A186, "LongDescription",, "T")) -> 
B187: =IF(A187="","",RTD("cqg.rtd", ,"ContractData",A187, "LongDescription",, "T")) -> 
B188: =IF(A188="","",RTD("cqg.rtd", ,"ContractData",A188, "LongDescription",, "T")) -> 
B189: =IF(A189="","",RTD("cqg.rtd", ,"ContractData",A189, "LongDescription",, "T")) -> 
B190: =IF(A190="","",RTD("cqg.rtd", ,"ContractData",A190, "LongDescription",, "T")) -> 
B191: =IF(A191="","",RTD("cqg.rtd", ,"ContractData",A191, "LongDescription",, "T")) -> 
B192: =IF(A192="","",RTD("cqg.rtd", ,"ContractData",A192, "LongDescription",, "T")) -> 
B193: =IF(A193="","",RTD("cqg.rtd", ,"ContractData",A193, "LongDescription",, "T")) -> 
B194: =IF(A194="","",RTD("cqg.rtd", ,"ContractData",A194, "LongDescription",, "T")) -> 
B195: =IF(A195="","",RTD("cqg.rtd", ,"ContractData",A195, "LongDescription",, "T")) -> 
B196: =IF(A196="","",RTD("cqg.rtd", ,"ContractData",A196, "LongDescription",, "T")) -> 
B197: =IF(A197="","",RTD("cqg.rtd", ,"ContractData",A197, "LongDescription",, "T")) -> 
B198: =IF(A198="","",RTD("cqg.rtd", ,"ContractData",A198, "LongDescription",, "T")) -> 
B199: =IF(A199="","",RTD("cqg.rtd", ,"ContractData",A199, "LongDescription",, "T")) -> 
B200: =IF(A200="","",RTD("cqg.rtd", ,"ContractData",A200, "LongDescription",, "T")) -> 
... 112 more rows
